Workbook

Sheet H2
A1: CHEMCAD | B1: 6.5.7 | C1: Page | D1: 1
A3: Simulation name: | B3: LJ Parameter | C3: Date: | D3: 2021-12-27 | E3: Time: | F3: 17:15:51
A5: Physical Properties for | B5: Hydrogen | C5: (ID | D5: 1
A7: Formula: | B7: H2
A9: Molecular Weight : | B9: 2.0158
A11: Critical Temperature : | B11: 33.26999 | C11: K
A12: Critical Pressure : | B12: 12.95947 | C12: bar
A13: Critical Volume : | B13: 0.065001 | C13: m3/kmol | D13: =B13*1000 -> 65.001 | E13: cm³/mol | G13: 1m³/kmol = 1000 cm³/mol
A15: Melting point : | B15: 13.94999 | C15: K | E15: heat of fusion | G15: 117.5 | H15: kJkmol | I15: (Schmelzenthalpie)
A16: Normal boiling point : | B16: 20.39001 | C16: K
A17: IG heat of formation : | B17: 0 | C17: kJ/gmol
A18: IG Gibbs of formation : | B18: 0 | C18: kJ/gmol
A19: Acentric factor : | B19: -0.22
A20: Solubility parameter : | B20: 6647.8 | C20: (J/m3)**0.5
A21: Dipole moment : | B21: 0 | C21: C.m
A22: Radius of Gyration : | B22: 3.708e-11 | C22: m
A24: Mean avg. boiling point : | B24: 0 | C24: K
A25: Heat of vaporization : | B25: 0.9037633 | C25: kJ/gmol
A26: API net heating value : | B26: 0 | C26: kJ/gmol
A27: API gross heating value : | B27: 0 | C27: kJ/gmol
A28: Liquid volume constant : | B28: 0.955 | C28: cc/mol
A29: Molecular diameter : | B29: 0 | C29: angstroms
A30: Modified acentric factor : | B30: 0
A31: UNIQUAC area parameter : | B31: 0
A32: UNIQUAC volume parameter : | B32: 0
A33: Wilson molar volume : | B33: 0
A34: Stiel polar factor : | B34: 0
A35: Rackett constant : | B35: 0.3139
A36: Polar parameter : | B36: 0
A37: Eps/K : | B37: 0
A38: Watson factor : | B38: 47.48
A39: API gravity : | B39: 0
A40: Specific gravity 60 F : | B40: 0.07
A42: Electrolyte Data (at 25C):
A44: Electrolyte state : | B44: 0
A45: Electrolyte type : | B45: 0
A46: Electrolyte charge : | B46: 0
A47: Std heat of formation : | B47: 0 | C47: kJ/gmol
A48: Std Gibbs of formation : | B48: 0 | C48: kJ/gmol
A49: Standard entropy : | B49: 0 | C49: kJ/kg-K
A50: Standard heat capacity : | B50: 0 | C50: kJ/kg-K
A52: Liquid Density (kmol/m3) Equation Number: | B52: 105
A54: Min T(K): | B54: 13.95 | C54: Min value: | D54: 38.51125
A55: Max T(K): | B55: 33.18 | C55: Max value: | D55: 15.6355
A57: Coeffs: | B57: 5.384 | C57: 0.3473 | D57: 33.18 | E57: 0.2756 | F57: 0
A59: Solid Density (kmol/m3) Equation Number: | B59: 0
A61: Min T(K): | B61: 2023 eingefügt, fehlte
A62: Max T(K): | B62: "
A64: Coeffs: | B64: 0 | C64: 0 | D64: 0 | E64: 0 | F64: 0
A66: Vapor Pressure (Pascals) Equation Number: | B66: 101
A68: Min T(K): | B68: 13.95 | C68: Min value: | D68: 7207.343
A69: Max T(K): | B69: 33.18 | C69: Max value: | D69: 1313491
A71: Coeffs: | B71: 12.752 | C71: -95.133 | D71: 1.0947 | E71: 0.0003359 | F71: 2
A73: Heat of Vaporization (J/kmol) Equation Number: | B73: 106
A75: Min T(K): | B75: 13.95 | C75: Min value: | D75: 920097.5
A76: Max T(K): | B76: 33.27 | C76: Max value: | D76: 2506.251
A78: Coeffs: | B78: 1219900 | C78: 1.4286 | D78: -2.9817 | E78: 1.937 | F78: 0
A80: Ideal Gas Heat Capacity (J/kmol-K) Equation Number: | B80: 107
A82: Min T(K): | B82: 250 | C82: Min value: | D82: 28426.47
A83: Max T(K): | B83: 1500 | C83: Max value: | D83: 32248.08
A85: Coeffs: | B85: 27617 | C85: 9560 | D85: 2466 | E85: 3760 | F85: 567.6
A87: Liquid Heat Capacity (J/kmol-K) Equation Number: | B87: 100
A89: Min T(K): | B89: 14 | C89: Min value: | D89: 13932.63
A90: Max T(K): | B90: 32 | C90: Max value: | D90: 35971.35
A92: Coeffs: | B92: 22560 | C92: -1985.9 | D92: 115.47 | E92: -1.2598 | F92: 0
A94: Solid Heat Capacity (J/kmol-K) Equation Number: | B94: 100
A96: Min T(K): | B96: 13.96 | C96: Min value: | D96: 5730
A97: Max T(K): | B97: 13.96 | C97: Max value: | D97: 5730
A99: Coeffs: | B99: 5730 | C99: 0 | D99: 0 | E99: 0 | F99: 0
A101: Vapor Viscosity (Pascal-sec) Equation Number: | B101: 102
A103: Min T(K): | B103: 15 | C103: Min value: | D103: 6.844798e-07
A104: Max T(K): | B104: 1500 | C104: Max value: | D104: 2.735943e-05
A106: Coeffs: | B106: 1.56e-07 | C106: 0.706 | D106: -5.87 | E106: 210 | F106: 0
A108: Liquid Viscosity (Pascal-sec) Equation Number: | B108: 101
A110: Min T(K): | B110: 14 | C110: Min value: | D110: 2.545542e-05
A111: Max T(K): | B111: 33 | C111: Max value: | D111: 3.785179e-06
A113: Coeffs: | B113: -11.986 | C113: 26.26 | D113: -0.1774 | E113: -4.4e-16 | F113: 10
A115: Vapor Thermal Conductivity (W/m-K) Equation Number: | B115: 102
A117: Min T(K): | B117: 14 | C117: Min value: | D117: 0.01105623
A118: Max T(K): | B118: 1500 | C118: Max value: | D118: 0.5857515
A120: Coeffs: | B120: 0.002547 | C120: 0.7444 | D120: 9 | E120: 0 | F120: 0
A122: Liquid Thermal Conductivity (W/m-K) Equation Number: | B122: 100
A124: Min T(K): | B124: 14 | C124: Min value: | D124: 0.08985279
A125: Max T(K): | B125: 33.18 | C125: Max value: | D125: 0.06452809
A127: Coeffs: | B127: -0.4936 | C127: 0.1008 | D127: -0.00655 | E127: 0.0001991 | F127: -2.35e-06
A129: Liquid Surface Tension (N/m) Equation Number: | B129: 106
A131: Min T(K): | B131: 13.95 | C131: Min value: | D131: 0.002995629
A132: Max T(K): | B132: 33.27 | C132: Max value: | D132: 1.958016e-10
A134: Coeffs: | B134: 0.005336 | C134: 1.0622 | D134: 0 | E134: 0 | F134: 0
A136: Antoine Vapor Pressure (mmHg)
A137: Coefficients: | B137: 14.8
B138: 232.32
B139: 8.08
A141: Polynomial Ideal Gas Heat Capacity (cal/mol-K)
A142: Coefficients: | B142: 6.0897
B143: -0.004445
B144: 3.905e-05
B145: -7.7055e-08
B146: 5.8949e-11
B147: -1.5548e-14
A149: Two-Term Liquid Viscosity (cP)
A150: Coefficients: | B150: 13.82
B151: 5.39
A153: Two-Term Surface Tension (N/m)
A154: Coefficients: | B154: 0
B155: 0
F156: R0 cm³/mol Gl. 32
A157: Henrys Constants
A158: Coefficients: | B158: -3431
B159: 1.753
B160: -0.00987
B161: 14.598
A163: MSRK Parameters
A164: Coefficients: | B164: 0.2563
B165: -0.0742
A167: UNIFAC/UNIQUAC Sub-Groups: Sub-Group ID Contribution
W168: weitere Excel Dateien
E169: Quelle: | F169: de.abcdef.wiki/wiki/List_of_refractive_indices | K169: sonstige | L169: Brechungsindex n20D D'Ans Lax Bnd 2. | P169: Brechungsindex Perrys Standard Tables a. Formulas S.294 ff: | Y169: LJ Parameter - CC Daten 2022\LJ Par Virial SRK 2022.xlsm
E170: ideales Gas | X170: LJ Parameter - CC Daten 2022\LJPar Mourits.xlsx
W180: 23
A181: Lennard-Jones Daten Literatur | C181: Poling, Prausnitz Appendix B | F181: McQuarrie Physical Chemistry S. 663 Tabelle 16.7 | I181: Mourits 1976 | L181: Ebert, Ederer | O181: sigma Å | P181: aus | Q181: miltlere Flüssigdichte | S181: Schmelzenthalpie | U181: Verdampfungswärme | W181: S + V
A182: σ | B182: 2.827 | C182: 2.827 | D182: Å | F182: 293 | G182: pm | L182: 2.928 | M182: Å | O182: =10/(Q182*6.02214086E+23)^(1/3)*100000000 -> 3.943685108 | Q182: =(D54+D55)/2 -> 27.073375 | R182: kmol/m³ | S182: =G15 -> 117.5 | T182: =H15 -> kJkmol | U182: =B25 -> 0.9037633 | V182: =C25 -> kJ/gmol | W182: =S182+U182*1000 -> 1021.2633
A183: ε/k | B183: 59.7 | C183: 59.7 | D183: K | F183: 37 | G183: K | L183: 37 | M183: K
A185: Lennard-Jones Daten berechnet | C185: Gl. 9-4.8 und 9-4.7 in Poling, Prausnitz S. 9.7 aus krit. Daten | F185: Virial | I185: Gasviskosität ?
A186: σ | B186: =C186 -> 3.252783819 | C186: =0.809*(B13*1000)^(1/3) -> 3.252783819 | D186: Å | F186: 2.957872476 | G186: Å | I186: 3.252783819 | J186: Å
A187: ε/k | B187: =C187 -> 26.41943143 | C187: =B11/1.2593 -> 26.41943143 | D187: K | F187: 41.14564314 | G187: K | I187: 26.41943143 | J187: K
A188: aq
A192: Virial/SRK Daten aus Tabelle Virial | B192: Temperatur K | C192: B Virial LJ
B193: 373.15 | C193: 14.44738889
B194: 378.15 | C194: 14.5362093
B195: 383.15 | C195: 14.62198118
B196: 388.15 | C196: 14.70483413
B197: 393.15 | C197: 14.78489078
B198: 398.15 | C198: 14.86226724
B199: 403.15 | C199: 14.93707353
B200: 408.15 | C200: 15.00941396
B201: 413.15 | C201: 15.0793875
B202: 418.15 | C202: 15.1470881
B203: 423.15 | C203: 15.21260501
B204: 428.15 | C204: 15.27602306
B205: 433.15 | C205: 15.33742294
B206: 438.15 | C206: 15.39688141
B207: 443.15 | C207: 15.45447157
B208: 448.15 | C208: 15.51026307
B209: 453.15 | C209: 15.56432228
B210: 458.15 | C210: 15.61671249
B211: 463.15 | C211: 15.6674941
B212: 468.15 | C212: 15.71672477
B213: 473.15 | C213: 15.76445955
B214: 463.15 | C214: 15.6674941
B215: 468.15 | C215: 15.71672477
B216: 473.15 | C216: 15.76445955
A218: a (SRK) | B218: =pSRKabalpha($B$11,$B$12,$B$13,298,1,1) -> 0.2524076469
A219: b (SRK | B219: =pSRKabalpha($B$11,$B$12,$B$13,298,1,2) -> 0.01849352985
A220: alpha | B220: =pSRKabalpha($B$11,$B$12,$B$13,298,1,3) -> 0.02526988754
A221: P (SRK) | B221: =pSRKabalpha($B$11,$B$12,$B$13,298,1,0) -> 25.23768582
A230: Brechungsindes und Temperatur | B230: 1.0001372 | C230: 20 | D230: °C | E230: Quelle: | F230: de.abcdef.wiki/wiki/List_of_refractive_indices | K230: sonstige | L230: Brechungsindex n20D D'Ans Lax Bnd 2. | P230: Brechungsindex Perrys Standard Tables a. Formulas S.294 ff: | Y230: LJ Parameter - CC Daten 2022\LJ Par Virial SRK 2022.xlsm
A231: Dichte bei der Temperatur des Brechungsindex | B231: 0.08270339873 | C231: g/cm³ | D231: MG/V0 | E231: ideales Gas | H231: s. Datei Refraktionen.xlsm | X231: LJ Parameter - CC Daten 2022\LJPar Mourits.xlsx
A232: R0 | B232: 2.037 | C232: cm³/mol | D232: Moelwyn-Hughes S. 206 Gl. 30 | F232: Berechnet
A233: α0/4πε0 | B233: 8.1e-25 | C233: cm³ | D233: Moelwyn-Hughes | F233: =alphaR0(B232) -> 8.075167088e-25 | G233: Gl. 33
A234: νg | B234: 2820000000000000 | C234: s-1 | D234: Moelwyn-Hughes | F234: =vgR0(B232) -> 2818583933070291
A240: ϕOrientierung
A241: ϕInduktion
A242: ϕDispersion | B242: 9.020694719e-60
A243: B aus ϕOrientierung+ϕInduktion+ϕDispersion in erg.cm6 | B243: 9.020694719e-60
A245: A aus sigma, eps von Poling, Prausnitz in erg.cm^12 | B245: 8.590675352e-105
A246: B aus sigma, eps von Poling, Prausnitz in erg.cm^6 | B246: 1.682954816e-59
A247: A Stoßberechnung | B247: 1.532400987e-104

Sheet He
A1: CHEMCAD | B1: 6.5.7 | C1: Page | D1: 1
A3: Simulation name: | B3: LJ Parameter | C3: Date: | D3: 2021-12-27 | E3: Time: | F3: 17:16:00
A5: Physical Properties for | B5: Helium-4 | C5: (ID | D5: 212
A7: Formula: | B7: He
A9: Molecular Weight : | B9: 4.0026
A11: Critical Temperature : | B11: 5.199987 | C11: K
A12: Critical Pressure : | B12: 2.275 | C12: bar
A13: Critical Volume : | B13: 0.0573 | C13: m3/kmol
A15: Melting point : | B15: 1.759985 | C15: K | E15: heat of fusion | G15: 50 | H15: kJkmol | I15: (Schmelzenthalpie)
A16: Normal boiling point : | B16: 4.220007 | C16: K
A17: IG heat of formation : | B17: 0 | C17: kJ/gmol
A18: IG Gibbs of formation : | B18: 0 | C18: kJ/gmol
A19: Acentric factor : | B19: -0.39
A20: Solubility parameter : | B20: 1222.3 | C20: (J/m3)**0.5
A21: Dipole moment : | B21: 0 | C21: C.m
A22: Radius of Gyration : | B22: 0 | C22: m
A24: Mean avg. boiling point : | B24: 0 | C24: K
A25: Heat of vaporization : | B25: 0.09204997 | C25: kJ/gmol
A26: API net heating value : | B26: 0 | C26: kJ/gmol
A27: API gross heating value : | B27: 0 | C27: kJ/gmol
A28: Liquid volume constant : | B28: 3.9759 | C28: cc/mol
A29: Molecular diameter : | B29: 0 | C29: angstroms
A30: Modified acentric factor : | B30: 0
A31: UNIQUAC area parameter : | B31: 0
A32: UNIQUAC volume parameter : | B32: 0
A33: Wilson molar volume : | B33: 0
A34: Stiel polar factor : | B34: 0
A35: Rackett constant : | B35: 0.301
A36: Polar parameter : | B36: 0
A37: Eps/K : | B37: 0
A38: Watson factor : | B38: 0
A39: API gravity : | B39: 0
A40: Specific gravity 60 F : | B40: 0.005908715
A42: Electrolyte Data (at 25C):
A44: Electrolyte state : | B44: 0
A45: Electrolyte type : | B45: 0
A46: Electrolyte charge : | B46: 0
A47: Std heat of formation : | B47: 0 | C47: kJ/gmol
A48: Std Gibbs of formation : | B48: 0 | C48: kJ/gmol
A49: Standard entropy : | B49: 0 | C49: kJ/kg-K
A50: Standard heat capacity : | B50: 0 | C50: kJ/kg-K
A52: Liquid Density (kmol/m3) Equation Number: | B52: 105
A54: Min T(K): | B54: 1.76 | C54: Min value: | D54: 38.08672
A55: Max T(K): | B55: 5.2 | C55: Max value: | D55: 17.31486
A57: Coeffs: | B57: 7.248 | C57: 0.4186 | D57: 5.2 | E57: 0.241 | F57: 0
A59: Solid Density (kmol/m3) Equation Number: | B59: 100
A61: Min T(K): | B61: 1.73 | C61: Min value: | D61: 47.969
A62: Max T(K): | B62: 1.73 | C62: Max value: | D62: 47.969
A64: Coeffs: | B64: 47.969 | C64: 0 | D64: 0 | E64: 0 | F64: 0
A66: Vapor Pressure (Pascals) Equation Number: | B66: 101
A68: Min T(K): | B68: 1.76 | C68: Min value: | D68: 1462.541
A69: Max T(K): | B69: 5.2 | C69: Max value: | D69: 228449.8
A71: Coeffs: | B71: 11.533 | C71: -8.99 | D71: 0.6724 | E71: 0.2743 | F71: 1
A73: Heat of Vaporization (J/kmol) Equation Number: | B73: 106
A75: Min T(K): | B75: 2.2 | C75: Min value: | D75: 96582.39
A76: Max T(K): | B76: 5.2 | C76: Max value: | D76: 740.7122
A78: Coeffs: | B78: 125040 | C78: 1.3038 | D78: -2.6954 | E78: 1.7098 | F78: 0
A80: Ideal Gas Heat Capacity (J/kmol-K) Equation Number: | B80: 100
A82: Min T(K): | B82: 100 | C82: Min value: | D82: 20786
A83: Max T(K): | B83: 1500 | C83: Max value: | D83: 20786
A85: Coeffs: | B85: 20786 | C85: 0 | D85: 0 | E85: 0 | F85: 0
A87: Liquid Heat Capacity (J/kmol-K) Equation Number: | B87: 100
A89: Min T(K): | B89: 2.2 | C89: Min value: | D89: 13869.93
A90: Max T(K): | B90: 5.05 | C90: Max value: | D90: 52246.01
A92: Coeffs: | B92: 584400 | C92: -686460 | D92: 302680 | E92: -58735 | F92: 4274
A94: Solid Heat Capacity (J/kmol-K) Equation Number: | B94: 0
A96: Min T(K):
A97: Max T(K):
A99: Coeffs: | B99: 0 | C99: 0 | D99: 0 | E99: 0 | F99: 0
A101: Vapor Viscosity (Pascal-sec) Equation Number: | B101: 102
A103: Min T(K): | B103: 20 | C103: Min value: | D103: 3.530459e-06
A104: Max T(K): | B104: 2000 | C104: Max value: | D104: 7.560659e-05
A106: Coeffs: | B106: 3.253e-07 | C106: 0.7162 | D106: -9.6 | E106: 107 | F106: 0
A108: Liquid Viscosity (Pascal-sec) Equation Number: | B108: 101
A110: Min T(K): | B110: 2.2 | C110: Min value: | D110: 3.628439e-06
A111: Max T(K): | B111: 5.1 | C111: Max value: | D111: 2.531877e-06
A113: Coeffs: | B113: -9.6312 | C113: -3.841 | D113: -1.458 | E113: -1.065e-08 | F113: 10
A115: Vapor Thermal Conductivity (W/m-K) Equation Number: | B115: 102
A117: Min T(K): | B117: 100 | C117: Min value: | D117: 0.06988472
A118: Max T(K): | B118: 2000 | C118: Max value: | D118: 0.6182716
A120: Coeffs: | B120: 0.000859 | C120: 0.8593 | D120: -95.7 | E120: 6000 | F120: 0
A122: Liquid Thermal Conductivity (W/m-K) Equation Number: | B122: 100
A124: Min T(K): | B124: 2.2 | C124: Min value: | D124: 0.0154564
A125: Max T(K): | B125: 5.2 | C125: Max value: | D125: 0.0213184
A127: Coeffs: | B127: 0.00784 | C127: 0.0041 | D127: -0.00029 | E127: 0 | F127: 0
A129: Liquid Surface Tension (N/m) Equation Number: | B129: 106
A131: Min T(K): | B131: 2.2 | C131: Min value: | D131: 0.0002945284
A132: Max T(K): | B132: 5.2 | C132: Max value: | D132: 4.872217e-11
A134: Coeffs: | B134: 0.00051136 | C134: 1.003 | D134: 0 | E134: 0 | F134: 0
A136: Antoine Vapor Pressure (mmHg)
A137: Coefficients: | B137: 12.251
B138: 33.733
B139: 1.79
A141: Polynomial Ideal Gas Heat Capacity (cal/mol-K)
A142: Coefficients: | B142: 4.96787
B143: 6.79651e-14
B144: -2.47098e-16
B145: 3.7674e-19
B146: -2.5368e-22
B147: 6.23152e-26
A149: Two-Term Liquid Viscosity (cP)
A150: Coefficients: | B150: 0
B151: 0
A153: Two-Term Surface Tension (N/m)
A154: Coefficients: | B154: 0
B155: 0
A157: Henrys Constants
A158: Coefficients: | B158: -26060
B159: -0.00078
B160: -0.0885
B161: 110.7
A163: MSRK Parameters
A164: Coefficients: | B164: 0
B165: 0
A167: UNIFAC/UNIQUAC Sub-Groups: Sub-Group ID Contribution
W180: 23
A181: Lennard-Jones Daten Literatur | C181: Poling, Prausnitz Appendix B | F181: McQuarrie Physical Chemistry S. 663 Tabelle 16.7 | I181: Mourits 1976 | L181: Ebert, Ederer | O181: sigma Å | P181: aus | Q181: miltlere Flüssigdichte | S181: Schmelzenthalpie | U181: Verdampfungswärme | W181: S + V
A182: σ | B182: 2.827 | C182: 2.551 | D182: Å | F182: 256 | G182: pm | L182: 2.556 | M182: Å | O182: =10/(Q182*6.02214086E+23)^(1/3)*100000000 -> 3.913682994 | Q182: =(D54+D55)/2 -> 27.70079 | R182: kmol/m³ | S182: =G15 -> 50 | T182: =H15 -> kJkmol | U182: =B25 -> 0.09204997 | V182: =C25 -> kJ/gmol | W182: =S182+U182*1000 -> 142.04997
A183: ε/k | B183: 59.7 | C183: 10.22 | D183: K | F183: 10.22 | G183: K | L183: 10.22 | M183: K
A185: Lennard-Jones Daten berechnet | C185: Gl. 9-4.8 und 9-4.7 in Poling, Prausnitz S. 9.7 aus krit. Daten | F185: Virial | I185: Gasviskosität | L185: Virialkoeffizient cm³/mol | N185: Poling, Prausnitz
A186: σ | B186: =C186 -> 3.118890031 | C186: =0.809*(B13*1000)^(1/3) -> 3.118890031 | D186: Å | F186: 2.601135209 | G186: Å | I186: 4.594140193 | J186: Å
A187: ε/k | B187: =C187 -> 4.129267847 | C187: =B11/1.2593 -> 4.129267847 | D187: K | F187: 29.46665624 | G187: K | I187: 4.129267847 | J187: K
C188: =C187^0.5*C186^2 -> 19.76681291 | F188: =F187^0.5*F186^2 -> 36.72749293 | I188: =I187^0.5*I186^2 -> 42.88891059
A192: Virial/SRK Daten aus Tabelle Virial | B192: Temperatur K | C192: B Virial LJ
B193: 373.15 | C193: 10.98666706
B194: 378.15 | C194: 11.01945236
B195: 383.15 | C195: 11.0509189
B196: 388.15 | C196: 11.08112463
B197: 393.15 | C197: 11.11012434
B198: 398.15 | C198: 11.13796989
B199: 403.15 | C199: 11.16471039
B200: 408.15 | C200: 11.19039234
B201: 413.15 | C201: 11.21505987
B202: 418.15 | C202: 11.2387548
A203: Lennard-Jones Literatur | B203: 423.15 | C203: 11.26151688
B204: 428.15 | C204: 11.28338381
B205: 433.15 | C205: 11.30439145
B206: 438.15 | C206: 11.32457391
B207: 443.15 | C207: 11.34396361
B208: 448.15 | C208: 11.36259142
B209: 453.15 | C209: 11.38048651
B210: 458.15 | C210: 11.39767746
B211: 463.15 | C211: 11.41419067
B212: 468.15 | C212: 11.43005161
B213: 473.15 | C213: 11.44528459
A218: a (SRK) | B218: =pSRKabalpha($B$11,$B$12,$B$13,298,1,1) -> 0.03512428747
A219: b (SRK | B219: =pSRKabalpha($B$11,$B$12,$B$13,298,1,2) -> 0.016465512
A220: alpha | B220: =pSRKabalpha($B$11,$B$12,$B$13,298,1,3) -> 7.52110618
A221: P (SRK) | B221: =pSRKabalpha($B$11,$B$12,$B$13,298,1,0) -> 24.93200186
A230: Brechungsindes und Temperatur | B230: 1.000036
A231: Dichte bei der Temperatur des Brechungsindex | B231: 0.1642169976
A232: R0 | B232: 0.51716 | C232: 123
A233: α0/4πε0 | B233: 0,20364*1E--24
A234: νg | B234: 5598000000000000
A240: ϕOrientierung
A241: ϕInduktion
A242: ϕDispersion | B242: 1.153656092e-60
A243: B aus ϕOrientierung+ϕInduktion+ϕDispersion in erg.cm6 | B243: 1.153656092e-60
A245: A aus sigma, eps von Poling, Prausnitz in erg.cm^12 | B245: 4.286666264e-106
A246: B aus sigma, eps von Poling, Prausnitz in erg.cm^6 | B246: 1.555453102e-60
B247: 8.221950244e-104

Sheet Ne
A1: CHEMCAD | B1: 6.5.7 | C1: Page | D1: 1
A3: Simulation name: | B3: LJ Parameter | C3: Date: | D3: 2021-12-27 | E3: Time: | F3: 17:16:06
A5: Physical Properties for | B5: Neon | C5: (ID | D5: 107
A7: Formula: | B7: Ne
A9: Molecular Weight : | B9: 20.18
A11: Critical Temperature : | B11: 44.4 | C11: K
A12: Critical Pressure : | B12: 26.53 | C12: bar
A13: Critical Volume : | B13: 0.0417 | C13: m3/kmol
A15: Melting point : | B15: 24.54999 | C15: K | E15: heat of fusion | G15: 328.1 | H15: kJkmol | I15: (Schmelzenthalpie)
A16: Normal boiling point : | B16: 27.09 | C16: K
A17: IG heat of formation : | B17: 0 | C17: kJ/gmol
A18: IG Gibbs of formation : | B18: 0 | C18: kJ/gmol
A19: Acentric factor : | B19: -0.0414
A20: Solubility parameter : | B20: 9417.3 | C20: (J/m3)**0.5
A21: Dipole moment : | B21: 0 | C21: C.m
A22: Radius of Gyration : | B22: 0 | C22: m
A24: Mean avg. boiling point : | B24: 0 | C24: K
A25: Heat of vaporization : | B25: 1.840999 | C25: kJ/gmol
A26: API net heating value : | B26: 0 | C26: kJ/gmol
A27: API gross heating value : | B27: 0 | C27: kJ/gmol
A28: Liquid volume constant : | B28: 0 | C28: cc/mol
A29: Molecular diameter : | B29: 0 | C29: angstroms
A30: Modified acentric factor : | B30: 0
A31: UNIQUAC area parameter : | B31: 0
A32: UNIQUAC volume parameter : | B32: 0
A33: Wilson molar volume : | B33: 0
A34: Stiel polar factor : | B34: 0
A35: Rackett constant : | B35: 0
A36: Polar parameter : | B36: 0
A37: Eps/K : | B37: 0
A38: Watson factor : | B38: 0
A39: API gravity : | B39: 0
A40: Specific gravity 60 F : | B40: 0.7855434
A42: Electrolyte Data (at 25C):
A44: Electrolyte state : | B44: 0
A45: Electrolyte type : | B45: 0
A46: Electrolyte charge : | B46: 0
A47: Std heat of formation : | B47: 0 | C47: kJ/gmol
A48: Std Gibbs of formation : | B48: 0 | C48: kJ/gmol
A49: Standard entropy : | B49: 0 | C49: kJ/kg-K
A50: Standard heat capacity : | B50: 0 | C50: kJ/kg-K
A52: Liquid Density (kmol/m3) Equation Number: | B52: 105
A54: Min T(K): | B54: 24.56 | C54: Min value: | D54: 61.79646
A55: Max T(K): | B55: 44.4 | C55: Max value: | D55: 24.3102
A57: Coeffs: | B57: 7.3718 | C57: 0.3067 | D57: 44.4 | E57: 0.2786 | F57: 0
A59: Solid Density (kmol/m3) Equation Number: | B59: 100
A61: Min T(K): | B61: 0 | C61: Min value: | D61: 0
A62: Max T(K): | B62: 0 | C62: Max value: | D62: 0
A64: Coeffs: | B64: 74.691 | C64: 0 | D64: 0 | E64: 0 | F64: 0
A66: Vapor Pressure (Pascals) Equation Number: | B66: 101
A68: Min T(K): | B68: 24.56 | C68: Min value: | D68: 44453.74
A69: Max T(K): | B69: 44.4 | C69: Max value: | D69: 2653031
A71: Coeffs: | B71: 4.933 | C71: -137.84 | D71: 3.6341 | E71: -0.00041712 | F71: 2
A73: Heat of Vaporization (J/kmol) Equation Number: | B73: 106
A75: Min T(K): | B75: 24.56 | C75: Min value: | D75: 1738165
A76: Max T(K): | B76: 44.4 | C76: Max value: | D76: 63674.57
A78: Coeffs: | B78: 1038400 | C78: -1.775 | D78: 2.1822 | E78: -0.234 | F78: 0
A80: Ideal Gas Heat Capacity (J/kmol-K) Equation Number: | B80: 100
A82: Min T(K): | B82: 100 | C82: Min value: | D82: 20786
A83: Max T(K): | B83: 1500 | C83: Max value: | D83: 20786
A85: Coeffs: | B85: 20786 | C85: 0 | D85: 0 | E85: 0 | F85: 0
A87: Liquid Heat Capacity (J/kmol-K) Equation Number: | B87: 100
A89: Min T(K): | B89: 24.6 | C89: Min value: | D89: 36179.44
A90: Max T(K): | B90: 40 | C90: Max value: | D90: 69208.04
A92: Coeffs: | B92: 1479000 | C92: -195140 | D92: 9797.3 | E92: -217.01 | F92: 1.8003
A94: Solid Heat Capacity (J/kmol-K) Equation Number: | B94: 0
A96: Min T(K):
A97: Max T(K):
A99: Coeffs: | B99: 0 | C99: 0 | D99: 0 | E99: 0 | F99: 0
A101: Vapor Viscosity (Pascal-sec) Equation Number: | B101: 102
A103: Min T(K): | B103: 30 | C103: Min value: | D103: 5.393589e-06
A104: Max T(K): | B104: 2000 | C104: Max value: | D104: 0.0001113846
A106: Coeffs: | B106: 8.3462e-07 | C106: 0.6446 | D106: 11.58 | E106: 0 | F106: 0
A108: Liquid Viscosity (Pascal-sec) Equation Number: | B108: 101
A110: Min T(K): | B110: 25.09 | C110: Min value: | D110: 0.0001601802
A111: Max T(K): | B111: 44.13 | C111: Max value: | D111: 2.705711e-05
A113: Coeffs: | B113: -17.945 | C113: 115.57 | D113: 1.428 | E113: -2.14e-17 | F113: 10
A115: Vapor Thermal Conductivity (W/m-K) Equation Number: | B115: 102
A117: Min T(K): | B117: 30 | C117: Min value: | D117: 0.00779499
A118: Max T(K): | B118: 1500 | C118: Max value: | D118: 0.1446907
A120: Coeffs: | B120: 0.001301 | C120: 0.6456 | D120: 15 | E120: 0 | F120: 0
A122: Liquid Thermal Conductivity (W/m-K) Equation Number: | B122: 100
A124: Min T(K): | B124: 25 | C124: Min value: | D124: 0.1166844
A125: Max T(K): | B125: 44 | C125: Max value: | D125: 0.04565514
A127: Coeffs: | B127: 0.2971 | C127: -0.017356 | D127: 0.0005911 | E127: -7.421e-06 | F127: 0
A129: Liquid Surface Tension (N/m) Equation Number: | B129: 106
A131: Min T(K): | B131: 24.56 | C131: Min value: | D131: 0.005660535
A132: Max T(K): | B132: 44.4 | C132: Max value: | D132: 2.324566e-11
A134: Coeffs: | B134: 0.015633 | C134: 1.2611 | D134: 0 | E134: 0 | F134: 0
A136: Antoine Vapor Pressure (mmHg)
A137: Coefficients: | B137: 15.486
B138: 264.73
B139: 2.828
A141: Polynomial Ideal Gas Heat Capacity (cal/mol-K)
A142: Coefficients: | B142: 4.9647
B143: 0
B144: 0
B145: 0
B146: 0
B147: 0
A149: Two-Term Liquid Viscosity (cP)
A150: Coefficients: | B150: 0
B151: 0
A153: Two-Term Surface Tension (N/m)
A154: Coefficients: | B154: 0
B155: 0
A157: Henrys Constants
A158: Coefficients: | B158: -20180
B159: 0.00284
B160: -0.0795
B161: 94.62
A163: MSRK Parameters
A164: Coefficients: | B164: 0
B165: 0
A167: UNIFAC/UNIQUAC Sub-Groups: Sub-Group ID Contribution
W180: 23
A181: Lennard-Jones Daten Literatur | C181: Poling, Prausnitz Appendix B | F181: McQuarrie Physical Chemistry S. 663 Tabelle 16.7 | I181: Mourits 1976 | L181: Ebert, Ederer | O181: sigma Å | P181: aus | Q181: miltlere Flüssigdichte | S181: Schmelzenthalpie | U181: Verdampfungswärme | W181: S + V
A182: σ | B182: 2.827 | C182: 2.82 | D182: Å | F182: 275 | G182: pm | I182: 282.2 | J182: pm | L182: 2.749 | M182: Å | O182: =10/(Q182*6.02214086E+23)^(1/3)*100000000 -> 3.378683006 | Q182: =(D54+D55)/2 -> 43.05333 | R182: kmol/m³ | S182: =G15 -> 328.1 | T182: =H15 -> kJkmol | U182: =B25 -> 1.840999 | V182: =C25 -> kJ/gmol | W182: =S182+U182*1000 -> 2169.099
A183: ε/k | B183: 59.7 | C183: 32.8 | D183: K | F183: 35.6 | G183: K | I183: 32 | J183: K | L183: 35.6 | M183: K
A185: Lennard-Jones Daten berechnet | C185: Gl. 9-4.8 und 9-4.7 in Poling, Prausnitz S. 9.7 aus krit. Daten | F185: Virial | I185: Gasviskosität | L185: Virialkoeffizient cm³/mol | N185: Poling, Prausnitz
A186: σ | B186: =C186 -> 2.805394061 | C186: =0.809*(B13*1000)^(1/3) -> 2.805394061 | D186: Å | F186: 2.632135218 | I186: 0.9886846462
A187: ε/k | B187: =C187 -> 35.25768284 | C187: =B11/1.2593 -> 35.25768284 | D187: K | F187: 24.78958068 | I187: 59.7
C188: =C187^0.5*C186^2 -> 46.73202818 | F188: =F187^0.5*F186^2 -> 34.49458962
A192: Virial/SRK Daten aus Tabelle Virial | B192: Temperatur K | C192: B Virial LJ
B193: 373.15 | C193: 11.7559874
B194: 378.15 | C194: 11.77877119
B195: 383.15 | C195: 11.80049353
B196: 388.15 | C196: 11.82120289
B197: 393.15 | C197: 11.84094426
B198: 398.15 | C198: 11.85976043
B199: 403.15 | C199: 11.87769192
B200: 408.15 | C200: 11.89477716
B201: 413.15 | C201: 11.91105252
B202: 418.15 | C202: 11.92655248
A203: Lennard-Jones Literatur | B203: 423.15 | C203: 11.94130975
B204: 428.15 | C204: 11.95535538
B205: 433.15 | C205: 11.96871885
B206: 438.15 | C206: 11.98142817
B207: 443.15 | C207: 11.99351
B208: 448.15 | C208: 12.00498966
B209: 453.15 | C209: 12.01589129
B210: 458.15 | C210: 12.02623784
B211: 463.15 | C211: 12.03605119
B212: 468.15 | C212: 12.0453522
B213: 473.15 | C213: 12.05416075
A218: a (SRK) | B218: =pSRKabalpha($B$11,$B$12,$B$13,298,1,1) -> 0.2195902729
A219: b (SRK | B219: =pSRKabalpha($B$11,$B$12,$B$13,298,1,2) -> 0.01205591294
A220: alpha | B220: =pSRKabalpha($B$11,$B$12,$B$13,298,1,3) -> 0.01756831316
A221: P (SRK) | B221: =pSRKabalpha($B$11,$B$12,$B$13,298,1,0) -> 25.07564244
A230: Brechungsindes und Temperatur | B230: 1.00000725
A231: Dichte bei der Temperatur des Brechungsindex | B231: 0.8279365941
A232: R0 | B232: 0.99698
A233: α0/4πε0 | B233: 3.9256e-25
A234: νg | B234: 4032000000000000
A240: ϕOrientierung
A241: ϕInduktion
A242: ϕDispersion | B242: 3.087805285e-60
A243: B aus ϕOrientierung+ϕInduktion+ϕDispersion in erg.cm6 | B243: 3.087805285e-60
A245: A aus sigma, eps von Poling, Prausnitz in erg.cm^12 | B245: 4.581486567e-105
A246: B aus sigma, eps von Poling, Prausnitz in erg.cm^6
B247: 8.029073442e-104

Sheet Ar
A1: CHEMCAD | B1: 6.5.7 | C1: Page | D1: 1
A3: Simulation name: | B3: LJ Parameter | C3: Date: | D3: 2021-12-27 | E3: Time: | F3: 17:16:11
A5: Physical Properties for | B5: Argon | C5: (ID | D5: 98
A7: Formula: | B7: Ar
A9: Molecular Weight : | B9: 39.948
A11: Critical Temperature : | B11: 150.86 | C11: K
A12: Critical Pressure : | B12: 48.9805 | C12: bar
A13: Critical Volume : | B13: 0.0746 | C13: m3/kmol
A15: Melting point : | B15: 83.8 | C15: K | E15: heat of fusion | G15: 1182 | H15: kJkmol | I15: (Schmelzenthalpie)
A16: Normal boiling point : | B16: 87.28 | C16: K
A17: IG heat of formation : | B17: 0 | C17: kJ/gmol
A18: IG Gibbs of formation : | B18: 0 | C18: kJ/gmol
A19: Acentric factor : | B19: 0
A20: Solubility parameter : | B20: 14138 | C20: (J/m3)**0.5
A21: Dipole moment : | B21: 0 | C21: C.m
A22: Radius of Gyration : | B22: 0 | C22: m
A24: Mean avg. boiling point : | B24: 0 | C24: K
A25: Heat of vaporization : | B25: 6.52718 | C25: kJ/gmol
A26: API net heating value : | B26: 0 | C26: kJ/gmol
A27: API gross heating value : | B27: 0 | C27: kJ/gmol
A28: Liquid volume constant : | B28: 2.75 | C28: cc/mol
A29: Molecular diameter : | B29: 0 | C29: angstroms
A30: Modified acentric factor : | B30: 0
A31: UNIQUAC area parameter : | B31: 0
A32: UNIQUAC volume parameter : | B32: 0
A33: Wilson molar volume : | B33: 0
A34: Stiel polar factor : | B34: 0
A35: Rackett constant : | B35: 0
A36: Polar parameter : | B36: 0
A37: Eps/K : | B37: 0
A38: Watson factor : | B38: 0
A39: API gravity : | B39: 0
A40: Specific gravity 60 F : | B40: 1.283701
A42: Electrolyte Data (at 25C):
A44: Electrolyte state : | B44: 0
A45: Electrolyte type : | B45: 0
A46: Electrolyte charge : | B46: 0
A47: Std heat of formation : | B47: 0 | C47: kJ/gmol
A48: Std Gibbs of formation : | B48: 0 | C48: kJ/gmol
A49: Standard entropy : | B49: 0 | C49: kJ/kg-K
A50: Standard heat capacity : | B50: 0 | C50: kJ/kg-K
A52: Liquid Density (kmol/m3) Equation Number: | B52: 105
A54: Min T(K): | B54: 83.78 | C54: Min value: | D54: 35.53124
A55: Max T(K): | B55: 150.86 | C55: Max value: | D55: 13.2972
A57: Coeffs: | B57: 3.803 | C57: 0.286 | D57: 150.86 | E57: 0.2984 | F57: 0
A59: Solid Density (kmol/m3) Equation Number: | B59: 0
A61: Min T(K):
A62: Max T(K):
A64: Coeffs: | B64: 0 | C64: 0 | D64: 0 | E64: 0 | F64: 0
A66: Vapor Pressure (Pascals) Equation Number: | B66: 101
A68: Min T(K): | B68: 83.78 | C68: Min value: | D68: 68799.7
A69: Max T(K): | B69: 150.86 | C69: Max value: | D69: 4893819
A71: Coeffs: | B71: 39.233 | C71: -1051.7 | D71: -3.5895 | E71: 5.0444e-05 | F71: 2
A73: Heat of Vaporization (J/kmol) Equation Number: | B73: 106
A75: Min T(K): | B75: 83.78 | C75: Min value: | D75: 6562467
A76: Max T(K): | B76: 150.86 | C76: Max value: | D76: 29989.17
A78: Coeffs: | B78: 8729000 | C78: 0.352 | D78: 0 | E78: 0 | F78: 0
A80: Ideal Gas Heat Capacity (J/kmol-K) Equation Number: | B80: 100
A82: Min T(K): | B82: 100 | C82: Min value: | D82: 20786
A83: Max T(K): | B83: 1500 | C83: Max value: | D83: 20786
A85: Coeffs: | B85: 20786 | C85: 0 | D85: 0 | E85: 0 | F85: 0
A87: Liquid Heat Capacity (J/kmol-K) Equation Number: | B87: 100
A89: Min T(K): | B89: 83.8 | C89: Min value: | D89: 48413.31
A90: Max T(K): | B90: 135 | C90: Max value: | D90: 68104.02
A92: Coeffs: | B92: 182260 | C92: -2827.4 | D92: 14.68 | E92: 0 | F92: 0
A94: Solid Heat Capacity (J/kmol-K) Equation Number: | B94: 0
A96: Min T(K):
A97: Max T(K):
A99: Coeffs: | B99: 0 | C99: 0 | D99: 0 | E99: 0 | F99: 0
A101: Vapor Viscosity (Pascal-sec) Equation Number: | B101: 102
A103: Min T(K): | B103: 83.78 | C103: Min value: | D103: 7.026333e-06
A104: Max T(K): | B104: 3273.1 | C104: Max value: | D104: 0.0001213868
A106: Coeffs: | B106: 8.386e-07 | C106: 0.6175 | D106: 75.377 | E106: -432.5 | F106: 0
A108: Liquid Viscosity (Pascal-sec) Equation Number: | B108: 101
A110: Min T(K): | B110: 84.09999 | C110: Min value: | D110: 0.0002919431
A111: Max T(K): | B111: 150 | C111: Max value: | D111: 3.810291e-05
A113: Coeffs: | B113: -8.868 | C113: 204.3 | D113: -0.3831 | E113: -1.3e-22 | F113: 10
A115: Vapor Thermal Conductivity (W/m-K) Equation Number: | B115: 102
A117: Min T(K): | B117: 90 | C117: Min value: | D117: 0.003393078
A118: Max T(K): | B118: 7000 | C118: Max value: | D118: 0.1892397
A120: Coeffs: | B120: 0.0001236 | C120: 0.8262 | D120: -132.8 | E120: 16000 | F120: 0
A122: Liquid Thermal Conductivity (W/m-K) Equation Number: | B122: 100
A124: Min T(K): | B124: 83.78 | C124: Min value: | D124: 0.126443
A125: Max T(K): | B125: 150 | C125: Max value: | D125: 0.04178499
A127: Coeffs: | B127: 0.1819 | C127: -0.0003176 | D127: -4.11e-06 | E127: 0 | F127: 0
A129: Liquid Surface Tension (N/m) Equation Number: | B129: 106
A131: Min T(K): | B131: 83.78 | C131: Min value: | D131: 0.01340906
A132: Max T(K): | B132: 150.86 | C132: Max value: | D132: 3.41589e-11
A134: Coeffs: | B134: 0.03823 | C134: 1.2927 | D134: 0 | E134: 0 | F134: 0
A136: Antoine Vapor Pressure (mmHg)
A137: Coefficients: | B137: 15.93
B138: 832.78
B139: 2.361
A141: Polynomial Ideal Gas Heat Capacity (cal/mol-K)
A142: Coefficients: | B142: 4.9647
B143: 0
B144: 0
B145: 0
B146: 0
B147: 0
A149: Two-Term Liquid Viscosity (cP)
A150: Coefficients: | B150: 107.57
B151: 58.76
A153: Two-Term Surface Tension (N/m)
A154: Coefficients: | B154: 0
B155: 0
A157: Henrys Constants
A158: Coefficients: | B158: -10260
B159: -0.00065
B160: -0.0268
B161: 46.8
A163: MSRK Parameters
A164: Coefficients: | B164: 0
B165: 0
A167: UNIFAC/UNIQUAC Sub-Groups: Sub-Group ID Contribution
W180: 23
A181: Lennard-Jones Daten Literatur | C181: Poling, Prausnitz Appendix B | F181: McQuarrie Physical Chemistry S. 663 Tabelle 16.7 | I181: Mourits 1976 | L181: Ebert, Ederer | O181: sigma Å | P181: aus | Q181: miltlere Flüssigdichte | S181: Schmelzenthalpie | U181: Verdampfungswärme | W181: S + V
A182: σ | B182: 2.827 | C182: 3.542 | D182: Å | F182: 341 | G182: pm | I182: 346.5 | J182: pm | L182: 3.405 | M182: Å | O182: =10/(Q182*6.02214086E+23)^(1/3)*100000000 -> 4.081960008 | Q182: =(D54+D55)/2 -> 24.41422 | R182: kmol/m³ | S182: =G15 -> 1182 | T182: =H15 -> kJkmol | U182: =B25 -> 6.52718 | V182: =C25 -> kJ/gmol | W182: =S182+U182*1000 -> 7709.18
A183: ε/k | B183: 59.7 | C183: 93.3 | D183: K | F183: 120 | G183: K | I183: 113.5 | J183: K | L183: 119.8 | M183: K
A185: Lennard-Jones Daten berechnet | C185: Gl. 9-4.8 und 9-4.7 in Poling, Prausnitz S. 9.7 aus krit. Daten | F185: Virial | I185: Gasviskosität | L185: Virialkoeffizient cm³/mol | N185: Poling, Prausnitz
A186: σ | B186: =C186 -> 3.405609098 | C186: =0.809*(B13*1000)^(1/3) -> 3.405609098 | D186: Å | F186: 3.522966927 | I186: 2.054022292
A187: ε/k | B187: =C187 -> 119.7967125 | C187: =B11/1.2593 -> 119.7967125 | D187: K | F187: 111.7302917 | I187: =C183 -> 93.3
A192: Virial/SRK Daten aus Tabelle Virial | B192: Temperatur K | C192: B Virial LJ
B193: 373.15 | C193: -0.9849107939
B194: 378.15 | C194: -0.3774686573
B195: 383.15 | C195: 0.2118349198
B196: 388.15 | C196: 0.783763892
B197: 393.15 | C197: 1.339040338
B198: 398.15 | C198: 1.878347279
B199: 403.15 | C199: 2.402331278
B200: 408.15 | C200: 2.911604828
B201: 413.15 | C201: 3.406748563
B202: 418.15 | C202: 3.888313289
B203: 423.15 | C203: 4.356821874
B204: 428.15 | C204: 4.812770986
B205: 433.15 | C205: 5.256632708
A206: Lennard-Jones Literatur | B206: 438.15 | C206: 5.688856037
B207: 443.15 | C207: 6.109868267
B208: 448.15 | C208: 6.520076286
B209: 453.15 | C209: 6.919867768
B210: 458.15 | C210: 7.309612295
B211: 463.15 | C211: 7.689662389
B212: 468.15 | C212: 8.060354487
B213: 473.15 | C213: 8.422009779
A218: a (SRK) | B218: =pSRKabalpha($B$11,$B$12,$B$13,298,1,1) -> 1.37312287 | D218: 2023-10-10
A219: b (SRK | B219: =pSRKabalpha($B$11,$B$12,$B$13,298,1,2) -> 0.02218734172 | C219: l
A220: alpha | B220: =pSRKabalpha($B$11,$B$12,$B$13,298,1,3) -> 0.5748097088
A221: P (SRK) | B221: =pSRKabalpha($B$11,$B$12,$B$13,298,1,0) -> 24.56715819
A222: sigma | B222: =(B219/6.02214076E+23)^(1/3)*10 -> 3.327500453e-08 | C222: cm
A223: A stoß | B223: =B222^12*298*1.380649E-16 -> 7.58083468e-104
A230: Brechungsindes und Temperatur | B230: 1.233
A231: Dichte bei der Temperatur des Brechungsindex | B231: 1.638969825
A232: R0 | B232: 4.143 | C232: 4.788486751
A233: α0/4πε0 | B233: 1.6264e-24
A234: νg | B234: 1981000000000000
A240: ϕOrientierung
A241: ϕInduktion
A242: ϕDispersion | B242: 2.604093057e-59
A243: B aus ϕOrientierung+ϕInduktion+ϕDispersion in erg.cm6 | B243: 2.604093057e-59
A245: A aus sigma, eps von Poling, Prausnitz in erg.cm^12 | B245: 2.009127971e-103
A246: B aus sigma, eps von Poling, Prausnitz in erg.cm^6
B247: 1.278159254e-102

Sheet Kr
A1: CHEMCAD | B1: 6.5.7 | C1: Page | D1: 1
A3: Simulation name: | B3: LJ Parameter | C3: Date: | D3: 2021-12-27 | E3: Time: | F3: 17:16:14
A5: Physical Properties for | B5: Krypton | C5: (ID | D5: 971
A7: Formula: | B7: Kr
A9: Molecular Weight : | B9: 83.8
A11: Critical Temperature : | B11: 209.35 | C11: K
A12: Critical Pressure : | B12: 55.02 | C12: bar
A13: Critical Volume : | B13: 0.0912 | C13: m3/kmol
A15: Melting point : | B15: 115.78 | C15: K | E15: heat of fusion | G15: 1640.14 | H15: kJkmol | I15: (Schmelzenthalpie)
A16: Normal boiling point : | B16: 119.8 | C16: K
A17: IG heat of formation : | B17: 0 | C17: kJ/gmol
A18: IG Gibbs of formation : | B18: 0 | C18: kJ/gmol
A19: Acentric factor : | B19: 0
A20: Solubility parameter : | B20: 15276 | C20: (J/m3)**0.5
A21: Dipole moment : | B21: 0 | C21: C.m
A22: Radius of Gyration : | B22: 0 | C22: m
A24: Mean avg. boiling point : | B24: 0 | C24: K
A25: Heat of vaporization : | B25: 0 | C25: kJ/gmol
A26: API net heating value : | B26: 0 | C26: kJ/gmol
A27: API gross heating value : | B27: 0 | C27: kJ/gmol
A28: Liquid volume constant : | B28: 0 | C28: cc/mol
A29: Molecular diameter : | B29: 0 | C29: angstroms
A30: Modified acentric factor : | B30: 0
A31: UNIQUAC area parameter : | B31: 0
A32: UNIQUAC volume parameter : | B32: 0
A33: Wilson molar volume : | B33: 0
A34: Stiel polar factor : | B34: 0
A35: Rackett constant : | B35: 0
A36: Polar parameter : | B36: 0
A37: Eps/K : | B37: 0
A38: Watson factor : | B38: 0
A39: API gravity : | B39: 0
A40: Specific gravity 60 F : | B40: 1.395571
A42: Electrolyte Data (at 25C):
A44: Electrolyte state : | B44: 0
A45: Electrolyte type : | B45: 0
A46: Electrolyte charge : | B46: 0
A47: Std heat of formation : | B47: 0 | C47: kJ/gmol
A48: Std Gibbs of formation : | B48: 0 | C48: kJ/gmol
A49: Standard entropy : | B49: 0 | C49: kJ/kg-K
A50: Standard heat capacity : | B50: 0 | C50: kJ/kg-K
A52: Liquid Density (kmol/m3) Equation Number: | B52: 105
A54: Min T(K): | B54: 115.78 | C54: Min value: | D54: 29.22754
A55: Max T(K): | B55: 209.35 | C55: Max value: | D55: 11.06016
A57: Coeffs: | B57: 3.1593 | C57: 0.2884 | D57: 209.35 | E57: 0.2939 | F57: 0
A59: Solid Density (kmol/m3) Equation Number: | B59: 100
A61: Min T(K): | B61: 115.76 | C61: Min value: | D61: 33.723
A62: Max T(K): | B62: 115.76 | C62: Max value: | D62: 33.723
A64: Coeffs: | B64: 33.723 | C64: 0 | D64: 0 | E64: 0 | F64: 0
A66: Vapor Pressure (Pascals) Equation Number: | B66: 101
A68: Min T(K): | B68: 115.78 | C68: Min value: | D68: 73505.69
A69: Max T(K): | B69: 209.35 | C69: Max value: | D69: 5498309
A71: Coeffs: | B71: 26.224 | C71: -1226.2 | D71: -0.93273 | E71: 1.635e-15 | F71: 6
A73: Heat of Vaporization (J/kmol) Equation Number: | B73: 106
A75: Min T(K): | B75: 115.78 | C75: Min value: | D75: 9197083
A76: Max T(K): | B76: 209.35 | C76: Max value: | D76: 55082.67
A78: Coeffs: | B78: 10118000 | C78: -0.13508 | D78: 0.45852 | E78: 0 | F78: 0
A80: Ideal Gas Heat Capacity (J/kmol-K) Equation Number: | B80: 100
A82: Min T(K): | B82: 100 | C82: Min value: | D82: 20786
A83: Max T(K): | B83: 6200 | C83: Max value: | D83: 20786
A85: Coeffs: | B85: 20786 | C85: 0 | D85: 0 | E85: 0 | F85: 0
A87: Liquid Heat Capacity (J/kmol-K) Equation Number: | B87: 100
A89: Min T(K): | B89: 115.78 | C89: Min value: | D89: 44150.44
A90: Max T(K): | B90: 125 | C90: Max value: | D90: 45255
A92: Coeffs: | B92: 30280 | C92: 119.8 | D92: 0 | E92: 0 | F92: 0
A94: Solid Heat Capacity (J/kmol-K) Equation Number: | B94: 0
A96: Min T(K):
A97: Max T(K):
A99: Coeffs: | B99: 0 | C99: 0 | D99: 0 | E99: 0 | F99: 0
A101: Vapor Viscosity (Pascal-sec) Equation Number: | B101: 102
A103: Min T(K): | B103: 100 | C103: Min value: | D103: 8.951137e-06
A104: Max T(K): | B104: 1500 | C104: Max value: | D104: 8.355223e-05
A106: Coeffs: | B106: 3.236e-06 | C106: 0.4659 | D106: 256.58 | E106: -4760 | F106: 0
A108: Liquid Viscosity (Pascal-sec) Equation Number: | B108: 100
A110: Min T(K): | B110: 119.75 | C110: Min value: | D110: 0.000431
A111: Max T(K): | B111: 119.75 | C111: Max value: | D111: 0.000431
A113: Coeffs: | B113: 0.000431 | C113: 0 | D113: 0 | E113: 0 | F113: 0
A115: Vapor Thermal Conductivity (W/m-K) Equation Number: | B115: 102
A117: Min T(K): | B117: 120 | C117: Min value: | D117: 0.003968217
A118: Max T(K): | B118: 2000 | C118: Max value: | D118: 0.03832939
A120: Coeffs: | B120: 0.0007293 | C120: 0.533 | D120: 188.56 | E120: -3074.3 | F120: 0
A122: Liquid Thermal Conductivity (W/m-K) Equation Number: | B122: 100
A124: Min T(K): | B124: 115.78 | C124: Min value: | D124: 0.09449612
A125: Max T(K): | B125: 210 | C125: Max value: | D125: 0.02849501
A127: Coeffs: | B127: 0.1756 | C127: -0.0007005 | D127: 0 | E127: 0 | F127: 0
A129: Liquid Surface Tension (N/m) Equation Number: | B129: 106
A131: Min T(K): | B131: 115.78 | C131: Min value: | D131: 0.0164113
A132: Max T(K): | B132: 209.35 | C132: Max value: | D132: 1.056851e-10
A134: Coeffs: | B134: 0.04425 | C134: 1.2317 | D134: 0 | E134: 0 | F134: 0
A136: Antoine Vapor Pressure (mmHg)
A137: Coefficients: | B137: 0
B138: 0
B139: 0
A141: Polynomial Ideal Gas Heat Capacity (cal/mol-K)
A142: Coefficients: | B142: 4.96787
B143: -7.90636e-15
B144: 8.54843e-18
B145: -3.54232e-21
B146: 6.22016e-25
B147: -3.89566e-29
A149: Two-Term Liquid Viscosity (cP)
A150: Coefficients: | B150: 0
B151: 0
A153: Two-Term Surface Tension (N/m)
A154: Coefficients: | B154: 0
B155: 0
A157: Henrys Constants
A158: Coefficients: | B158: 0
B159: 0
B160: 0
B161: 0
A163: MSRK Parameters
A164: Coefficients: | B164: 0
B165: 0
A167: UNIFAC/UNIQUAC Sub-Groups: Sub-Group ID Contribution
W180: 23
A181: Lennard-Jones Daten Literatur | C181: Poling, Prausnitz Appendix B | F181: McQuarrie Physical Chemistry S. 663 Tabelle 16.7 | I181: Mourits 1976 | L181: Ebert, Ederer | O181: sigma Å | P181: aus | Q181: miltlere Flüssigdichte | S181: Schmelzenthalpie | U181: Verdampfungswärme | W181: S + V
A182: σ | B182: 2.827 | C182: 3.655 | D182: Å | F182: 383 | G182: pm | I182: 366.2 | J182: pm | L182: 3.61 | M182: Å | O182: =10/(Q182*6.02214086E+23)^(1/3)*100000000 -> 4.352133451 | Q182: =(D54+D55)/2 -> 20.14385 | R182: kmol/m³ | S182: =G15 -> 1640.14 | T182: =H15 -> kJkmol | U182: =B25 -> 0 | V182: =C25 -> kJ/gmol | W182: =S182+U182*1000 -> 1640.14
A183: ε/k | B183: 59.7 | C183: 178.6 | D183: K | F183: 164 | G183: K | I183: 178 | J183: K | L183: 171 | M183: K
A185: Lennard-Jones Daten berechnet | C185: Gl. 9-4.8 und 9-4.7 in Poling, Prausnitz S. 9.7 aus krit. Daten | F185: Virial | I185: Gasviskosität | L185: Virialkoeffizient cm³/mol | N185: Poling, Prausnitz
A186: σ | B186: =C186 -> 3.641498492 | C186: =0.809*(B13*1000)^(1/3) -> 3.641498492 | D186: Å | F186: 3.908101437 | I186: 1.572814105
A187: ε/k | B187: =C187 -> 166.243151 | C187: =B11/1.2593 -> 166.243151 | D187: K | F187: 153.316529 | I187: 59.7
A192: Virial/SRK Daten aus Tabelle Virial | B192: Temperatur K | C192: B Virial LJ
B193: 373.15 | C193: -25.90845444
B194: 378.15 | C194: -24.65964378
B195: 383.15 | C195: -23.44827388
B196: 388.15 | C196: -22.27273643
B197: 393.15 | C197: -21.13151333
B198: 398.15 | C198: -20.02317048
B199: 403.15 | C199: -18.94635206
B200: 408.15 | C200: -17.89977527
B201: 413.15 | C201: -16.88222548
B202: 418.15 | C202: -15.8925518
A203: Lennard-Jones Literatur | B203: 423.15 | C203: -14.92966294
B204: 428.15 | C204: -13.99252342
B205: 433.15 | C205: -13.08015006
B206: 438.15 | C206: -12.19160872
B207: 443.15 | C207: -11.32601129
B208: 448.15 | C208: -10.48251291
B209: 453.15 | C209: -9.660309336
B210: 458.15 | C210: -8.858634599
B211: 463.15 | C211: -8.076758708
B212: 468.15 | C212: -7.313985589
B213: 473.15 | C213: -6.569651143
A218: a (SRK) | B218: =pSRKabalpha($B$11,$B$12,$B$13,298,1,1) -> 2.354017854
A219: b (SRK | B219: =pSRKabalpha($B$11,$B$12,$B$13,298,1,2) -> 0.02740985651
A220: alpha | B220: =pSRKabalpha($B$11,$B$12,$B$13,298,1,3) -> 0.7741963467
A221: P (SRK) | B221: =pSRKabalpha($B$11,$B$12,$B$13,298,1,0) -> 23.70152395
A230: Brechungsindes und Temperatur
A231: Dichte bei der Temperatur des Brechungsindex | B231: 3.438111327
A232: R0 | B232: 6.256
A233: α0/4πε0 | B233: 2.4559e-24
A234: νg | B234: 1612000000000000
A240: ϕOrientierung
A241: ϕInduktion
A242: ϕDispersion | B242: 4.831741469e-59
A243: B aus ϕOrientierung+ϕInduktion+ϕDispersion in erg.cm6 | B243: 4.831741469e-59
A245: A aus sigma, eps von Poling, Prausnitz in erg.cm^12 | B245: 5.606260891e-103
A246: B aus sigma, eps von Poling, Prausnitz in erg.cm^6
B247: 4.120277048e-102

Sheet Xe
A1: CHEMCAD | B1: 6.5.7 | C1: Page | D1: 1
A3: Simulation name: | B3: LJ Parameter | C3: Date: | D3: 2021-12-27 | E3: Time: | F3: 17:16:17
A5: Physical Properties for | B5: Xenon | C5: (ID | D5: 994
A7: Formula: | B7: Xe
A9: Molecular Weight : | B9: 131.29
A11: Critical Temperature : | B11: 289.74 | C11: K
A12: Critical Pressure : | B12: 58.404 | C12: bar
A13: Critical Volume : | B13: 0.118 | C13: m3/kmol
A15: Melting point : | B15: 161.36 | C15: K | E15: heat of fusion | G15: 2294.96 | H15: kJkmol | I15: (Schmelzenthalpie)
A16: Normal boiling point : | B16: 165.03 | C16: K
A17: IG heat of formation : | B17: 0 | C17: kJ/gmol
A18: IG Gibbs of formation : | B18: 0 | C18: kJ/gmol
A19: Acentric factor : | B19: 0
A20: Solubility parameter : | B20: 15909 | C20: (J/m3)**0.5
A21: Dipole moment : | B21: 0 | C21: C.m
A22: Radius of Gyration : | B22: 0 | C22: m
A24: Mean avg. boiling point : | B24: 0 | C24: K
A25: Heat of vaporization : | B25: 0 | C25: kJ/gmol
A26: API net heating value : | B26: 0 | C26: kJ/gmol
A27: API gross heating value : | B27: 0 | C27: kJ/gmol
A28: Liquid volume constant : | B28: 0 | C28: cc/mol
A29: Molecular diameter : | B29: 0 | C29: angstroms
A30: Modified acentric factor : | B30: 0
A31: UNIQUAC area parameter : | B31: 0
A32: UNIQUAC volume parameter : | B32: 0
A33: Wilson molar volume : | B33: 0
A34: Stiel polar factor : | B34: 0
A35: Rackett constant : | B35: 0
A36: Polar parameter : | B36: 0
A37: Eps/K : | B37: 0
A38: Watson factor : | B38: 0
A39: API gravity : | B39: 0
A40: Specific gravity 60 F : | B40: 1.41733
A42: Electrolyte Data (at 25C):
A44: Electrolyte state : | B44: 0
A45: Electrolyte type : | B45: 0
A46: Electrolyte charge : | B46: 0
A47: Std heat of formation : | B47: 0 | C47: kJ/gmol
A48: Std Gibbs of formation : | B48: 0 | C48: kJ/gmol
A49: Standard entropy : | B49: 0 | C49: kJ/kg-K
A50: Standard heat capacity : | B50: 0 | C50: kJ/kg-K
A52: Liquid Density (kmol/m3) Equation Number: | B52: 105
A54: Min T(K): | B54: 161.36 | C54: Min value: | D54: 22.68465
A55: Max T(K): | B55: 289.74 | C55: Max value: | D55: 8.427782
A57: Coeffs: | B57: 2.4063 | C57: 0.28552 | D57: 289.74 | E57: 0.28967 | F57: 0
A59: Solid Density (kmol/m3) Equation Number: | B59: 100
A61: Min T(K): | B61: 161.36 | C61: Min value: | D61: 26.963
A62: Max T(K): | B62: 161.36 | C62: Max value: | D62: 26.963
A64: Coeffs: | B64: 26.963 | C64: 0 | D64: 0 | E64: 0 | F64: 0
A66: Vapor Pressure (Pascals) Equation Number: | B66: 101
A68: Min T(K): | B68: 161.36 | C68: Min value: | D68: 82577.04
A69: Max T(K): | B69: 289.74 | C69: Max value: | D69: 5838706
A71: Coeffs: | B71: 40.935 | C71: -1865.9 | D71: -3.9013 | E71: 0.011049 | F71: 1
A73: Heat of Vaporization (J/kmol) Equation Number: | B73: 106
A75: Min T(K): | B75: 161.36 | C75: Min value: | D75: 12712900
A76: Max T(K): | B76: 289.74 | C76: Max value: | D76: 101403
A78: Coeffs: | B78: 12643000 | C78: -0.3916 | D78: 0.691 | E78: 0 | F78: 0
A80: Ideal Gas Heat Capacity (J/kmol-K) Equation Number: | B80: 100
A82: Min T(K): | B82: 50 | C82: Min value: | D82: 20786
A83: Max T(K): | B83: 1500 | C83: Max value: | D83: 20786
A85: Coeffs: | B85: 20786 | C85: 0 | D85: 0 | E85: 0 | F85: 0
A87: Liquid Heat Capacity (J/kmol-K) Equation Number: | B87: 100
A89: Min T(K): | B89: 163.15 | C89: Min value: | D89: 44660
A90: Max T(K): | B90: 166.48 | C90: Max value: | D90: 44660
A92: Coeffs: | B92: 44660 | C92: 0 | D92: 0 | E92: 0 | F92: 0
A94: Solid Heat Capacity (J/kmol-K) Equation Number: | B94: 0
A96: Min T(K):
A97: Max T(K):
A99: Coeffs: | B99: 0 | C99: 0 | D99: 0 | E99: 0 | F99: 0
A101: Vapor Viscosity (Pascal-sec) Equation Number: | B101: 102
A103: Min T(K): | B103: 100 | C103: Min value: | D103: 7.021742e-06
A104: Max T(K): | B104: 1600 | C104: Max value: | D104: 8.905818e-05
A106: Coeffs: | B106: 1.386e-06 | C106: 0.579 | D106: 184 | E106: 0 | F106: 0
A108: Liquid Viscosity (Pascal-sec) Equation Number: | B108: 100
A110: Min T(K): | B110: 165.02 | C110: Min value: | D110: 0.000431
A111: Max T(K): | B111: 165.02 | C111: Max value: | D111: 0.000431
A113: Coeffs: | B113: 0.000431 | C113: 0 | D113: 0 | E113: 0 | F113: 0
A115: Vapor Thermal Conductivity (W/m-K) Equation Number: | B115: 102
A117: Min T(K): | B117: 165 | C117: Min value: | D117: 0.003123476
A118: Max T(K): | B118: 1500 | C118: Max value: | D118: 0.02193112
A120: Coeffs: | B120: 0.0001547 | C120: 0.6869 | D120: 107.6 | E120: 0 | F120: 0
A122: Liquid Thermal Conductivity (W/m-K) Equation Number: | B122: 100
A124: Min T(K): | B124: 161.36 | C124: Min value: | D124: 0.0734452
A125: Max T(K): | B125: 270 | C125: Max value: | D125: 0.0302445
A127: Coeffs: | B127: 0.13761 | C127: -0.00039765 | D127: 0 | E127: 0 | F127: 0
A129: Liquid Surface Tension (N/m) Equation Number: | B129: 106
A131: Min T(K): | B131: 161.36 | C131: Min value: | D131: 0.01911052
A132: Max T(K): | B132: 289.74 | C132: Max value: | D132: 5.681879e-11
A134: Coeffs: | B134: 0.054299 | C134: 1.2829 | D134: 0 | E134: 0 | F134: 0
A136: Antoine Vapor Pressure (mmHg)
A137: Coefficients: | B137: 0
B138: 0
B139: 0
A141: Polynomial Ideal Gas Heat Capacity (cal/mol-K)
A142: Coefficients: | B142: 4.96787
B143: -1.25292e-14
B144: 5.41621e-17
B145: -9.15684e-20
B146: 6.60218e-23
B147: -1.70231e-26
A149: Two-Term Liquid Viscosity (cP)
A150: Coefficients: | B150: 0
B151: 0
A153: Two-Term Surface Tension (N/m)
A154: Coefficients: | B154: 0
B155: 0
A157: Henrys Constants
A158: Coefficients: | B158: 0
B159: 0
B160: 0
B161: 0
A163: MSRK Parameters
A164: Coefficients: | B164: 0.4304
B165: 0.0834
A167: UNIFAC/UNIQUAC Sub-Groups: Sub-Group ID Contribution
W180: 23
A181: Lennard-Jones Daten Literatur | C181: Poling, Prausnitz Appendix B | F181: McQuarrie Physical Chemistry S. 663 Tabelle 16.7 | I181: Mourits 1976 | L181: Ebert, Ederer | O181: sigma Å | P181: aus | Q181: miltlere Flüssigdichte | S181: Schmelzenthalpie | U181: Verdampfungswärme | W181: S + V
A182: σ | B182: 2.827 | C182: 4.047 | D182: Å | F182: 406 | G182: pm | I182: 405 | J182: pm | L182: 4.1 | M182: Å | O182: =10/(Q182*6.02214086E+23)^(1/3)*100000000 -> 4.743676256 | Q182: =(D54+D55)/2 -> 15.556216 | R182: kmol/m³ | S182: =G15 -> 2294.96 | T182: =H15 -> kJkmol | U182: =B25 -> 0 | V182: =C25 -> kJ/gmol | W182: =S182+U182*1000 -> 2294.96
A183: ε/k | B183: 59.7 | C183: 231 | D183: K | F183: 229 | G183: K | I183: 230.2 | J183: K | L183: 221 | M183: K
A185: Lennard-Jones Daten berechnet | C185: Gl. 9-4.8 und 9-4.7 in Poling, Prausnitz S. 9.7 aus krit. Daten | F185: Virial | I185: Gasviskosität | L185: Virialkoeffizient cm³/mol | N185: Poling, Prausnitz
A186: σ | B186: =C186 -> 3.968038318 | C186: =0.809*(B13*1000)^(1/3) -> 3.968038318 | D186: Å | F186: 4.208069429 | I186: 1.84293111
A187: ε/k | B187: =C187 -> 230.0802033 | C187: =B11/1.2593 -> 230.0802033 | D187: K | F187: 216.3719944 | I187: 59.7
A192: Virial/SRK Daten aus Tabelle Virial | B192: Temperatur K | C192: B Virial LJ
B193: 373.15 | C193: -83.8772974
B194: 378.15 | C194: -81.41339527
B195: 383.15 | C195: -79.02526312
B196: 388.15 | C196: -76.70952589
B197: 393.15 | C197: -74.46300518
B198: 398.15 | C198: -72.2827051
B199: 403.15 | C199: -70.16579945
B200: 408.15 | C200: -68.10961986
B201: 413.15 | C201: -66.11164494
B202: 418.15 | C202: -64.16949034
A203: Lennard-Jones Literatur | B203: 423.15 | C203: -62.28089956
B204: 428.15 | C204: -60.44373555
B205: 433.15 | C205: -58.65597287
B206: 438.15 | C206: -56.91569055
B207: 443.15 | C207: -55.22106547
B208: 448.15 | C208: -53.57036616
B209: 453.15 | C209: -51.96194719
B210: 458.15 | C210: -50.39424386
B211: 463.15 | C211: -48.86576733
B212: 468.15 | C212: -47.37510009
B213: 473.15 | C213: -45.92089175
A218: a (SRK) | B218: =pSRKabalpha($B$11,$B$12,$B$13,298,1,1) -> 4.247747837
A219: b (SRK | B219: =pSRKabalpha($B$11,$B$12,$B$13,298,1,2) -> 0.03573717727
A220: alpha | B220: =pSRKabalpha($B$11,$B$12,$B$13,298,1,3) -> 0.9813119785
A221: P (SRK) | B221: =pSRKabalpha($B$11,$B$12,$B$13,298,1,0) -> 21.67083878
A230: Brechungsindes und Temperatur | B230: 1.0007055
A231: Dichte bei der Temperatur des Brechungsindex
A232: R0 | B232: 10.1553
A233: α0/4πε0 | B233: 3.9989e-24
A234: νg | B234: 1263000000000000
A240: ϕOrientierung
A241: ϕInduktion
A242: ϕDispersion | B242: 1.003694932e-58
A243: B aus ϕOrientierung+ϕInduktion+ϕDispersion in erg.cm6 | B243: 1.003694932e-58
A245: A aus sigma, eps von Poling, Prausnitz in erg.cm^12 | B245: 2.462372241e-102
A246: B aus sigma, eps von Poling, Prausnitz in erg.cm^6
B247: 6.352215212e-102

Sheet O2
A1: CHEMCAD | B1: 6.5.7 | C1: Page | D1: 1
A3: Simulation name: | B3: LJ Parameter | C3: Date: | D3: 2021-12-27 | E3: Time: | F3: 17:16:31
A5: Physical Properties for | B5: Oxygen | C5: (ID | D5: 47
A7: Formula: | B7: O2
A9: Molecular Weight : | B9: 31.999
A11: Critical Temperature : | B11: 154.58 | C11: K
A12: Critical Pressure : | B12: 50.7638 | C12: bar
A13: Critical Volume : | B13: 0.07340001 | C13: m3/kmol
A15: Melting point : | B15: 54.36001 | C15: K | E15: heat of fusion | G15: 444 | H15: kJkmol | I15: (Schmelzenthalpie)
A16: Normal boiling point : | B16: 90.17001 | C16: K
A17: IG heat of formation : | B17: 0 | C17: kJ/gmol
A18: IG Gibbs of formation : | B18: 0 | C18: kJ/gmol
A19: Acentric factor : | B19: 0.019
A20: Solubility parameter : | B20: 8181.9 | C20: (J/m3)**0.5
A21: Dipole moment : | B21: 0 | C21: C.m
A22: Radius of Gyration : | B22: 6.8e-11 | C22: m
A24: Mean avg. boiling point : | B24: 0 | C24: K
A25: Heat of vaporization : | B25: 6.820066 | C25: kJ/gmol
A26: API net heating value : | B26: 0 | C26: kJ/gmol
A27: API gross heating value : | B27: 0 | C27: kJ/gmol
A28: Liquid volume constant : | B28: 2.871 | C28: cc/mol
A29: Molecular diameter : | B29: 0 | C29: angstroms
A30: Modified acentric factor : | B30: 0
A31: UNIQUAC area parameter : | B31: 0
A32: UNIQUAC volume parameter : | B32: 0
A33: Wilson molar volume : | B33: 0
A34: Stiel polar factor : | B34: 0
A35: Rackett constant : | B35: 0.2908
A36: Polar parameter : | B36: 0
A37: Eps/K : | B37: 0
A38: Watson factor : | B38: 4.84
A39: API gravity : | B39: 0
A40: Specific gravity 60 F : | B40: 1.1275
A42: Electrolyte Data (at 25C):
A44: Electrolyte state : | B44: 0
A45: Electrolyte type : | B45: 0
A46: Electrolyte charge : | B46: 0
A47: Std heat of formation : | B47: 0 | C47: kJ/gmol
A48: Std Gibbs of formation : | B48: 0 | C48: kJ/gmol
A49: Standard entropy : | B49: 0 | C49: kJ/kg-K
A50: Standard heat capacity : | B50: 0 | C50: kJ/kg-K
A52: Liquid Density (kmol/m3) Equation Number: | B52: 105
A54: Min T(K): | B54: 54.35 | C54: Min value: | D54: 40.76989
A55: Max T(K): | B55: 154.58 | C55: Max value: | D55: 13.7328
A57: Coeffs: | B57: 3.9143 | C57: 0.28772 | D57: 154.58 | E57: 0.2924 | F57: 0
A59: Solid Density (kmol/m3) Equation Number: | B59: 100
A61: Min T(K): | B61: 20.65 | C61: Min value: | D61: 44.552
A62: Max T(K): | B62: 20.65 | C62: Max value: | D62: 44.552
A64: Coeffs: | B64: 44.552 | C64: 0 | D64: 0 | E64: 0 | F64: 0
A66: Vapor Pressure (Pascals) Equation Number: | B66: 101
A68: Min T(K): | B68: 54.35 | C68: Min value: | D68: 146.0215
A69: Max T(K): | B69: 154.58 | C69: Max value: | D69: 5041629
A71: Coeffs: | B71: 52.486 | C71: -1213.4 | D71: -6.7062 | E71: 0.029764 | F71: 1
A73: Heat of Vaporization (J/kmol) Equation Number: | B73: 106
A75: Min T(K): | B75: 54.35 | C75: Min value: | D75: 7735075
A76: Max T(K): | B76: 154.58 | C76: Max value: | D76: 52632.78
A78: Coeffs: | B78: 8040000 | C78: -0.098 | D78: 0.599 | E78: -0.189 | F78: 0
A80: Ideal Gas Heat Capacity (J/kmol-K) Equation Number: | B80: 107
A82: Min T(K): | B82: 50 | C82: Min value: | D82: 29103
A83: Max T(K): | B83: 1500 | C83: Max value: | D83: 36533.39
A85: Coeffs: | B85: 29103 | C85: 10040 | D85: 2526.5 | E85: 9356 | F85: 1153.8
A87: Liquid Heat Capacity (J/kmol-K) Equation Number: | B87: 100
A89: Min T(K): | B89: 54.35 | C89: Min value: | D89: 53323.71
A90: Max T(K): | B90: 105 | C90: Max value: | D90: 54647.94
A92: Coeffs: | B92: 68337 | C92: -613.54 | D92: 7.928 | E92: -0.03168 | F92: 0
A94: Solid Heat Capacity (J/kmol-K) Equation Number: | B94: 100
A96: Min T(K): | B96: 13.46 | C96: Min value: | D96: 4761.339
A97: Max T(K): | B97: 43.78 | C97: Max value: | D97: 46572.61
A99: Coeffs: | B99: -13800 | C99: 1379 | D99: 0 | E99: 0 | F99: 0
A101: Vapor Viscosity (Pascal-sec) Equation Number: | B101: 102
A103: Min T(K): | B103: 80 | C103: Min value: | D103: 6.056613e-06
A104: Max T(K): | B104: 1500 | C104: Max value: | D104: 6.398721e-05
A106: Coeffs: | B106: 8.038e-07 | C106: 0.60478 | D106: 70.3 | E106: 0 | F106: 0
A108: Liquid Viscosity (Pascal-sec) Equation Number: | B108: 101
A110: Min T(K): | B110: 54.36 | C110: Min value: | D110: 0.0008497391
A111: Max T(K): | B111: 150 | C111: Max value: | D111: 5.573069e-05
A113: Coeffs: | B113: -17.27 | C113: 287.5 | D113: 1.229 | E113: -1.04e-22 | F113: 10
A115: Vapor Thermal Conductivity (W/m-K) Equation Number: | B115: 102
A117: Min T(K): | B117: 80 | C117: Min value: | D117: 0.00657442
A118: Max T(K): | B118: 1500 | C118: Max value: | D118: 0.1012589
A120: Coeffs: | B120: 0.0004943 | C120: 0.734 | D120: 70 | E120: 0 | F120: 0
A122: Liquid Thermal Conductivity (W/m-K) Equation Number: | B122: 100
A124: Min T(K): | B124: 60 | C124: Min value: | D124: 0.185202
A125: Max T(K): | B125: 154.58 | C125: Max value: | D125: 0.05312891
A127: Coeffs: | B127: 0.2549 | C127: -0.0012685 | D127: 3.062e-06 | E127: -2.1348e-08 | F127: 0
A129: Liquid Surface Tension (N/m) Equation Number: | B129: 106
A131: Min T(K): | B131: 54.35 | C131: Min value: | D131: 0.02250047
A132: Max T(K): | B132: 154.58 | C132: Max value: | D132: 1.21713e-10
A134: Coeffs: | B134: 0.038066 | C134: 1.2136 | D134: 0 | E134: 0 | F134: 0
A136: Antoine Vapor Pressure (mmHg)
A137: Coefficients: | B137: 15.699
B138: 780.26
B139: -4.176
A141: Polynomial Ideal Gas Heat Capacity (cal/mol-K)
A142: Coefficients: | B142: 6.995
B143: -0.001335
B144: 6.1854e-06
B145: -3.382e-09
B146: -8.1356e-13
B147: 7.0823e-16
A149: Two-Term Liquid Viscosity (cP)
A150: Coefficients: | B150: 85.68
B151: 51.5
A153: Two-Term Surface Tension (N/m)
A154: Coefficients: | B154: 0
B155: 0
A157: Henrys Constants
A158: Coefficients: | B158: -6137
B159: 3.555
B160: -0.0167
B161: 11.466
A163: MSRK Parameters
A164: Coefficients: | B164: 0.4871
B165: 0.0717
A167: UNIFAC/UNIQUAC Sub-Groups: Sub-Group ID Contribution
W180: 23
A181: Lennard-Jones Daten Literatur | C181: Poling, Prausnitz Appendix B | F181: McQuarrie Physical Chemistry S. 663 Tabelle 16.7 | I181: Mourits 1976 | L181: Ebert, Ederer | O181: sigma Å | P181: aus | Q181: miltlere Flüssigdichte | S181: Schmelzenthalpie | U181: Verdampfungswärme | W181: S + V
A182: σ | B182: 2.827 | C182: 3.467 | D182: Å | F182: 358 | G182: pm | I182: 348 | J182: pm | L182: 3.58 | M182: Å | O182: =10/(Q182*6.02214086E+23)^(1/3)*100000000 -> 3.935081361 | Q182: =(D54+D55)/2 -> 27.251345 | R182: kmol/m³ | S182: =G15 -> 444 | T182: =H15 -> kJkmol | U182: =B25 -> 6.820066 | V182: =C25 -> kJ/gmol | W182: =S182+U182*1000 -> 7264.066
A183: ε/k | B183: 59.7 | C183: 106.7 | D183: K | F183: 118 | G183: K | I183: 102.6 | J183: K | L183: 117.5 | M183: K
A185: Lennard-Jones Daten berechnet | C185: Gl. 9-4.8 und 9-4.7 in Poling, Prausnitz S. 9.7 aus krit. Daten | F185: Virial | I185: Gasviskosität | L185: Virialkoeffizient cm³/mol | N185: Poling, Prausnitz
A186: σ | B186: =C186 -> 3.387249817 | C186: =0.809*(B13*1000)^(1/3) -> 3.387249817 | D186: Å | F186: 3.543239243 | I186: 1.381165225
A187: ε/k | B187: =C187 -> 122.7507345 | C187: =B11/1.2593 -> 122.7507345 | D187: K | F187: 111.8569423 | I187: 59.7
A192: Virial/SRK Daten aus Tabelle Virial | B192: Temperatur K | C192: B Virial LJ
B193: 373.15 | C193: -1.055102912
B194: 378.15 | C194: -0.4362085853
B195: 383.15 | C195: 0.1642055446
B196: 388.15 | C196: 0.7469178606
B197: 393.15 | C197: 1.312664075
B198: 398.15 | C198: 1.862140105
B199: 403.15 | C199: 2.396004717
B200: 408.15 | C200: 2.914881961
B201: 413.15 | C201: 3.419363427
B202: 418.15 | C202: 3.910010313
B203: 423.15 | C203: 4.387355347
B204: 428.15 | C204: 4.851904565
B205: 433.15 | C205: 5.30413895
B206: 438.15 | C206: 5.744515964
B207: 443.15 | C207: 6.173470957
B208: 448.15 | C208: 6.591418483
B209: 453.15 | C209: 6.998753524
B210: 458.15 | C210: 7.395852624
B211: 463.15 | C211: 7.783074947
B212: 468.15 | C212: 8.160763267
B213: 473.15 | C213: 8.529244807
A218: a (SRK) | B218: =pSRKabalpha($B$11,$B$12,$B$13,298,1,1) -> 1.391031259
A219: b (SRK | B219: =pSRKabalpha($B$11,$B$12,$B$13,298,1,2) -> 0.02193580423
A220: alpha | B220: =pSRKabalpha($B$11,$B$12,$B$13,298,1,3) -> 0.5914097977
A221: P (SRK) | B221: =pSRKabalpha($B$11,$B$12,$B$13,298,1,0) -> 24.52778285
A230: Brechungsindes und Temperatur | B230: 1.0002706
A231: Dichte bei der Temperatur des Brechungsindex | B231: 1.31284158
A232: R0 | B232: 3.965
A233: α0/4πε0 | B233: 1.561e-24
A234: νg | B234: 2022000000000000
A240: ϕOrientierung
A241: ϕInduktion
A242: ϕDispersion | B242: 2.448523351e-59
A243: B aus ϕOrientierung+ϕInduktion+ϕDispersion in erg.cm6 | B243: 2.448523351e-59
A245: A aus sigma, eps von Poling, Prausnitz in erg.cm^12 | B245: 1.777271568e-103
A246: B aus sigma, eps von Poling, Prausnitz in erg.cm^6
B247: 7.361469477e-103

Sheet N2
A1: CHEMCAD | B1: 6.5.7 | C1: Page | D1: 1
A3: Simulation name: | B3: LJ Parameter | C3: Date: | D3: 2021-12-27 | E3: Time: | F3: 17:16:34
A5: Physical Properties for | B5: Nitrogen | C5: (ID | D5: 46
A7: Formula: | B7: N2
A9: Molecular Weight : | B9: 28.014
A11: Critical Temperature : | B11: 126.2 | C11: K
A12: Critical Pressure : | B12: 33.9388 | C12: bar
A13: Critical Volume : | B13: 0.08859999 | C13: m3/kmol
A15: Melting point : | B15: 63.15 | C15: K | E15: heat of fusion | G15: 720 | H15: kJkmol | I15: (Schmelzenthalpie)
A16: Normal boiling point : | B16: 77.35 | C16: K
A17: IG heat of formation : | B17: 0 | C17: kJ/gmol
A18: IG Gibbs of formation : | B18: 0 | C18: kJ/gmol
A19: Acentric factor : | B19: 0.045
A20: Solubility parameter : | B20: 9081.9 | C20: (J/m3)**0.5
A21: Dipole moment : | B21: 0 | C21: C.m
A22: Radius of Gyration : | B22: 5.471e-11 | C22: m
A24: Mean avg. boiling point : | B24: 0 | C24: K
A25: Heat of vaporization : | B25: 5.577391 | C25: kJ/gmol
A26: API net heating value : | B26: 0 | C26: kJ/gmol
A27: API gross heating value : | B27: 0 | C27: kJ/gmol
A28: Liquid volume constant : | B28: 2.534 | C28: cc/mol
A29: Molecular diameter : | B29: 0 | C29: angstroms
A30: Modified acentric factor : | B30: 0
A31: UNIQUAC area parameter : | B31: 0
A32: UNIQUAC volume parameter : | B32: 0
A33: Wilson molar volume : | B33: 0
A34: Stiel polar factor : | B34: 0
A35: Rackett constant : | B35: 0.2906
A36: Polar parameter : | B36: 0
A37: Eps/K : | B37: 0
A38: Watson factor : | B38: 6.415
A39: API gravity : | B39: 0
A40: Specific gravity 60 F : | B40: 0.8081
A42: Electrolyte Data (at 25C):
A44: Electrolyte state : | B44: 0
A45: Electrolyte type : | B45: 0
A46: Electrolyte charge : | B46: 0
A47: Std heat of formation : | B47: 0 | C47: kJ/gmol
A48: Std Gibbs of formation : | B48: 0 | C48: kJ/gmol
A49: Standard entropy : | B49: 0 | C49: kJ/kg-K
A50: Standard heat capacity : | B50: 0 | C50: kJ/kg-K
A52: Liquid Density (kmol/m3) Equation Number: | B52: 105
A54: Min T(K): | B54: 63.15 | C54: Min value: | D54: 31.04769
A55: Max T(K): | B55: 126.1 | C55: Max value: | D55: 11.19652
A57: Coeffs: | B57: 3.1724 | C57: 0.28479 | D57: 126.1 | E57: 0.2925 | F57: 0
A59: Solid Density (kmol/m3) Equation Number: | B59: 100
A61: Min T(K): | B61: 20.65 | C61: Min value: | D61: 36.62538
A62: Max T(K): | B62: 20.65 | C62: Max value: | D62: 36.62538
A64: Coeffs: | B64: 37.87 | C64: -0.060272 | D64: 0 | E64: 0 | F64: 0
A66: Vapor Pressure (Pascals) Equation Number: | B66: 101
A68: Min T(K): | B68: 63.15 | C68: Min value: | D68: 12520.58
A69: Max T(K): | B69: 126.1 | C69: Max value: | D69: 3383471
A71: Coeffs: | B71: 59.826 | C71: -1097.6 | D71: -8.6689 | E71: 0.04635 | F71: 1
A73: Heat of Vaporization (J/kmol) Equation Number: | B73: 106
A75: Min T(K): | B75: 63.15 | C75: Min value: | D75: 6059757
A76: Max T(K): | B76: 126.2 | C76: Max value: | D76: 8922.614
A78: Coeffs: | B78: 9430000 | C78: 1.201 | D78: -1.4811 | E78: 0.7085 | F78: 0
A80: Ideal Gas Heat Capacity (J/kmol-K) Equation Number: | B80: 107
A82: Min T(K): | B82: 50 | C82: Min value: | D82: 29105
A83: Max T(K): | B83: 1500 | C83: Max value: | D83: 34838.17
A85: Coeffs: | B85: 29105 | C85: 8614.9 | D85: 1701.6 | E85: 103.47 | F85: 909.79
A87: Liquid Heat Capacity (J/kmol-K) Equation Number: | B87: 100
A89: Min T(K): | B89: 64 | C89: Min value: | D89: 55522.82
A90: Max T(K): | B90: 120 | C90: Max value: | D90: 82505.58
A92: Coeffs: | B92: -33400 | C92: 3507 | D92: -46.7 | E92: 0.2127 | F92: 0
A94: Solid Heat Capacity (J/kmol-K) Equation Number: | B94: 100
A96: Min T(K): | B96: 37 | C96: Min value: | D96: 36742.61
A97: Max T(K): | B97: 63 | C97: Max value: | D97: 46917.71
A99: Coeffs: | B99: 27420 | C99: 170.1 | D99: 2.2125 | E99: 0 | F99: 0
A101: Vapor Viscosity (Pascal-sec) Equation Number: | B101: 102
A103: Min T(K): | B103: 80 | C103: Min value: | D103: 5.440709e-06
A104: Max T(K): | B104: 1500 | C104: Max value: | D104: 5.391691e-05
A106: Coeffs: | B106: 7.632e-07 | C106: 0.58823 | D106: 67.75 | E106: 0 | F106: 0
A108: Liquid Viscosity (Pascal-sec) Equation Number: | B108: 101
A110: Min T(K): | B110: 63.15 | C110: Min value: | D110: 0.0003031086
A111: Max T(K): | B111: 125 | C111: Max value: | D111: 3.257743e-05
A113: Coeffs: | B113: -32.165 | C113: 496.9 | D113: 3.9069 | E113: -1.08e-21 | F113: 10
A115: Vapor Thermal Conductivity (W/m-K) Equation Number: | B115: 102
A117: Min T(K): | B117: 78 | C117: Min value: | D117: 0.007399004
A118: Max T(K): | B118: 1500 | C118: Max value: | D118: 0.09295125
A120: Coeffs: | B120: 0.000351 | C120: 0.7652 | D120: 25.767 | E120: 0 | F120: 0
A122: Liquid Thermal Conductivity (W/m-K) Equation Number: | B122: 100
A124: Min T(K): | B124: 70 | C124: Min value: | D124: 0.1515049
A125: Max T(K): | B125: 126.1 | C125: Max value: | D125: 0.03877078
A127: Coeffs: | B127: 0.7259 | C127: -0.01673 | D127: 0.0001621 | E127: -5.7605e-07 | F127: 0
A129: Liquid Surface Tension (N/m) Equation Number: | B129: 106
A131: Min T(K): | B131: 63.15 | C131: Min value: | D131: 0.0122089
A132: Max T(K): | B132: 126.2 | C132: Max value: | D132: 4.665153e-11
A134: Coeffs: | B134: 0.02898 | C134: 1.2457 | D134: 0 | E134: 0 | F134: 0
A136: Antoine Vapor Pressure (mmHg)
A137: Coefficients: | B137: 15.463
B138: 658.22
B139: -2.854
A141: Polynomial Ideal Gas Heat Capacity (cal/mol-K)
A142: Coefficients: | B142: 7.44
B143: -0.00324
B144: 6.4e-06
B145: -2.79e-09
B146: 0
B147: 0
A149: Two-Term Liquid Viscosity (cP)
A150: Coefficients: | B150: 90.3
B151: 46.14
A153: Two-Term Surface Tension (N/m)
A154: Coefficients: | B154: 0
B155: 0
A157: Henrys Constants
A158: Coefficients: | B158: -9248
B159: 0.0026
B160: -0.0212
B161: 42.71
A163: MSRK Parameters
A164: Coefficients: | B164: 0.4468
B165: 0.1093
A167: UNIFAC/UNIQUAC Sub-Groups: Sub-Group ID Contribution
W180: 23
A181: Lennard-Jones Daten Literatur | C181: Poling, Prausnitz Appendix B | F181: McQuarrie Physical Chemistry S. 663 Tabelle 16.7 | I181: Mourits 1976 | L181: Ebert, Ederer | O181: sigma Å | P181: aus | Q181: miltlere Flüssigdichte | S181: Schmelzenthalpie | U181: Verdampfungswärme | W181: S + V
A182: σ | B182: 2.827 | C182: 3.798 | D182: Å | F182: 370 | G182: pm | I182: 373.6 | J182: pm | L182: 3.698 | M182: Å | O182: =10/(Q182*6.02214086E+23)^(1/3)*100000000 -> 4.283880008 | Q182: =(D54+D55)/2 -> 21.122105 | R182: kmol/m³ | S182: =G15 -> 720 | T182: =H15 -> kJkmol | U182: =B25 -> 5.577391 | V182: =C25 -> kJ/gmol | W182: =S182+U182*1000 -> 6297.391
A183: ε/k | B183: 59.7 | C183: 71.4 | D183: K | F183: 95.1 | G183: K | I183: 82 | J183: K | L183: 95.05 | M183: K
A185: Lennard-Jones Daten berechnet | C185: Gl. 9-4.8 und 9-4.7 in Poling, Prausnitz S. 9.7 aus krit. Daten | F185: Virial | I185: Gasviskosität | L185: Virialkoeffizient cm³/mol | N185: Poling, Prausnitz
A186: σ | B186: =C186 -> 3.606559315 | C186: =0.809*(B13*1000)^(1/3) -> 3.606559315 | D186: Å | F186: 3.730755398 | I186: 1.432280262
A187: ε/k | B187: =C187 -> 100.2144048 | C187: =B11/1.2593 -> 100.2144048 | D187: K | F187: 86.7438412 | I187: 59.7
A192: Virial/SRK Daten aus Tabelle Virial | B192: Temperatur K | C192: B Virial LJ
B193: 373.15 | C193: 10.62556908
B194: 378.15 | C194: 11.14448761
B195: 383.15 | C195: 11.64775252
B196: 388.15 | C196: 12.13601796
B197: 393.15 | C197: 12.60990268
B198: 398.15 | C198: 13.06999234
B199: 403.15 | C199: 13.5168417
B200: 408.15 | C200: 13.95097658
B201: 413.15 | C201: 14.37289579
B202: 418.15 | C202: 14.78307275
B203: 423.15 | C203: 15.18195713
B204: 428.15 | C204: 15.5699763
B205: 433.15 | C205: 15.94753666
B206: 438.15 | C206: 16.31502496
B207: 443.15 | C207: 16.67280941
B208: 448.15 | C208: 17.02124079
B209: 453.15 | C209: 17.36065349
B210: 458.15 | C210: 17.69136641
B211: 463.15 | C211: 18.01368387
B212: 468.15 | C212: 18.32789639
B213: 473.15 | C213: 18.63428152
A218: a (SRK) | B218: =pSRKabalpha($B$11,$B$12,$B$13,298,1,1) -> 1.386777017
A219: b (SRK | B219: =pSRKabalpha($B$11,$B$12,$B$13,298,1,2) -> 0.0267865792
A220: alpha | B220: =pSRKabalpha($B$11,$B$12,$B$13,298,1,3) -> 0.44662826
A221: P (SRK) | B221: =pSRKabalpha($B$11,$B$12,$B$13,298,1,0) -> 24.855844
A230: Brechungsindes und Temperatur | B230: 1.000297
A231: Dichte bei der Temperatur des Brechungsindex | B231: 1.149346667
A232: R0 | B232: 4.402
A233: α0/4πε0
A234: νg
A240: ϕOrientierung
A241: ϕInduktion
A242: ϕDispersion | B242: 2.887292376e-59
A243: B aus ϕOrientierung+ϕInduktion+ϕDispersion in erg.cm6 | B243: 2.887292376e-59
A245: A aus sigma, eps von Poling, Prausnitz in erg.cm^12 | B245: 3.552229451e-103
A246: B aus sigma, eps von Poling, Prausnitz in erg.cm^6
B247: 1.871786724e-102

Sheet F2
A1: CHEMCAD | B1: 6.5.7 | C1: Page | D1: 1
A3: Simulation name: | B3: LJ Parameter | C3: Date: | D3: 2021-12-27 | E3: Time: | F3: 17:16:39
A5: Physical Properties for | B5: Fluorine | C5: (ID | D5: 208
A7: Formula: | B7: F2
A9: Molecular Weight : | B9: 37.997
A11: Critical Temperature : | B11: 144.31 | C11: K
A12: Critical Pressure : | B12: 52.152 | C12: bar
A13: Critical Volume : | B13: 0.0662 | C13: m3/kmol
A15: Melting point : | B15: 53.53 | C15: K | E15: heat of fusion | G15: 510.366 | H15: kJkmol | I15: (Schmelzenthalpie)
A16: Normal boiling point : | B16: 84.95 | C16: K
A17: IG heat of formation : | B17: 0 | C17: kJ/gmol
A18: IG Gibbs of formation : | B18: 0 | C18: kJ/gmol
A19: Acentric factor : | B19: 0.0588
A20: Solubility parameter : | B20: 15184 | C20: (J/m3)**0.5
A21: Dipole moment : | B21: 0 | C21: C.m
A22: Radius of Gyration : | B22: 9.081e-11 | C22: m
A24: Mean avg. boiling point : | B24: 0 | C24: K
A25: Heat of vaporization : | B25: 6.52718 | C25: kJ/gmol
A26: API net heating value : | B26: 0 | C26: kJ/gmol
A27: API gross heating value : | B27: 0 | C27: kJ/gmol
A28: Liquid volume constant : | B28: 3.3699 | C28: cc/mol
A29: Molecular diameter : | B29: 0 | C29: angstroms
A30: Modified acentric factor : | B30: 0
A31: UNIQUAC area parameter : | B31: 0
A32: UNIQUAC volume parameter : | B32: 0
A33: Wilson molar volume : | B33: 0
A34: Stiel polar factor : | B34: 0
A35: Rackett constant : | B35: 0.288
A36: Polar parameter : | B36: 0
A37: Eps/K : | B37: 0
A38: Watson factor : | B38: 0
A39: API gravity : | B39: 0
A40: Specific gravity 60 F : | B40: 0.9742119
A42: Electrolyte Data (at 25C):
A44: Electrolyte state : | B44: 0
A45: Electrolyte type : | B45: 0
A46: Electrolyte charge : | B46: 0
A47: Std heat of formation : | B47: 0 | C47: kJ/gmol
A48: Std Gibbs of formation : | B48: 0 | C48: kJ/gmol
A49: Standard entropy : | B49: 0 | C49: kJ/kg-K
A50: Standard heat capacity : | B50: 0 | C50: kJ/kg-K
A52: Liquid Density (kmol/m3) Equation Number: | B52: 105
A54: Min T(K): | B54: 53.48 | C54: Min value: | D54: 45.00431
A55: Max T(K): | B55: 144.31 | C55: Max value: | D55: 15.0256
A57: Coeffs: | B57: 4.285 | C57: 0.28518 | D57: 144.31 | E57: 0.29 | F57: 0
A59: Solid Density (kmol/m3) Equation Number: | B59: 100
A61: Min T(K): | B61: 23 | C61: Min value: | D61: 51.84589
A62: Max T(K): | B62: 53.48 | C62: Max value: | D62: 50.1879
A64: Coeffs: | B64: 53.097 | C64: -0.054396 | D64: 0 | E64: 0 | F64: 0
A66: Vapor Pressure (Pascals) Equation Number: | B66: 101
A68: Min T(K): | B68: 53.48 | C68: Min value: | D68: 245.1523
A69: Max T(K): | B69: 144.31 | C69: Max value: | D69: 5228839
A71: Coeffs: | B71: 67.387 | C71: -1317.1 | D71: -10.015 | E71: 0.048533 | F71: 1
A73: Heat of Vaporization (J/kmol) Equation Number: | B73: 106
A75: Min T(K): | B75: 53.48 | C75: Min value: | D75: 7639706
A76: Max T(K): | B76: 144.31 | C76: Max value: | D76: 18327.84
A78: Coeffs: | B78: 10549000 | C78: 1.0868 | D78: -1.2636 | E78: 0.5711 | F78: 0
A80: Ideal Gas Heat Capacity (J/kmol-K) Equation Number: | B80: 107
A82: Min T(K): | B82: 100 | C82: Min value: | D82: 29125.85
A83: Max T(K): | B83: 1500 | C83: Max value: | D83: 37815.3
A85: Coeffs: | B85: 29123 | C85: 9591.8 | D85: 1419.2 | E85: 9363 | F85: 663.3
A87: Liquid Heat Capacity (J/kmol-K) Equation Number: | B87: 100
A89: Min T(K): | B89: 53.48 | C89: Min value: | D89: 57487.84
A90: Max T(K): | B90: 120 | C90: Max value: | D90: 70588
A92: Coeffs: | B92: 82060 | C92: -752 | D92: 5.47 | E92: 0 | F92: 0
A94: Solid Heat Capacity (J/kmol-K) Equation Number: | B94: 100
A96: Min T(K): | B96: 15 | C96: Min value: | D96: 7287.5
A97: Max T(K): | B97: 53.48 | C97: Max value: | D97: 53899.4
A99: Coeffs: | B99: -10000 | C99: 1136 | D99: 1.1 | E99: 0 | F99: 0
A101: Vapor Viscosity (Pascal-sec) Equation Number: | B101: 102
A103: Min T(K): | B103: 90 | C103: Min value: | D103: 7.4856e-06
A104: Max T(K): | B104: 500 | C104: Max value: | D104: 3.504098e-05
A106: Coeffs: | B106: 6.36e-07 | C106: 0.6638 | D106: 61.6 | E106: 0 | F106: 0
A108: Liquid Viscosity (Pascal-sec) Equation Number: | B108: 101
A110: Min T(K): | B110: 69.19 | C110: Min value: | D110: 0.0004079581
A111: Max T(K): | B111: 140 | C111: Max value: | D111: 5.953865e-05
A113: Coeffs: | B113: 8.18 | C113: -75.6 | D113: -3.5148 | E113: 0 | F113: 0
A115: Vapor Thermal Conductivity (W/m-K) Equation Number: | B115: 102
A117: Min T(K): | B117: 70 | C117: Min value: | D117: 0.006276312
A118: Max T(K): | B118: 700 | C118: Max value: | D118: 0.05569275
A120: Coeffs: | B120: 0.0018 | C120: 0.5706 | D120: 261 | E120: -7300 | F120: 0
A122: Liquid Thermal Conductivity (W/m-K) Equation Number: | B122: 100
A124: Min T(K): | B124: 53.48 | C124: Min value: | D124: 0.1886436
A125: Max T(K): | B125: 130 | C125: Max value: | D125: 0.063939
A127: Coeffs: | B127: 0.2758 | C127: -0.0016297 | D127: 0 | E127: 0 | F127: 0
A129: Liquid Surface Tension (N/m) Equation Number: | B129: 106
A131: Min T(K): | B131: 53.48 | C131: Min value: | D131: 0.0226916
A132: Max T(K): | B132: 144.31 | C132: Max value: | D132: 1.03823e-10
A134: Coeffs: | B134: 0.04004 | C134: 1.2266 | D134: 0 | E134: 0 | F134: 0
A136: Antoine Vapor Pressure (mmHg)
A137: Coefficients: | B137: 15.67
B138: 714.1
B139: -6
A141: Polynomial Ideal Gas Heat Capacity (cal/mol-K)
A142: Coefficients: | B142: 6.89267
B143: -0.001447
B144: 1.93306e-05
B145: -3.20327e-08
B146: 2.09972e-11
B147: -4.9242e-15
A149: Two-Term Liquid Viscosity (cP)
A150: Coefficients: | B150: 84.2
B151: 52.52
A153: Two-Term Surface Tension (N/m)
A154: Coefficients: | B154: 0
B155: 0
A157: Henrys Constants
A158: Coefficients: | B158: 0
B159: 0
B160: 0
B161: 0
A163: MSRK Parameters
A164: Coefficients: | B164: 0
B165: 0
A167: UNIFAC/UNIQUAC Sub-Groups: Sub-Group ID Contribution
W180: 23
A181: Lennard-Jones Daten Literatur | C181: Poling, Prausnitz Appendix B | F181: McQuarrie Physical Chemistry S. 663 Tabelle 16.7 | I181: Mourits 1976 | L181: Ebert, Ederer | O181: sigma Å | P181: aus | Q181: miltlere Flüssigdichte | S181: Schmelzenthalpie | U181: Verdampfungswärme | W181: S + V
A182: σ | B182: 2.827 | C182: 3.357 | D182: Å | G182: pm | I182: 343.9 | J182: pm | M182: Å | O182: =10/(Q182*6.02214086E+23)^(1/3)*100000000 -> 3.810399088 | Q182: =(D54+D55)/2 -> 30.014955 | R182: kmol/m³ | S182: =G15 -> 510.366 | T182: =H15 -> kJkmol | U182: =B25 -> 6.52718 | V182: =C25 -> kJ/gmol | W182: =S182+U182*1000 -> 7037.546
A183: ε/k | B183: 59.7 | C183: 112.6 | D183: K | G183: K | I183: 152.1 | J183: K | M183: K
A185: Lennard-Jones Daten berechnet | C185: Gl. 9-4.8 und 9-4.7 in Poling, Prausnitz S. 9.7 aus krit. Daten | F185: Virial | I185: Gasviskosität | L185: Virialkoeffizient cm³/mol | N185: Poling, Prausnitz
A186: σ | B186: =C186 -> 3.272662234 | C186: =0.809*(B13*1000)^(1/3) -> 3.272662234 | D186: Å | F186: 3.447705591 | I186: 1.353738728
A187: ε/k | B187: =C187 -> 114.5954101 | C187: =B11/1.2593 -> 114.5954101 | D187: K | F187: 99.13564951 | I187: 59.7
A192: Virial/SRK Daten aus Tabelle Virial | B192: Temperatur K | C192: B Virial LJ
B193: 373.15 | C193: 3.857261247
B194: 378.15 | C194: 4.344881791
B195: 383.15 | C195: 4.817894344
B196: 388.15 | C196: 5.276911386
B197: 393.15 | C197: 5.722512034
B198: 398.15 | C198: 6.155244273
B199: 403.15 | C199: 6.575627011
B200: 408.15 | C200: 6.984151977
B201: 413.15 | C201: 7.381285467
B202: 418.15 | C202: 7.767469961
B203: 423.15 | C203: 8.143125616
B204: 428.15 | C204: 8.508651652
B205: 433.15 | C205: 8.864427631
B206: 438.15 | C206: 9.21081465
B207: 443.15 | C207: 9.54815644
B208: 448.15 | C208: 9.8767804
B209: 453.15 | C209: 10.19699854
B210: 458.15 | C210: 10.50910838
B211: 463.15 | C211: 10.81339378
B212: 468.15 | C212: 11.11012568
B213: 473.15 | C213: 11.39956287
A218: a (SRK) | B218: =pSRKabalpha($B$11,$B$12,$B$13,298,1,1) -> 1.180065989
A219: b (SRK | B219: =pSRKabalpha($B$11,$B$12,$B$13,298,1,2) -> 0.01993332931
A220: alpha | B220: =pSRKabalpha($B$11,$B$12,$B$13,298,1,3) -> 0.5550787971
A221: P (SRK) | B221: =pSRKabalpha($B$11,$B$12,$B$13,298,1,0) -> 24.6388059
A230: Brechungsindes und Temperatur | B230: 1.000206
A231: Dichte bei der Temperatur des Brechungsindex | B231: 1.558925013
A232: R0
A233: α0/4πε0
A234: νg
A240: ϕOrientierung
A241: ϕInduktion
A242: ϕDispersion
A243: B aus ϕOrientierung+ϕInduktion+ϕDispersion in erg.cm6
A245: A aus sigma, eps von Poling, Prausnitz in erg.cm^12 | B245: 1.273789778e-103
A246: B aus sigma, eps von Poling, Prausnitz in erg.cm^6
B247: 1.65921448e-102

Sheet Cl2
A1: CHEMCAD | B1: 6.5.7 | C1: Page | D1: 1
A3: Simulation name: | B3: LJ Parameter | C3: Date: | D3: 2021-12-27 | E3: Time: | F3: 17:18:54
A5: Physical Properties for | B5: Chlorine | C5: (ID | D5: 105
A7: Formula: | B7: Cl2
A9: Molecular Weight : | B9: 70.906
A11: Critical Temperature : | B11: 417.15 | C11: K
A12: Critical Pressure : | B12: 77.11034 | C12: bar
A13: Critical Volume : | B13: 0.1237 | C13: m3/kmol
A15: Melting point : | B15: 172.12 | C15: K | E15: heat of fusion | G15: 6406 | H15: kJkmol | I15: (Schmelzenthalpie)
A16: Normal boiling point : | B16: 239.12 | C16: K
A17: IG heat of formation : | B17: 0 | C17: kJ/gmol
A18: IG Gibbs of formation : | B18: 0 | C18: kJ/gmol
A19: Acentric factor : | B19: 0.069
A20: Solubility parameter : | B20: 20148 | C20: (J/m3)**0.5
A21: Dipole moment : | B21: 0 | C21: C.m
A22: Radius of Gyration : | B22: 6.7e-11 | C22: m
A24: Mean avg. boiling point : | B24: 0 | C24: K
A25: Heat of vaporization : | B25: 20.4184 | C25: kJ/gmol
A26: API net heating value : | B26: 0 | C26: kJ/gmol
A27: API gross heating value : | B27: 0 | C27: kJ/gmol
A28: Liquid volume constant : | B28: 6.1188 | C28: cc/mol
A29: Molecular diameter : | B29: 0 | C29: angstroms
A30: Modified acentric factor : | B30: 0
A31: UNIQUAC area parameter : | B31: 0
A32: UNIQUAC volume parameter : | B32: 0
A33: Wilson molar volume : | B33: 0
A34: Stiel polar factor : | B34: 0
A35: Rackett constant : | B35: 0
A36: Polar parameter : | B36: 0
A37: Eps/K : | B37: 0
A38: Watson factor : | B38: 0
A39: API gravity : | B39: 0
A40: Specific gravity 60 F : | B40: 1.429712
A42: Electrolyte Data (at 25C):
A44: Electrolyte state : | B44: 0
A45: Electrolyte type : | B45: 2
A46: Electrolyte charge : | B46: 0
A47: Std heat of formation : | B47: -23.43036 | C47: kJ/gmol
A48: Std Gibbs of formation : | B48: 6.903595 | C48: kJ/gmol
A49: Standard entropy : | B49: 1.711224 | C49: kJ/kg-K
A50: Standard heat capacity : | B50: 0 | C50: kJ/kg-K
A52: Liquid Density (kmol/m3) Equation Number: | B52: 105
A54: Min T(K): | B54: 172.12 | C54: Min value: | D54: 24.29882
A55: Max T(K): | B55: 417.15 | C55: Max value: | D55: 7.982427
A57: Coeffs: | B57: 2.1804 | C57: 0.27315 | D57: 417.15 | E57: 0.2883 | F57: 0
A59: Solid Density (kmol/m3) Equation Number: | B59: 100
A61: Min T(K): | B61: 113.15 | C61: Min value: | D61: 29.476
A62: Max T(K): | B62: 113.15 | C62: Max value: | D62: 29.476
A64: Coeffs: | B64: 29.476 | C64: 0 | D64: 0 | E64: 0 | F64: 0
A66: Vapor Pressure (Pascals) Equation Number: | B66: 101
A68: Min T(K): | B68: 172.12 | C68: Min value: | D68: 1365.664
A69: Max T(K): | B69: 417.15 | C69: Max value: | D69: 7791090
A71: Coeffs: | B71: 71.359 | C71: -3855.6 | D71: -8.5216 | E71: 0.012386 | F71: 1
A73: Heat of Vaporization (J/kmol) Equation Number: | B73: 106
A75: Min T(K): | B75: 172.12 | C75: Min value: | D75: 22888060
A76: Max T(K): | B76: 417.15 | C76: Max value: | D76: 56267.58
A78: Coeffs: | B78: 28560000 | C78: 0.519 | D78: -0.3315 | E78: 0.199 | F78: 0
A80: Ideal Gas Heat Capacity (J/kmol-K) Equation Number: | B80: 107
A82: Min T(K): | B82: 50 | C82: Min value: | D82: 29142.12
A83: Max T(K): | B83: 1500 | C83: Max value: | D83: 37929.69
A85: Coeffs: | B85: 29142 | C85: 9176 | D85: 949 | E85: 10030 | F85: 425
A87: Liquid Heat Capacity (J/kmol-K) Equation Number: | B87: 100
A89: Min T(K): | B89: 172.12 | C89: Min value: | D89: 67105.58
A90: Max T(K): | B90: 239.12 | C90: Max value: | D90: 65739.16
A92: Coeffs: | B92: 63936 | C92: 46.35 | D92: -0.1623 | E92: 0 | F92: 0
A94: Solid Heat Capacity (J/kmol-K) Equation Number: | B94: 100
A96: Min T(K): | B96: 19.81 | C96: Min value: | D96: 7148.077
A97: Max T(K): | B97: 164.99 | C97: Max value: | D97: 55093.62
A99: Coeffs: | B99: -22200 | C99: 1876 | D99: -22.305 | E99: 0.1257 | F99: -0.00025587
A101: Vapor Viscosity (Pascal-sec) Equation Number: | B101: 102
A103: Min T(K): | B103: 200 | C103: Min value: | D103: 8.900299e-06
A104: Max T(K): | B104: 1000 | C104: Max value: | D104: 3.991649e-05
A106: Coeffs: | B106: 2.6e-07 | C106: 0.7423 | D106: 98.3 | E106: 0 | F106: 0
A108: Liquid Viscosity (Pascal-sec) Equation Number: | B108: 101
A110: Min T(K): | B110: 190 | C110: Min value: | D110: 0.0007972683
A111: Max T(K): | B111: 300 | C111: Max value: | D111: 0.0003038975
A113: Coeffs: | B113: -25.682 | C113: 974.9 | D113: 2.5575 | E113: -4.3e-26 | F113: 10
A115: Vapor Thermal Conductivity (W/m-K) Equation Number: | B115: 102
A117: Min T(K): | B117: 200 | C117: Min value: | D117: 0.005510967
A118: Max T(K): | B118: 1000 | C118: Max value: | D118: 0.03001648
A120: Coeffs: | B120: 0.0009993 | C120: 0.5472 | D120: 458.6 | E120: 0 | F120: 0
A122: Liquid Thermal Conductivity (W/m-K) Equation Number: | B122: 100
A124: Min T(K): | B124: 172.12 | C124: Min value: | D124: 0.1902396
A125: Max T(K): | B125: 410 | C125: Max value: | D125: 0.0658972
A127: Coeffs: | B127: 0.2246 | C127: -6.4e-05 | D127: -7.88e-07 | E127: 0 | F127: 0
A129: Liquid Surface Tension (N/m) Equation Number: | B129: 106
A131: Min T(K): | B131: 172.12 | C131: Min value: | D131: 0.03792936
A132: Max T(K): | B132: 417.15 | C132: Max value: | D132: 1.71668e-09
A134: Coeffs: | B134: 0.06756 | C134: 1.085 | D134: 0 | E134: 0 | F134: 0
A136: Antoine Vapor Pressure (mmHg)
A137: Coefficients: | B137: 16.152
B138: 2055.1
B139: -23.312
A141: Polynomial Ideal Gas Heat Capacity (cal/mol-K)
A142: Coefficients: | B142: 6.56081
B143: 0.00567466
B144: -6.75518e-08
B145: -1.04149e-08
B146: 9.99982e-12
B147: -2.81307e-15
A149: Two-Term Liquid Viscosity (cP)
A150: Coefficients: | B150: 191.96
B151: 172.35
A153: Two-Term Surface Tension (N/m)
A154: Coefficients: | B154: 0
B155: 0
A157: Henrys Constants
A158: Coefficients: | B158: -34068
B159: -86.999
B160: 0.056561
B161: 589.03
A163: MSRK Parameters
A164: Coefficients: | B164: 0.4597
B165: 0.1543
A167: UNIFAC/UNIQUAC Sub-Groups: Sub-Group ID Contribution
W180: 23
A181: Lennard-Jones Daten Literatur | C181: Poling, Prausnitz Appendix B | F181: McQuarrie Physical Chemistry S. 663 Tabelle 16.7 | I181: Mourits 1976 | L181: Ebert, Ederer | O181: sigma Å | P181: aus | Q181: miltlere Flüssigdichte | S181: Schmelzenthalpie | U181: Verdampfungswärme | W181: S + V
A182: σ | B182: 2.827 | C182: 4.217 | D182: Å | G182: pm | I182: 424 | J182: pm | M182: Å | O182: =10/(Q182*6.02214086E+23)^(1/3)*100000000 -> 4.68571922 | Q182: =(D54+D55)/2 -> 16.1406235 | R182: kmol/m³ | S182: =G15 -> 6406 | T182: =H15 -> kJkmol | U182: =B25 -> 20.4184 | V182: =C25 -> kJ/gmol | W182: =S182+U182*1000 -> 26824.4
A183: ε/k | B183: 59.7 | C183: 316 | D183: K | G183: K | I183: 307.2 | J183: K | M183: K
A185: Lennard-Jones Daten berechnet | C185: Gl. 9-4.8 und 9-4.7 in Poling, Prausnitz S. 9.7 aus krit. Daten | F185: Virial | I185: Gasviskosität | L185: Virialkoeffizient cm³/mol | N185: Poling, Prausnitz
A186: σ | B186: =C186 -> 4.030928439 | C186: =0.809*(B13*1000)^(1/3) -> 4.030928439 | D186: Å | F186: 4.608801537 | I186: 2.077219543
A187: ε/k | B187: =C187 -> 331.2554594 | C187: =B11/1.2593 -> 331.2554594 | D187: K | F187: 282.6337633 | I187: 59.7
A192: Virial/SRK Daten aus Tabelle Virial | B192: Temperatur K | C192: B Virial LJ
B193: 373.15 | C193: -189.6243443
B194: 378.15 | C194: -184.9122445
B195: 383.15 | C195: -180.3504549
B196: 388.15 | C196: -175.9319979
B197: 393.15 | C197: -171.6503191
B198: 398.15 | C198: -167.4992561
B199: 403.15 | C199: -163.4730097
B200: 408.15 | C200: -159.5661177
B201: 413.15 | C201: -155.7734305
B202: 418.15 | C202: -152.0900894
B203: 423.15 | C203: -148.5115063
B204: 428.15 | C204: -145.0333451
B205: 433.15 | C205: -141.6515051
B206: 438.15 | C206: -138.3621044
B207: 443.15 | C207: -135.1614666
B208: 448.15 | C208: -132.0461064
B209: 453.15 | C209: -129.0127183
B210: 458.15 | C210: -126.0581644
B211: 463.15 | C211: -123.1794644
B212: 468.15 | C212: -120.3737858
B213: 473.15 | C213: -117.6384346
A218: a (SRK) | B218: =pSRKabalpha($B$11,$B$12,$B$13,298,1,1) -> 6.66893195
A219: b (SRK | B219: =pSRKabalpha($B$11,$B$12,$B$13,298,1,2) -> 0.03897032366
A220: alpha | B220: =pSRKabalpha($B$11,$B$12,$B$13,298,1,3) -> 1.218868907
A221: P (SRK) | B221: =pSRKabalpha($B$11,$B$12,$B$13,298,1,0) -> 17.95816154
A230: Brechungsindes und Temperatur | B230: 1.000773
A231: Dichte bei der Temperatur des Brechungsindex | B231: 2.909101692
A232: R0 | B232: 11.43
A233: α0/4πε0 | B233: 4.5e-24
A234: νg | B234: 1191000000000000
A240: ϕOrientierung
A241: ϕInduktion
A242: ϕDispersion | B242: 1.198544275e-58
A243: B aus ϕOrientierung+ϕInduktion+ϕDispersion in erg.cm6 | B243: 1.198544275e-58
A245: A aus sigma, eps von Poling, Prausnitz in erg.cm^12 | B245: 5.519167427e-102
A246: B aus sigma, eps von Poling, Prausnitz in erg.cm^6
B247: 3.394308776e-101

Sheet Br2
A1: CHEMCAD | B1: 6.5.7 | C1: Page | D1: 1
A3: Simulation name: | B3: LJ Parameter | C3: Date: | D3: 2021-12-27 | E3: Time: | F3: 17:18:58
A5: Physical Properties for | B5: Bromine | C5: (ID | D5: 99
A7: Formula: | B7: Br2
A9: Molecular Weight : | B9: 159.81
A11: Critical Temperature : | B11: 584.15 | C11: K
A12: Critical Pressure : | B12: 103.351 | C12: bar
A13: Critical Volume : | B13: 0.135 | C13: m3/kmol
A15: Melting point : | B15: 265.9 | C15: K | E15: heat of fusion | G15: 10570 | H15: kJkmol | I15: (Schmelzenthalpie)
A16: Normal boiling point : | B16: 331.9 | C16: K
A17: IG heat of formation : | B17: 30.907 | C17: kJ/gmol
A18: IG Gibbs of formation : | B18: 3.1338 | C18: kJ/gmol
A19: Acentric factor : | B19: 0.1189
A20: Solubility parameter : | B20: 23660 | C20: (J/m3)**0.5
A21: Dipole moment : | B21: 0 | C21: C.m
A22: Radius of Gyration : | B22: 9.69e-11 | C22: m
A24: Mean avg. boiling point : | B24: 0 | C24: K
A25: Heat of vaporization : | B25: 30.16728 | C25: kJ/gmol
A26: API net heating value : | B26: 0 | C26: kJ/gmol
A27: API gross heating value : | B27: 0 | C27: kJ/gmol
A28: Liquid volume constant : | B28: 7.1057 | C28: cc/mol
A29: Molecular diameter : | B29: 0 | C29: angstroms
A30: Modified acentric factor : | B30: 0
A31: UNIQUAC area parameter : | B31: 0
A32: UNIQUAC volume parameter : | B32: 0
A33: Wilson molar volume : | B33: 0
A34: Stiel polar factor : | B34: 0
A35: Rackett constant : | B35: 0
A36: Polar parameter : | B36: 0
A37: Eps/K : | B37: 0
A38: Watson factor : | B38: 0
A39: API gravity : | B39: 0
A40: Specific gravity 60 F : | B40: 3.144807
A42: Electrolyte Data (at 25C):
A44: Electrolyte state : | B44: 0
A45: Electrolyte type : | B45: 0
A46: Electrolyte charge : | B46: 0
A47: Std heat of formation : | B47: 0 | C47: kJ/gmol
A48: Std Gibbs of formation : | B48: 0 | C48: kJ/gmol
A49: Standard entropy : | B49: 0 | C49: kJ/kg-K
A50: Standard heat capacity : | B50: 0 | C50: kJ/kg-K
A52: Liquid Density (kmol/m3) Equation Number: | B52: 105
A54: Min T(K): | B54: 265.85 | C54: Min value: | D54: 20.10901
A55: Max T(K): | B55: 584.15 | C55: Max value: | D55: 7.447168
A57: Coeffs: | B57: 2.1872 | C57: 0.29527 | D57: 584.15 | E57: 0.3295 | F57: 0
A59: Solid Density (kmol/m3) Equation Number: | B59: 100
A61: Min T(K): | B61: 79.15 | C61: Min value: | D61: 25.7
A62: Max T(K): | B62: 79.15 | C62: Max value: | D62: 25.7
A64: Coeffs: | B64: 25.7 | C64: 0 | D64: 0 | E64: 0 | F64: 0
A66: Vapor Pressure (Pascals) Equation Number: | B66: 101
A68: Min T(K): | B68: 265.85 | C68: Min value: | D68: 5848.271
A69: Max T(K): | B69: 584.15 | C69: Max value: | D69: 10297580
A71: Coeffs: | B71: 59.51 | C71: -5259 | D71: -5.6145 | E71: 4.1189e-06 | F71: 2
A73: Heat of Vaporization (J/kmol) Equation Number: | B73: 106
A75: Min T(K): | B75: 265.85 | C75: Min value: | D75: 32483900
A76: Max T(K): | B76: 584.15 | C76: Max value: | D76: 69152.29
A78: Coeffs: | B78: 42180000 | C78: 0.609 | D78: -0.5447 | E78: 0.3336 | F78: 0
A80: Ideal Gas Heat Capacity (J/kmol-K) Equation Number: | B80: 107
A82: Min T(K): | B82: 100 | C82: Min value: | D82: 30900.6
A83: Max T(K): | B83: 1500 | C83: Max value: | D83: 37938.35
A85: Coeffs: | B85: 30113 | C85: 8009 | D85: 751.4 | E85: 10780 | F85: 314.6
A87: Liquid Heat Capacity (J/kmol-K) Equation Number: | B87: 100
A89: Min T(K): | B89: 265.9 | C89: Min value: | D89: 77547.27
A90: Max T(K): | B90: 305.37 | C90: Max value: | D90: 75405.98
A92: Coeffs: | B92: 37570 | C92: 328.5 | D92: -0.67 | E92: 0 | F92: 0
A94: Solid Heat Capacity (J/kmol-K) Equation Number: | B94: 100
A96: Min T(K): | B96: 15 | C96: Min value: | D96: 8199.916
A97: Max T(K): | B97: 265.85 | C97: Max value: | D97: 60988.58
A99: Coeffs: | B99: -9200 | C99: 1330 | D99: -12.05 | E99: 0.0488 | F99: -6.98e-05
A101: Vapor Viscosity (Pascal-sec) Equation Number: | B101: 102
A103: Min T(K): | B103: 265.85 | C103: Min value: | D103: 1.394142e-05
A104: Max T(K): | B104: 600 | C104: Max value: | D104: 2.999361e-05
A106: Coeffs: | B106: 3.0838e-08 | C106: 1.0641 | D106: -42.25 | E106: 0 | F106: 0
A108: Liquid Viscosity (Pascal-sec) Equation Number: | B108: 101
A110: Min T(K): | B110: 265.85 | C110: Min value: | D110: 0.001352865
A111: Max T(K): | B111: 350 | C111: Max value: | D111: 0.0006021266
A113: Coeffs: | B113: 16.775 | C113: -314 | D113: -3.9763 | E113: 0 | F113: 0
A115: Vapor Thermal Conductivity (W/m-K) Equation Number: | B115: 102
A117: Min T(K): | B117: 300 | C117: Min value: | D117: 0.004770462
A118: Max T(K): | B118: 500 | C118: Max value: | D118: 0.009867974
A120: Coeffs: | B120: -0.2006 | C120: -0.5642 | D120: -805.01 | E120: 0 | F120: 0
A122: Liquid Thermal Conductivity (W/m-K) Equation Number: | B122: 100
A124: Min T(K): | B124: 266 | C124: Min value: | D124: 0.1299292
A125: Max T(K): | B125: 584 | C125: Max value: | D125: 0.03158177
A127: Coeffs: | B127: -0.2185 | C127: 0.0042143 | D127: -1.7753e-05 | E127: 3.1041e-08 | F127: -2.0108e-11
A129: Liquid Surface Tension (N/m) Equation Number: | B129: 106
A131: Min T(K): | B131: 265.85 | C131: Min value: | D131: 0.04637743
A132: Max T(K): | B132: 584.15 | C132: Max value: | D132: 6.897826e-10
A134: Coeffs: | B134: 0.09391 | C134: 1.162 | D134: 0 | E134: 0 | F134: 0
A136: Antoine Vapor Pressure (mmHg)
A137: Coefficients: | B137: 16.796
B138: 3090.9
B139: -27.973
A141: Polynomial Ideal Gas Heat Capacity (cal/mol-K)
A142: Coefficients: | B142: 6.04177
B143: 0.0175632
B144: -4.26341e-05
B145: 5.03595e-08
B146: -2.8441e-11
B147: 6.14354e-15
A149: Two-Term Liquid Viscosity (cP)
A150: Coefficients: | B150: 387.82
B151: 292.79
A153: Two-Term Surface Tension (N/m)
A154: Coefficients: | B154: 0
B155: 0
A157: Henrys Constants
A158: Coefficients: | B158: -11570
B159: -0.00088
B160: -0.0145
B161: 36.39
A163: MSRK Parameters
A164: Coefficients: | B164: 0
B165: 0
A167: UNIFAC/UNIQUAC Sub-Groups: Sub-Group ID Contribution
W180: 23
A181: Lennard-Jones Daten Literatur | C181: Poling, Prausnitz Appendix B | F181: McQuarrie Physical Chemistry S. 663 Tabelle 16.7 | I181: Mourits 1976 | L181: Ebert, Ederer | O181: sigma Å | P181: aus | Q181: miltlere Flüssigdichte | S181: Schmelzenthalpie | U181: Verdampfungswärme | W181: S + V
A182: σ | B182: 2.827 | C182: 4.296 | D182: Å | G182: pm | I182: 426.6 | J182: pm | M182: Å | O182: =10/(Q182*6.02214086E+23)^(1/3)*100000000 -> 4.939542217 | Q182: =(D54+D55)/2 -> 13.778089 | R182: kmol/m³ | S182: =G15 -> 10570 | T182: =H15 -> kJkmol | U182: =B25 -> 30.16728 | V182: =C25 -> kJ/gmol | W182: =S182+U182*1000 -> 40737.28
A183: ε/k | B183: 59.7 | C183: 507.9 | D183: K | G183: K | I183: 437.3 | J183: K | M183: K
A185: Lennard-Jones Daten berechnet | C185: Gl. 9-4.8 und 9-4.7 in Poling, Prausnitz S. 9.7 aus krit. Daten | F185: Virial | I185: Gasviskosität berechnet in Tabelle Viskosität | L185: Virialkoeffizient cm³/mol | N185: Poling, Prausnitz
A186: σ | B186: =C186 -> 4.150111623 | C186: =0.809*(B13*1000)^(1/3) -> 4.150111623 | D186: Å | F186: 4.292083472 | I186: 2.373889959
A187: ε/k | B187: =C187 -> 463.868816 | C187: =B11/1.2593 -> 463.868816 | D187: K | F187: 460.6881346 | I187: 59.7
A192: Virial/SRK Daten aus Tabelle Virial | B192: Temperatur K | C192: B Virial LJ
B193: 373.15 | C193: -364.0158954
B194: 378.15 | C194: -355.7392162
B195: 383.15 | C195: -347.7588994
B196: 388.15 | C196: -340.0595196
B197: 393.15 | C197: -332.6266945
B198: 398.15 | C198: -325.4469979
B199: 403.15 | C199: -318.5078829
B200: 408.15 | C200: -311.7976115
B201: 413.15 | C201: -305.3051906
B202: 418.15 | C202: -299.0203146
B203: 423.15 | C203: -292.933313
B204: 428.15 | C204: -287.0351021
B205: 433.15 | C205: -281.3171418
B206: 438.15 | C206: -275.7713957
B207: 443.15 | C207: -270.3902947
B208: 448.15 | C208: -265.1667039
B209: 453.15 | C209: -260.093892
B210: 458.15 | C210: -255.1655033
B211: 463.15 | C211: -250.3755319
B212: 468.15 | C212: -245.7182985
B213: 473.15 | C213: -241.1884281
A218: a (SRK) | B218: =pSRKabalpha($B$11,$B$12,$B$13,298,1,1) -> 9.757049023
A219: b (SRK | B219: =pSRKabalpha($B$11,$B$12,$B$13,298,1,2) -> 0.04071590392
A220: alpha | B220: =pSRKabalpha($B$11,$B$12,$B$13,298,1,3) -> 1.432730786
A221: P (SRK) | B221: =pSRKabalpha($B$11,$B$12,$B$13,298,1,0) -> 12.39642341
A230: Brechungsindes und Temperatur | B230: 1.001132
A231: Dichte bei der Temperatur des Brechungsindex | B231: 6.556617795
A232: R0 | B232: 16.33
A233: α0/4πε0 | B233: 6.43e-24
A234: νg | B234: 996000000000000
A240: ϕOrientierung
A241: ϕInduktion
A242: ϕDispersion | B242: 2.046437932e-58
A243: B aus ϕOrientierung+ϕInduktion+ϕDispersion in erg.cm6 | B243: 2.046437932e-58
A245: A aus sigma, eps von Poling, Prausnitz in erg.cm^12 | B245: 1.108390409e-101
A246: B aus sigma, eps von Poling, Prausnitz in erg.cm^6
B247: 9.205249833e-102

Sheet CO
A1: CHEMCAD | B1: 6.5.7 | C1: Page | D1: 1
A3: Simulation name: | B3: LJ Parameter | C3: Date: | D3: 2021-12-27 | E3: Time: | F3: 17:19:01
A5: Physical Properties for | B5: Carbon Monoxide | C5: (ID | D5: 48
A7: Formula: | B7: CO
A9: Molecular Weight : | B9: 28.01
A11: Critical Temperature : | B11: 132.95 | C11: K
A12: Critical Pressure : | B12: 34.98752 | C12: bar
A13: Critical Volume : | B13: 0.0931 | C13: m3/kmol
A15: Melting point : | B15: 68.15 | C15: K | E15: heat of fusion | G15: 840.987 | H15: kJkmol | I15: (Schmelzenthalpie)
A16: Normal boiling point : | B16: 81.7 | C16: K
A17: IG heat of formation : | B17: -110.53 | C17: kJ/gmol
A18: IG Gibbs of formation : | B18: -137.16 | C18: kJ/gmol
A19: Acentric factor : | B19: 0.093
A20: Solubility parameter : | B20: 6402.4 | C20: (J/m3)**0.5
A21: Dipole moment : | B21: 3.7359e-31 | C21: C.m
A22: Radius of Gyration : | B22: 5.582e-11 | C22: m
A24: Mean avg. boiling point : | B24: 0 | C24: K
A25: Heat of vaporization : | B25: 6.041825 | C25: kJ/gmol
A26: API net heating value : | B26: 0 | C26: kJ/gmol
A27: API gross heating value : | B27: 0 | C27: kJ/gmol
A28: Liquid volume constant : | B28: 2.584 | C28: cc/mol
A29: Molecular diameter : | B29: 0 | C29: angstroms
A30: Modified acentric factor : | B30: 0
A31: UNIQUAC area parameter : | B31: 0
A32: UNIQUAC volume parameter : | B32: 0
A33: Wilson molar volume : | B33: 0
A34: Stiel polar factor : | B34: 0
A35: Rackett constant : | B35: 0.2918
A36: Polar parameter : | B36: 0
A37: Eps/K : | B37: 0
A38: Watson factor : | B38: 0
A39: API gravity : | B39: 0
A40: Specific gravity 60 F : | B40: 0.8008
A42: Electrolyte Data (at 25C):
A44: Electrolyte state : | B44: 0
A45: Electrolyte type : | B45: 0
A46: Electrolyte charge : | B46: 0
A47: Std heat of formation : | B47: 0 | C47: kJ/gmol
A48: Std Gibbs of formation : | B48: 0 | C48: kJ/gmol
A49: Standard entropy : | B49: 0 | C49: kJ/kg-K
A50: Standard heat capacity : | B50: 0 | C50: kJ/kg-K
A52: Liquid Density (kmol/m3) Equation Number: | B52: 105
A54: Min T(K): | B54: 68.15 | C54: Min value: | D54: 30.21122
A55: Max T(K): | B55: 132.92 | C55: Max value: | D55: 10.64545
A57: Coeffs: | B57: 2.944 | C57: 0.27655 | D57: 132.92 | E57: 0.29053 | F57: 0
A59: Solid Density (kmol/m3) Equation Number: | B59: 100
A61: Min T(K): | B61: 68.15 | C61: Min value: | D61: 35.35
A62: Max T(K): | B62: 68.15 | C62: Max value: | D62: 35.35
A64: Coeffs: | B64: 35.35 | C64: 0 | D64: 0 | E64: 0 | F64: 0
A66: Vapor Pressure (Pascals) Equation Number: | B66: 101
A68: Min T(K): | B68: 68.15 | C68: Min value: | D68: 15206.56
A69: Max T(K): | B69: 132.92 | C69: Max value: | D69: 3469656
A71: Coeffs: | B71: 124.2 | C71: -1815 | D71: -22.734 | E71: 0.11795 | F71: 1
A73: Heat of Vaporization (J/kmol) Equation Number: | B73: 106
A75: Min T(K): | B75: 68.15 | C75: Min value: | D75: 6367967
A76: Max T(K): | B76: 132.95 | C76: Max value: | D76: 55855.28
A78: Coeffs: | B78: 8003000 | C78: 0.318 | D78: 0 | E78: 0 | F78: 0
A80: Ideal Gas Heat Capacity (J/kmol-K) Equation Number: | B80: 107
A82: Min T(K): | B82: 60 | C82: Min value: | D82: 29108
A83: Max T(K): | B83: 1500 | C83: Max value: | D83: 35207.71
A85: Coeffs: | B85: 29108 | C85: 8773 | D85: 3085.1 | E85: 8455.3 | F85: 1538.2
A87: Liquid Heat Capacity (J/kmol-K) Equation Number: | B87: 100
A89: Min T(K): | B89: 68.15 | C89: Min value: | D89: 59937.76
A90: Max T(K): | B90: 90 | C90: Max value: | D90: 61476
A92: Coeffs: | B92: 55140 | C92: 70.4 | D92: 0 | E92: 0 | F92: 0
A94: Solid Heat Capacity (J/kmol-K) Equation Number: | B94: 100
A96: Min T(K): | B96: 8 | C96: Min value: | D96: 1772.152
A97: Max T(K): | B97: 62 | C97: Max value: | D97: 64105.22
A99: Coeffs: | B99: 1400 | C99: -669 | D99: 109.4 | E99: -2.668 | F99: 0.021623
A101: Vapor Viscosity (Pascal-sec) Equation Number: | B101: 102
A103: Min T(K): | B103: 68.15 | C103: Min value: | D103: 4.433639e-06
A104: Max T(K): | B104: 1250 | C104: Max value: | D104: 4.653645e-05
A106: Coeffs: | B106: 1.1127e-06 | C106: 0.5338 | D106: 94.7 | E106: 0 | F106: 0
A108: Liquid Viscosity (Pascal-sec) Equation Number: | B108: 101
A110: Min T(K): | B110: 68.55 | C110: Min value: | D110: 0.0002648829
A111: Max T(K): | B111: 131.37 | C111: Max value: | D111: 6.515292e-05
A113: Coeffs: | B113: -4.9735 | C113: 97.67 | D113: -1.1088 | E113: 0 | F113: 0
A115: Vapor Thermal Conductivity (W/m-K) Equation Number: | B115: 102
A117: Min T(K): | B117: 70 | C117: Min value: | D117: 0.005729538
A118: Max T(K): | B118: 1250 | C118: Max value: | D118: 0.07579821
A120: Coeffs: | B120: 0.000839 | C120: 0.6409 | D120: 86.05 | E120: 0 | F120: 0
A122: Liquid Thermal Conductivity (W/m-K) Equation Number: | B122: 100
A124: Min T(K): | B124: 70 | C124: Min value: | D124: 0.16062
A125: Max T(K): | B125: 125 | C125: Max value: | D125: 0.06249999
A127: Coeffs: | B127: 0.2855 | C127: -0.001784 | D127: 0 | E127: 0 | F127: 0
A129: Liquid Surface Tension (N/m) Equation Number: | B129: 106
A131: Min T(K): | B131: 68.15 | C131: Min value: | D131: 0.01238504
A132: Max T(K): | B132: 132.95 | C132: Max value: | D132: 5.811014e-10
A134: Coeffs: | B134: 0.027959 | C134: 1.133 | D134: 0 | E134: 0 | F134: 0
A136: Antoine Vapor Pressure (mmHg)
A137: Coefficients: | B137: 15.887
B138: 769.93
B139: 1.637
A141: Polynomial Ideal Gas Heat Capacity (cal/mol-K)
A142: Coefficients: | B142: 6.99208
B143: -0.000369683
B144: -3.69832e-07
B145: 5.8214e-09
B146: -5.76133e-12
B147: 1.6252e-15
A149: Two-Term Liquid Viscosity (cP)
A150: Coefficients: | B150: 94.06
B151: 48.9
A153: Two-Term Surface Tension (N/m)
A154: Coefficients: | B154: 0
B155: 0
A157: Henrys Constants
A158: Coefficients: | B158: -7387
B159: 0.00081
B160: -0.0158
B161: 35.99
A163: MSRK Parameters
A164: Coefficients: | B164: 0
B165: 0
A167: UNIFAC/UNIQUAC Sub-Groups: Sub-Group ID Contribution
W180: 23
A181: Lennard-Jones Daten Literatur | C181: Poling, Prausnitz Appendix B | F181: McQuarrie Physical Chemistry S. 663 Tabelle 16.7 | I181: Mourits 1976 | L181: Ebert, Ederer | O181: sigma Å | P181: aus | Q181: miltlere Flüssigdichte | S181: Schmelzenthalpie | U181: Verdampfungswärme | W181: S + V
A182: σ | B182: 2.827 | C182: 3.69 | D182: Å | F182: 376 | G182: pm | I182: 369.8 | J182: pm | L182: 3.763 | M182: Å | O182: =10/(Q182*6.02214086E+23)^(1/3)*100000000 -> 4.331836335 | Q182: =(D54+D55)/2 -> 20.428335 | R182: kmol/m³ | S182: =G15 -> 840.987 | T182: =H15 -> kJkmol | U182: =B25 -> 6.041825 | V182: =C25 -> kJ/gmol | W182: =S182+U182*1000 -> 6882.812
A183: ε/k | B183: 59.7 | C183: 91.7 | D183: K | F183: 100 | G183: K | I183: 104.5 | J183: K | L183: 100.2 | M183: K
A185: Lennard-Jones Daten berechnet | C185: Gl. 9-4.8 und 9-4.7 in Poling, Prausnitz S. 9.7 aus krit. Daten | F185: Virial | I185: Gasviskosität | L185: Virialkoeffizient cm³/mol | N185: Poling, Prausnitz
A186: σ | B186: =C186 -> 3.666613068 | C186: =0.809*(B13*1000)^(1/3) -> 3.666613068 | D186: Å | F186: 3.812206346 | I186: 1.435213654
A187: ε/k | B187: =C187 -> 105.5745255 | C187: =B11/1.2593 -> 105.5745255 | D187: K | F187: 86.46769088 | I187: 59.7
A192: Virial/SRK Daten aus Tabelle Virial | B192: Temperatur K | C192: B Virial LJ
B193: 373.15 | C193: 11.47033019
B194: 378.15 | C194: 12.02166594
B195: 383.15 | C195: 12.55636667
B196: 388.15 | C196: 13.07512753
B197: 393.15 | C197: 13.57860601
B198: 398.15 | C198: 14.06742447
B199: 403.15 | C199: 14.54217241
B200: 408.15 | C200: 15.00340863
B201: 413.15 | C201: 15.45166317
B202: 418.15 | C202: 15.88743914
B203: 423.15 | C203: 16.31121438
B204: 428.15 | C204: 16.72344306
B205: 433.15 | C205: 17.12455706
B206: 438.15 | C206: 17.51496736
B207: 443.15 | C207: 17.89506526
B208: 448.15 | C208: 18.26522356
B209: 453.15 | C209: 18.62579759
B210: 458.15 | C210: 18.97712626
B211: 463.15 | C211: 19.31953297
B212: 468.15 | C212: 19.65332647
B213: 473.15 | C213: 19.97880172
A218: a (SRK) | B218: =pSRKabalpha($B$11,$B$12,$B$13,298,1,1) -> 1.492959174
A219: b (SRK | B219: =pSRKabalpha($B$11,$B$12,$B$13,298,1,2) -> 0.02737345176
A220: alpha | B220: =pSRKabalpha($B$11,$B$12,$B$13,298,1,3) -> 0.4751031349
A221: P (SRK) | B221: =pSRKabalpha($B$11,$B$12,$B$13,298,1,0) -> 24.78401079
A230: Brechungsindes und Temperatur | B230: 1.000332
A231: Dichte bei der Temperatur des Brechungsindex | B231: 1.149182557
A232: R0 | B232: 4.89
A233: α0/4πε0 | B233: 1.926e-24
A234: νg | B234: 1820000000000000
A240: ϕOrientierung | B240: 2.54832273e-63
A241: ϕInduktion | B241: 5.376216682e-72
A242: ϕDispersion | B242: 3.355067379e-59
A243: B aus ϕOrientierung+ϕInduktion+ϕDispersion in erg.cm6 | B243: 3.355322211e-59
A245: A aus sigma, eps von Poling, Prausnitz in erg.cm^12 | B245: 3.227223205e-103
A246: B aus sigma, eps von Poling, Prausnitz in erg.cm^6
B247: 4.302970652e-102

Sheet CO2
A1: CHEMCAD | B1: 6.5.7 | C1: Page | D1: 1
A3: Simulation name: | B3: LJ Parameter | C3: Date: | D3: 2021-12-27 | E3: Time: | F3: 17:19:05
A5: Physical Properties for | B5: Carbon Dioxide | C5: (ID | D5: 49
A7: Formula: | B7: CO2
A9: Molecular Weight : | B9: 44.01
A11: Critical Temperature : | B11: 304.2 | C11: K
A12: Critical Pressure : | B12: 73.81525 | C12: bar
A13: Critical Volume : | B13: 0.092863 | C13: m3/kmol
A15: Melting point : | B15: 216.58 | C15: K | E15: heat of fusion | G15: 9019.04 | H15: kJkmol | I15: (Schmelzenthalpie)
A16: Normal boiling point : | B16: 194.67 | C16: K
A17: IG heat of formation : | B17: -393.52 | C17: kJ/gmol
A18: IG Gibbs of formation : | B18: -394.41 | C18: kJ/gmol
A19: Acentric factor : | B19: 0.231
A20: Solubility parameter : | B20: 14564 | C20: (J/m3)**0.5
A21: Dipole moment : | B21: 0 | C21: C.m
A22: Radius of Gyration : | B22: 1.04e-10 | C22: m
A24: Mean avg. boiling point : | B24: 0 | C24: K
A25: Heat of vaporization : | B25: 17.15477 | C25: kJ/gmol
A26: API net heating value : | B26: 0 | C26: kJ/gmol
A27: API gross heating value : | B27: 0 | C27: kJ/gmol
A28: Liquid volume constant : | B28: 6.365 | C28: cc/mol
A29: Molecular diameter : | B29: 0 | C29: angstroms
A30: Modified acentric factor : | B30: 0
A31: UNIQUAC area parameter : | B31: 0
A32: UNIQUAC volume parameter : | B32: 0
A33: Wilson molar volume : | B33: 0
A34: Stiel polar factor : | B34: 0
A35: Rackett constant : | B35: 0.2745
A36: Polar parameter : | B36: 0
A37: Eps/K : | B37: 0
A38: Watson factor : | B38: 0
A39: API gravity : | B39: 0
A40: Specific gravity 60 F : | B40: 0.827
A42: Electrolyte Data (at 25C):
A44: Electrolyte state : | B44: 0
A45: Electrolyte type : | B45: 0
A46: Electrolyte charge : | B46: 0
A47: Std heat of formation : | B47: -413.7976 | C47: kJ/gmol
A48: Std Gibbs of formation : | B48: -386.0158 | C48: kJ/gmol
A49: Standard entropy : | B49: 2.671448 | C49: kJ/kg-K
A50: Standard heat capacity : | B50: 0 | C50: kJ/kg-K
A52: Liquid Density (kmol/m3) Equation Number: | B52: 105
A54: Min T(K): | B54: 216.58 | C54: Min value: | D54: 26.82564
A55: Max T(K): | B55: 304.19 | C55: Max value: | D55: 10.62423
A57: Coeffs: | B57: 2.757 | C57: 0.2616 | D57: 304.19 | E57: 0.2903 | F57: 0
A59: Solid Density (kmol/m3) Equation Number: | B59: 100
A61: Min T(K): | B61: 143.1 | C61: Min value: | D61: 36.89993
A62: Max T(K): | B62: 216.58 | C62: Max value: | D62: 34.40301
A64: Coeffs: | B64: 32.939 | C64: 0.06842 | D64: -0.0002847 | E64: 0 | F64: 0
A66: Vapor Pressure (Pascals) Equation Number: | B66: 101
A68: Min T(K): | B68: 216.58 | C68: Min value: | D68: 513510.8
A69: Max T(K): | B69: 304.19 | C69: Max value: | D69: 7361698
A71: Coeffs: | B71: 85.53 | C71: -3481.3 | D71: -11.336 | E71: 0.021505 | F71: 1
A73: Heat of Vaporization (J/kmol) Equation Number: | B73: 106
A75: Min T(K): | B75: 216.58 | C75: Min value: | D75: 15299670
A76: Max T(K): | B76: 304.2 | C76: Max value: | D76: 59629.79
A78: Coeffs: | B78: 18260000 | C78: 0.2146 | D78: -0.659 | E78: 0.7826 | F78: 0
A80: Ideal Gas Heat Capacity (J/kmol-K) Equation Number: | B80: 107
A82: Min T(K): | B82: 50 | C82: Min value: | D82: 29370
A83: Max T(K): | B83: 5000 | C83: Max value: | D83: 63346.11
A85: Coeffs: | B85: 29370 | C85: 34540 | D85: -1428 | E85: 26400 | F85: 588
A87: Liquid Heat Capacity (J/kmol-K) Equation Number: | B87: 100
A89: Min T(K): | B89: 220 | C89: Min value: | D89: 78265.77
A90: Max T(K): | B90: 290 | C90: Max value: | D90: 166030.8
A92: Coeffs: | B92: -8304300 | C92: 104370 | D92: -433.33 | E92: 0.60052 | F92: 0
A94: Solid Heat Capacity (J/kmol-K) Equation Number: | B94: 100
A96: Min T(K): | B96: 15 | C96: Min value: | D96: 1390.192
A97: Max T(K): | B97: 210 | C97: Max value: | D97: 59446.46
A99: Coeffs: | B99: -14370 | C99: 1188 | D99: -9.71 | E99: 0.03777 | F99: -5e-05
A101: Vapor Viscosity (Pascal-sec) Equation Number: | B101: 102
A103: Min T(K): | B103: 194.67 | C103: Min value: | D103: 9.749104e-06
A104: Max T(K): | B104: 1500 | C104: Max value: | D104: 5.203248e-05
A106: Coeffs: | B106: 2.148e-06 | C106: 0.46 | D106: 290 | E106: 0 | F106: 0
A108: Liquid Viscosity (Pascal-sec) Equation Number: | B108: 101
A110: Min T(K): | B110: 219.25 | C110: Min value: | D110: 0.0002397536
A111: Max T(K): | B111: 304.19 | C111: Max value: | D111: 5.468995e-05
A113: Coeffs: | B113: 18.775 | C113: -402.9 | D113: -4.6854 | E113: -7e-26 | F113: 10
A115: Vapor Thermal Conductivity (W/m-K) Equation Number: | B115: 102
A117: Min T(K): | B117: 194.67 | C117: Min value: | D117: 0.008866844
A118: Max T(K): | B118: 1500 | C118: Max value: | D118: 0.09025325
A120: Coeffs: | B120: 3.69 | C120: -0.3838 | D120: 964 | E120: 1860000 | F120: 0
A122: Liquid Thermal Conductivity (W/m-K) Equation Number: | B122: 100
A124: Min T(K): | B124: 250 | C124: Min value: | D124: 0.133765
A125: Max T(K): | B125: 300 | C125: Max value: | D125: 0.07412
A127: Coeffs: | B127: 0.43199 | C127: -0.0011929 | D127: 0 | E127: 0 | F127: 0
A129: Liquid Surface Tension (N/m) Equation Number: | B129: 106
A131: Min T(K): | B131: 216.58 | C131: Min value: | D131: 0.01663059
A132: Max T(K): | B132: 304.2 | C132: Max value: | D132: 4.250431e-11
A134: Coeffs: | B134: 0.07997 | C134: 1.2617 | D134: 0 | E134: 0 | F134: 0
A136: Antoine Vapor Pressure (mmHg)
A137: Coefficients: | B137: 22.59
B138: 3103.4
B139: -0.16
A141: Polynomial Ideal Gas Heat Capacity (cal/mol-K)
A142: Coefficients: | B142: 6.26177
B143: 0.0113208
B144: -6.17261e-06
B145: 1.70939e-09
B146: -2.34713e-13
B147: 1.26733e-17
A149: Two-Term Liquid Viscosity (cP)
A150: Coefficients: | B150: 578.08
B151: 185.24
A153: Two-Term Surface Tension (N/m)
A154: Coefficients: | B154: 0
B155: 0
A157: Henrys Constants
A158: Coefficients: | B158: -1392
B159: 0.121
B160: 0.01479
B161: 3.984
A163: MSRK Parameters
A164: Coefficients: | B164: 0.5809
B165: 0.2727
A167: UNIFAC/UNIQUAC Sub-Groups: Sub-Group ID Contribution
W180: 23
A181: Lennard-Jones Daten Literatur | C181: Poling, Prausnitz Appendix B | F181: McQuarrie Physical Chemistry S. 663 Tabelle 16.7 | I181: Mourits 1976 | L181: Ebert, Ederer | O181: sigma Å | P181: aus | Q181: miltlere Flüssigdichte | S181: Schmelzenthalpie | U181: Verdampfungswärme | W181: S + V
A182: σ | B182: 2.827 | C182: 3.941 | D182: Å | F182: 449 | G182: pm | I182: 394.3 | J182: pm | M182: Å | O182: =10/(Q182*6.02214086E+23)^(1/3)*100000000 -> 4.459398231 | Q182: =(D54+D55)/2 -> 18.724935 | R182: kmol/m³ | S182: =G15 -> 9019.04 | T182: =H15 -> kJkmol | U182: =B25 -> 17.15477 | V182: =C25 -> kJ/gmol | W182: =S182+U182*1000 -> 26173.81
A183: ε/k | B183: 59.7 | C183: 195.2 | D183: K | F183: 189 | G183: K | I183: 200.9 | J183: K | M183: K
A185: Lennard-Jones Daten berechnet | C185: Gl. 9-4.8 und 9-4.7 in Poling, Prausnitz S. 9.7 aus krit. Daten | F185: Virial | I185: Gasviskosität | L185: Virialkoeffizient cm³/mol | N185: Poling, Prausnitz
A186: σ | B186: =C186 -> 3.66349912 | C186: =0.809*(B13*1000)^(1/3) -> 3.66349912 | D186: Å | F186: 4.669488935 | I186: 1.746165263
A187: ε/k | B187: =C187 -> 241.562773 | C187: =B11/1.2593 -> 241.562773 | D187: K | F187: 176.2609369 | I187: 59.7
A192: Virial/SRK Daten aus Tabelle Virial | B192: Temperatur K | C192: B Virial LJ
B193: 373.15 | C193: -68.89113887
B194: 378.15 | C194: -66.33367058
B195: 383.15 | C195: -63.85345868
B196: 388.15 | C196: -61.44714294
B197: 393.15 | C197: -59.11155173
B198: 398.15 | C198: -56.84369497
B199: 403.15 | C199: -54.64074542
B200: 408.15 | C200: -52.50003078
B201: 413.15 | C201: -50.41902257
B202: 418.15 | C202: -48.39532667
B203: 423.15 | C203: -46.42667447
B204: 428.15 | C204: -44.51091482
B205: 433.15 | C205: -42.64600654
B206: 438.15 | C206: -40.83001145
B207: 443.15 | C207: -39.06108802
B208: 448.15 | C208: -37.33748542
B209: 453.15 | C209: -35.65753799
B210: 458.15 | C210: -34.01966019
B211: 463.15 | C211: -32.42234178
B212: 468.15 | C212: -30.86414348
B213: 473.15 | C213: -29.34369282
A218: a (SRK) | B218: =pSRKabalpha($B$11,$B$12,$B$13,298,1,1) -> 3.704731454
A219: b (SRK | B219: =pSRKabalpha($B$11,$B$12,$B$13,298,1,2) -> 0.02968708102
A220: alpha | B220: =pSRKabalpha($B$11,$B$12,$B$13,298,1,3) -> 1.012837647
A221: P (SRK) | B221: =pSRKabalpha($B$11,$B$12,$B$13,298,1,0) -> 21.89105452
A230: Brechungsindes und Temperatur | B230: 1.000558
A231: Dichte bei der Temperatur des Brechungsindex | B231: 1.805623861
A232: R0 | B232: 6.595
A233: α0/4πε0 | B233: 2.594e-24
A234: νg | B234: 1567000000000000
A240: ϕOrientierung
A241: ϕInduktion
A242: ϕDispersion | B242: 5.239939019e-59
A243: B aus ϕOrientierung+ϕInduktion+ϕDispersion in erg.cm6 | B243: 5.239939019e-59
A245: A aus sigma, eps von Poling, Prausnitz in erg.cm^12 | B245: 1.513213843e-102
A246: B aus sigma, eps von Poling, Prausnitz in erg.cm^6
B247: 3.730372092e-102

Sheet Methan
A1: CHEMCAD | B1: 6.5.7 | C1: Page | D1: 1
A3: Simulation name: | B3: LJ Parameter | C3: Date: | D3: 2021-12-27 | E3: Time: | F3: 17:21:15
A5: Physical Properties for | B5: Methane | C5: (ID | D5: 2
A7: Formula: | B7: CH4
A9: Molecular Weight : | B9: 16.043
A11: Critical Temperature : | B11: 190.63 | C11: K
A12: Critical Pressure : | B12: 46.00154 | C12: bar
A13: Critical Volume : | B13: 0.099418 | C13: m3/kmol
A15: Melting point : | B15: 90.66999 | C15: K | E15: heat of fusion | G15: 941.4 | H15: kJkmol | I15: (Schmelzenthalpie)
A16: Normal boiling point : | B16: 111.66 | C16: K
A17: IG heat of formation : | B17: -74.85 | C17: kJ/gmol
A18: IG Gibbs of formation : | B18: -50.82 | C18: kJ/gmol
A19: Acentric factor : | B19: 0.01
A20: Solubility parameter : | B20: 11618 | C20: (J/m3)**0.5
A21: Dipole moment : | B21: 0 | C21: C.m
A22: Radius of Gyration : | B22: 1.118e-10 | C22: m
A24: Mean avg. boiling point : | B24: 0 | C24: K
A25: Heat of vaporization : | B25: 8.179895 | C25: kJ/gmol
A26: API net heating value : | B26: 0 | C26: kJ/gmol
A27: API gross heating value : | B27: 0 | C27: kJ/gmol
A28: Liquid volume constant : | B28: 5 | C28: cc/mol
A29: Molecular diameter : | B29: 0 | C29: angstroms
A30: Modified acentric factor : | B30: 0
A31: UNIQUAC area parameter : | B31: 0
A32: UNIQUAC volume parameter : | B32: 0
A33: Wilson molar volume : | B33: 0
A34: Stiel polar factor : | B34: 0
A35: Rackett constant : | B35: 0.2876
A36: Polar parameter : | B36: 0
A37: Eps/K : | B37: 0
A38: Watson factor : | B38: 19.54
A39: API gravity : | B39: 340
A40: Specific gravity 60 F : | B40: 0.3
A42: Electrolyte Data (at 25C):
A44: Electrolyte state : | B44: 0
A45: Electrolyte type : | B45: 0
A46: Electrolyte charge : | B46: 0
A47: Std heat of formation : | B47: 0 | C47: kJ/gmol
A48: Std Gibbs of formation : | B48: 0 | C48: kJ/gmol
A49: Standard entropy : | B49: 0 | C49: kJ/kg-K
A50: Standard heat capacity : | B50: 0 | C50: kJ/kg-K
A52: Liquid Density (kmol/m3) Equation Number: | B52: 105
A54: Min T(K): | B54: 90.67 | C54: Min value: | D54: 28.23075
A55: Max T(K): | B55: 190.58 | C55: Max value: | D55: 9.972231
A57: Coeffs: | B57: 2.873 | C57: 0.2881 | D57: 190.58 | E57: 0.277 | F57: 0
A59: Solid Density (kmol/m3) Equation Number: | B59: 100
A61: Min T(K): | B61: 23.15 | C61: Min value: | D61: 32.57154
A62: Max T(K): | B62: 90.67 | C62: Max value: | D62: 30.3088
A64: Coeffs: | B64: 33.022 | C64: -0.01587 | D64: -0.000155 | E64: 0 | F64: 0
A66: Vapor Pressure (Pascals) Equation Number: | B66: 101
A68: Min T(K): | B68: 90.67 | C68: Min value: | D68: 11732.83
A69: Max T(K): | B69: 190.58 | C69: Max value: | D69: 4592587
A71: Coeffs: | B71: 38.664 | C71: -1314.7 | D71: -3.3373 | E71: 3.016e-05 | F71: 2
A73: Heat of Vaporization (J/kmol) Equation Number: | B73: 106
A75: Min T(K): | B75: 90.67 | C75: Min value: | D75: 8719469
A76: Max T(K): | B76: 190.63 | C76: Max value: | D76: 24143.74
A78: Coeffs: | B78: 10325000 | C78: 0.3138 | D78: -0.2318 | E78: 0.2575 | F78: 0
A80: Ideal Gas Heat Capacity (J/kmol-K) Equation Number: | B80: 107
A82: Min T(K): | B82: 50 | C82: Min value: | D82: 33295
A83: Max T(K): | B83: 1500 | C83: Max value: | D83: 88940.79
A85: Coeffs: | B85: 33295 | C85: 80295 | D85: 2101.8 | E85: 42130 | F85: 995.1
A87: Liquid Heat Capacity (J/kmol-K) Equation Number: | B87: 100
A89: Min T(K): | B89: 90.67 | C89: Min value: | D89: 53335.7
A90: Max T(K): | B90: 180 | C90: Max value: | D90: 91931.85
A92: Coeffs: | B92: 607140 | C92: -18946 | D92: 238.42 | E92: -1.3113 | F92: 0.0026842
A94: Solid Heat Capacity (J/kmol-K) Equation Number: | B94: 100
A96: Min T(K): | B96: 21 | C96: Min value: | D96: 18207.99
A97: Max T(K): | B97: 90 | C97: Max value: | D97: 43600.92
A99: Coeffs: | B99: -1866 | C99: 1212.3 | D99: -13.534 | E99: 0.06308 | F99: 0
A101: Vapor Viscosity (Pascal-sec) Equation Number: | B101: 102
A103: Min T(K): | B103: 90.67 | C103: Min value: | D103: 3.796681e-06
A104: Max T(K): | B104: 850 | C104: Max value: | D104: 2.428019e-05
A106: Coeffs: | B106: 1.323e-05 | C106: 0.1798 | D106: 718 | E106: -8900 | F106: 0
A108: Liquid Viscosity (Pascal-sec) Equation Number: | B108: 101
A110: Min T(K): | B110: 90.67 | C110: Min value: | D110: 0.0002043878
A111: Max T(K): | B111: 190 | C111: Max value: | D111: 2.039802e-05
A113: Coeffs: | B113: -1.722 | C113: 84.5 | D113: -1.7095 | E113: -9.02e-24 | F113: 10
A115: Vapor Thermal Conductivity (W/m-K) Equation Number: | B115: 102
A117: Min T(K): | B117: 96.99999 | C117: Min value: | D117: 0.01099906
A118: Max T(K): | B118: 1400 | C118: Max value: | D118: 0.249162
A120: Coeffs: | B120: 0.001226 | C120: 0.8031 | D120: 960 | E120: -61200 | F120: 0
A122: Liquid Thermal Conductivity (W/m-K) Equation Number: | B122: 100
A124: Min T(K): | B124: 90.67 | C124: Min value: | D124: 0.2240489
A125: Max T(K): | B125: 190.58 | C125: Max value: | D125: 0.0798694
A127: Coeffs: | B127: 0.4194 | C127: -0.002493 | D127: 3.733e-06 | E127: 0 | F127: 0
A129: Liquid Surface Tension (N/m) Equation Number: | B129: 106
A131: Min T(K): | B131: 90.67 | C131: Min value: | D131: 0.01763254
A132: Max T(K): | B132: 190.63 | C132: Max value: | D132: 1.229138e-10
A134: Coeffs: | B134: 0.035684 | C134: 1.092 | D134: 0 | E134: 0 | F134: 0
A136: Antoine Vapor Pressure (mmHg)
A137: Coefficients: | B137: 15.599
B138: 968.13
B139: -3.72
A141: Polynomial Ideal Gas Heat Capacity (cal/mol-K)
A142: Coefficients: | B142: 8.62103
B143: -0.0135651
B144: 6.23744e-05
B145: -6.37917e-08
B146: 2.87046e-11
B147: -4.92029e-15
A149: Two-Term Liquid Viscosity (cP)
A150: Coefficients: | B150: 114.14
B151: 57.6
A153: Two-Term Surface Tension (N/m)
A154: Coefficients: | B154: 0
B155: 0
A157: Henrys Constants
A158: Coefficients: | B158: -20994
B159: -41.095
B160: 0.01384
B161: 303.29
A163: MSRK Parameters
A164: Coefficients: | B164: 0.4631
B165: 0.0698
A167: UNIFAC/UNIQUAC Sub-Groups: Sub-Group ID Contribution
W180: 23
A181: Lennard-Jones Daten Literatur | C181: Poling, Prausnitz Appendix B | F181: McQuarrie Physical Chemistry S. 663 Tabelle 16.7 | I181: Mourits 1976 | L181: Ebert, Ederer | O181: sigma Å | P181: aus | Q181: miltlere Flüssigdichte | S181: Schmelzenthalpie | U181: Verdampfungswärme | W181: S + V
A182: σ | B182: 2.827 | C182: 3.758 | D182: Å | F182: 378 | G182: pm | I182: 379 | J182: pm | L182: 3.817 | M182: Å | O182: =10/(Q182*6.02214086E+23)^(1/3)*100000000 -> 4.429900223 | Q182: =(D54+D55)/2 -> 19.1014905 | R182: kmol/m³ | S182: =G15 -> 941.4 | T182: =H15 -> kJkmol | U182: =B25 -> 8.179895 | V182: =C25 -> kJ/gmol | W182: =S182+U182*1000 -> 9121.295
A183: ε/k | B183: 59.7 | C183: 148.6 | D183: K | F183: 149 | G183: K | I183: 142.1 | J183: K | L183: 148.2 | M183: K
A185: Lennard-Jones Daten berechnet | C185: Gl. 9-4.8 und 9-4.7 in Poling, Prausnitz S. 9.7 aus krit. Daten | F185: Virial | I185: Gasviskosität | L185: Virialkoeffizient cm³/mol | N185: Poling, Prausnitz
A186: σ | B186: =C186 -> 3.7477464 | C186: =0.809*(B13*1000)^(1/3) -> 3.7477464 | D186: Å | F186: 3.982326137 | I186: 1.572840681
A187: ε/k | B187: =C187 -> 151.3777495 | C187: =B11/1.2593 -> 151.3777495 | D187: K | F187: 139.3159141 | I187: 59.7
A192: Virial/SRK Daten aus Tabelle Virial | B192: Temperatur K | C192: B Virial LJ
B193: 373.15 | C193: -18.39710135
B194: 378.15 | C194: -17.23027843
B195: 383.15 | C195: -16.09832911
B196: 388.15 | C196: -14.99976612
B197: 393.15 | C197: -13.93318495
B198: 398.15 | C198: -12.89725821
B199: 403.15 | C199: -11.89073037
B200: 408.15 | C200: -10.91241301
B201: 413.15 | C201: -9.96118043
B202: 418.15 | C202: -9.035965517
B203: 423.15 | C203: -8.135756041
B204: 428.15 | C204: -7.259591165
B205: 433.15 | C205: -6.406558236
B206: 438.15 | C206: -5.57578981
B207: 443.15 | C207: -4.766460896
B208: 448.15 | C208: -3.977786397
B209: 453.15 | C209: -3.209018739
B210: 458.15 | C210: -2.459445658
B211: 463.15 | C211: -1.728388148
B212: 468.15 | C212: -1.015198551
B213: 473.15 | C213: -0.3192587705
A218: a (SRK) | B218: =pSRKabalpha($B$11,$B$12,$B$13,298,1,1) -> 2.334503519
A219: b (SRK | B219: =pSRKabalpha($B$11,$B$12,$B$13,298,1,2) -> 0.02985198811
A220: alpha | B220: =pSRKabalpha($B$11,$B$12,$B$13,298,1,3) -> 0.7074940173
A221: P (SRK) | B221: =pSRKabalpha($B$11,$B$12,$B$13,298,1,0) -> 23.93573205
A230: Brechungsindes und Temperatur | B230: 1.000454
A231: Dichte bei der Temperatur des Brechungsindex | B231: 0.6582054895
A232: R0 | B232: 6.855
A233: α0/4πε0 | B233: 2.699e-24
A234: νg | B234: 1538000000000000
A240: ϕOrientierung
A241: ϕInduktion
A242: ϕDispersion | B242: 5.56774578e-59
A243: B aus ϕOrientierung+ϕInduktion+ϕDispersion in erg.cm6 | B243: 5.56774578e-59
A245: A aus sigma, eps von Poling, Prausnitz in erg.cm^12 | B245: 6.510935493e-103
A246: B aus sigma, eps von Poling, Prausnitz in erg.cm^6
B247: 6.110765904e-102

Sheet Ethan
A1: CHEMCAD | B1: 6.5.7 | C1: Page | D1: 1
A3: Simulation name: | B3: LJ Parameter | C3: Date: | D3: 2021-12-27 | E3: Time: | F3: 17:22:05
A5: Physical Properties for | B5: Ethane | C5: (ID | D5: 3
A7: Formula: | B7: C2H6
A9: Molecular Weight : | B9: 30.07
A11: Critical Temperature : | B11: 305.43 | C11: K
A12: Critical Pressure : | B12: 48.83864 | C12: bar
A13: Critical Volume : | B13: 0.1467 | C13: m3/kmol
A15: Melting point : | B15: 90.35001 | C15: K | E15: heat of fusion | G15: 2859 | H15: kJkmol | I15: (Schmelzenthalpie)
A16: Normal boiling point : | B16: 184.55 | C16: K
A17: IG heat of formation : | B17: -83.85001 | C17: kJ/gmol
A18: IG Gibbs of formation : | B18: -31.95 | C18: kJ/gmol
A19: Acentric factor : | B19: 0.099
A20: Solubility parameter : | B20: 12375 | C20: (J/m3)**0.5
A21: Dipole moment : | B21: 0 | C21: C.m
A22: Radius of Gyration : | B22: 1.826e-10 | C22: m
A24: Mean avg. boiling point : | B24: 0 | C24: K
A25: Heat of vaporization : | B25: 14.70707 | C25: kJ/gmol
A26: API net heating value : | B26: 0 | C26: kJ/gmol
A27: API gross heating value : | B27: 0 | C27: kJ/gmol
A28: Liquid volume constant : | B28: 7.88 | C28: cc/mol
A29: Molecular diameter : | B29: 0 | C29: angstroms
A30: Modified acentric factor : | B30: 0.106
A31: UNIQUAC area parameter : | B31: 0
A32: UNIQUAC volume parameter : | B32: 0
A33: Wilson molar volume : | B33: 0
A34: Stiel polar factor : | B34: 0
A35: Rackett constant : | B35: 0.2793
A36: Polar parameter : | B36: 0
A37: Eps/K : | B37: 0
A38: Watson factor : | B38: 18.38
A39: API gravity : | B39: 265.5
A40: Specific gravity 60 F : | B40: 0.3564
A42: Electrolyte Data (at 25C):
A44: Electrolyte state : | B44: 0
A45: Electrolyte type : | B45: 0
A46: Electrolyte charge : | B46: 0
A47: Std heat of formation : | B47: 0 | C47: kJ/gmol
A48: Std Gibbs of formation : | B48: 0 | C48: kJ/gmol
A49: Standard entropy : | B49: 0 | C49: kJ/kg-K
A50: Standard heat capacity : | B50: 0 | C50: kJ/kg-K
A52: Liquid Density (kmol/m3) Equation Number: | B52: 105
A54: Min T(K): | B54: 90.34999 | C54: Min value: | D54: 21.62049
A55: Max T(K): | B55: 305.42 | C55: Max value: | D55: 6.764617
A57: Coeffs: | B57: 1.8257 | C57: 0.2733 | D57: 305.42 | E57: 0.2833 | F57: 0
A59: Solid Density (kmol/m3) Equation Number: | B59: 100
A61: Min T(K): | B61: 23.15 | C61: Min value: | D61: 25.00951
A62: Max T(K): | B62: 90.34999 | C62: Max value: | D62: 24.27367
A64: Coeffs: | B64: 25.263 | C64: -0.01095 | D64: 0 | E64: 0 | F64: 0
A66: Vapor Pressure (Pascals) Equation Number: | B66: 101
A68: Min T(K): | B68: 90.34999 | C68: Min value: | D68: 1.130534
A69: Max T(K): | B69: 305.42 | C69: Max value: | D69: 4870932
A71: Coeffs: | B71: 52.55 | C71: -2611.4 | D71: -5.2514 | E71: 1.55e-05 | F71: 2
A73: Heat of Vaporization (J/kmol) Equation Number: | B73: 106
A75: Min T(K): | B75: 90.34999 | C75: Min value: | D75: 17853090
A76: Max T(K): | B76: 305.43 | C76: Max value: | D76: 46324.25
A78: Coeffs: | B78: 20903000 | C78: 0.572 | D78: -0.5061 | E78: 0.3133 | F78: 0
A80: Ideal Gas Heat Capacity (J/kmol-K) Equation Number: | B80: 107
A82: Min T(K): | B82: 100 | C82: Min value: | D82: 35694.75
A83: Max T(K): | B83: 1500 | C83: Max value: | D83: 145133.1
A85: Coeffs: | B85: 35650 | C85: 135200 | D85: 1430 | E85: 61800 | F85: 612
A87: Liquid Heat Capacity (J/kmol-K) Equation Number: | B87: 100
A89: Min T(K): | B89: 90.34999 | C89: Min value: | D89: 69040.3
A90: Max T(K): | B90: 290 | C90: Max value: | D90: 123464.3
A92: Coeffs: | B92: 183100 | C92: -3083 | D92: 29.608 | E92: -0.12133 | F92: 0.0001843
A94: Solid Heat Capacity (J/kmol-K) Equation Number: | B94: 100
A96: Min T(K): | B96: 10 | C96: Min value: | D96: 1457.45
A97: Max T(K): | B97: 80 | C97: Max value: | D97: 58445.5
A99: Coeffs: | B99: 7343.1 | C99: -1362.5 | D99: 91.544 | E99: -1.4984 | F99: 0.008335
A101: Vapor Viscosity (Pascal-sec) Equation Number: | B101: 102
A103: Min T(K): | B103: 150 | C103: Min value: | D103: 4.956653e-06
A104: Max T(K): | B104: 1000 | C104: Max value: | D104: 2.641494e-05
A106: Coeffs: | B106: 7.817e-06 | C106: 0.273 | D106: 981 | E106: -30300 | F106: 0
A108: Liquid Viscosity (Pascal-sec) Equation Number: | B108: 101
A110: Min T(K): | B110: 98.15 | C110: Min value: | D110: 0.0009573472
A111: Max T(K): | B111: 293.15 | C111: Max value: | D111: 4.429757e-05
A113: Coeffs: | B113: -7.748 | C113: 303.5 | D113: -0.5005 | E113: -1e-25 | F113: 10
A115: Vapor Thermal Conductivity (W/m-K) Equation Number: | B115: 102
A117: Min T(K): | B117: 225 | C117: Min value: | D117: 0.01344703
A118: Max T(K): | B118: 825 | C118: Max value: | D118: 0.10676
A120: Coeffs: | B120: 8.218 | C120: -0.7012 | D120: -1418.9 | E120: 962300 | F120: 0
A122: Liquid Thermal Conductivity (W/m-K) Equation Number: | B122: 100
A124: Min T(K): | B124: 215 | C124: Min value: | D124: 0.140335
A125: Max T(K): | B125: 300 | C125: Max value: | D125: 0.07480001
A127: Coeffs: | B127: 0.3061 | C127: -0.000771 | D127: 0 | E127: 0 | F127: 0
A129: Liquid Surface Tension (N/m) Equation Number: | B129: 106
A131: Min T(K): | B131: 90.34999 | C131: Min value: | D131: 0.03208413
A132: Max T(K): | B132: 305.43 | C132: Max value: | D132: 1.756119e-10
A134: Coeffs: | B134: 0.048984 | C134: 1.2065 | D134: 0 | E134: 0 | F134: 0
A136: Antoine Vapor Pressure (mmHg)
A137: Coefficients: | B137: 15.895
B138: 1582.2
B139: -13.762
A141: Polynomial Ideal Gas Heat Capacity (cal/mol-K)
A142: Coefficients: | B142: 7.75999
B143: -0.00389027
B144: 0.000101752
B145: -1.36493e-07
B146: 7.62959e-11
B147: -1.60452e-14
A149: Two-Term Liquid Viscosity (cP)
A150: Coefficients: | B150: 156.6
B151: 95.57
A153: Two-Term Surface Tension (N/m)
A154: Coefficients: | B154: 0
B155: 0
A157: Henrys Constants
A158: Coefficients: | B158: 556.36
B159: 43.825
B160: -0.06374
B161: -229.27
A163: MSRK Parameters
A164: Coefficients: | B164: 0.5558
B165: 0.1208
A167: UNIFAC/UNIQUAC Sub-Groups: Sub-Group ID Contribution
A168: 1 | B168: 2
W180: 23
A181: Lennard-Jones Daten Literatur | C181: Poling, Prausnitz Appendix B | F181: McQuarrie Physical Chemistry S. 663 Tabelle 16.7 | I181: Mourits 1976 | L181: Ebert, Ederer | O181: sigma Å | P181: aus | Q181: miltlere Flüssigdichte | S181: Schmelzenthalpie | U181: Verdampfungswärme | W181: S + V
A182: σ | B182: 2.827 | C182: 4.443 | D182: Å | F182: 395 | G182: pm | I182: 440.7 | J182: pm | M182: Å | O182: =10/(Q182*6.02214086E+23)^(1/3)*100000000 -> 4.89098334 | Q182: =(D54+D55)/2 -> 14.1925535 | R182: kmol/m³ | S182: =G15 -> 2859 | T182: =H15 -> kJkmol | U182: =B25 -> 14.70707 | V182: =C25 -> kJ/gmol | W182: =S182+U182*1000 -> 17566.07
A183: ε/k | B183: 59.7 | C183: 215.7 | D183: K | F183: 243 | G183: K | I183: 227.9 | J183: K | M183: K
A185: Lennard-Jones Daten berechnet | C185: Gl. 9-4.8 und 9-4.7 in Poling, Prausnitz S. 9.7 aus krit. Daten | F185: Virial | I185: Gasviskosität | L185: Virialkoeffizient cm³/mol | N185: Poling, Prausnitz
A186: σ | B186: =C186 -> 4.266697888 | C186: =0.809*(B13*1000)^(1/3) -> 4.266697888 | D186: Å | F186: 5.011376506 | I186: 4.121741319
A187: ε/k | B187: =C187 -> 242.5395061 | C187: =B11/1.2593 -> 242.5395061 | D187: K | F187: 196.3890549 | I187: 242.5395061
A192: Virial/SRK Daten aus Tabelle Virial | B192: Temperatur K | C192: B Virial LJ
B193: 373.15 | C193: -113.0200581
B194: 378.15 | C194: -109.3695829
B195: 383.15 | C195: -105.8303091
B196: 388.15 | C196: -102.3973425
B197: 393.15 | C197: -99.06607029
B198: 398.15 | C198: -95.83214167
B199: 403.15 | C199: -92.6914492
B200: 408.15 | C200: -89.64011218
B201: 413.15 | C201: -86.67446122
B202: 418.15 | C202: -83.79102412
B203: 423.15 | C203: -80.98651276
B204: 428.15 | C204: -78.25781116
B205: 433.15 | C205: -75.60196499
B206: 438.15 | C206: -73.01616798
B207: 443.15 | C207: -70.49775933
B208: 448.15 | C208: -68.04420783
B209: 453.15 | C209: -65.6531075
B210: 458.15 | C210: -63.32216919
B211: 463.15 | C211: -61.04921361
B212: 468.15 | C212: -58.83216485
B213: 473.15 | C213: -56.6690443
A218: a (SRK) | B218: =pSRKabalpha($B$11,$B$12,$B$13,298,1,1) -> 5.644743741
A219: b (SRK | B219: =pSRKabalpha($B$11,$B$12,$B$13,298,1,2) -> 0.04505080061
A220: alpha | B220: =pSRKabalpha($B$11,$B$12,$B$13,298,1,3) -> 1.017382402
A221: P (SRK) | B221: =pSRKabalpha($B$11,$B$12,$B$13,298,1,0) -> 20.45069056
A230: Brechungsindes und Temperatur | B230: 1.0007629
A231: Dichte bei der Temperatur des Brechungsindex | B231: 1.233699375
A232: R0 | B232: 10.99
A233: α0/4πε0 | B233: 4.326e-24
A234: νg | B234: 1215000000000000
A240: ϕOrientierung
A241: ϕInduktion
A242: ϕDispersion | B242: 1.129969187e-58
A243: B aus ϕOrientierung+ϕInduktion+ϕDispersion in erg.cm6 | B243: 1.129969187e-58
A245: A aus sigma, eps von Poling, Prausnitz in erg.cm^12 | B245: 7.048702452e-102
A246: B aus sigma, eps von Poling, Prausnitz in erg.cm^6
B247: 3.837879745e-101

Sheet Propan
A1: N-Propan | B1: 6.5.7 | C1: Page | D1: 1
A3: Simulation name: | B3: LJ Parameter | C3: Date: | D3: 2021-12-27 | E3: Time: | F3: 17:22:12
A5: Physical Properties for | B5: n-Propane | C5: (ID | D5: 4
A7: Formula: | B7: C3H8
A9: Molecular Weight : | B9: 44.096
A11: Critical Temperature : | B11: 369.82 | C11: K
A12: Critical Pressure : | B12: 42.4957 | C12: bar
A13: Critical Volume : | B13: 0.20083 | C13: m3/kmol
A15: Melting point : | B15: 85.46 | C15: K | E15: heat of fusion | G15: 3524 | H15: kJkmol | I15: (Schmelzenthalpie)
A16: Normal boiling point : | B16: 231.1 | C16: K
A17: IG heat of formation : | B17: -104.68 | C17: kJ/gmol
A18: IG Gibbs of formation : | B18: -24.4 | C18: kJ/gmol
A19: Acentric factor : | B19: 0.153
A20: Solubility parameter : | B20: 13091 | C20: (J/m3)**0.5
A21: Dipole moment : | B21: 0 | C21: C.m
A22: Radius of Gyration : | B22: 2.431e-10 | C22: m
A24: Mean avg. boiling point : | B24: 0 | C24: K
A25: Heat of vaporization : | B25: 18.77401 | C25: kJ/gmol
A26: API net heating value : | B26: 0 | C26: kJ/gmol
A27: API gross heating value : | B27: 0 | C27: kJ/gmol
A28: Liquid volume constant : | B28: 10.35 | C28: cc/mol
A29: Molecular diameter : | B29: 0 | C29: angstroms
A30: Modified acentric factor : | B30: 0.154
A31: UNIQUAC area parameter : | B31: 0
A32: UNIQUAC volume parameter : | B32: 0
A33: Wilson molar volume : | B33: 0
A34: Stiel polar factor : | B34: 0
A35: Rackett constant : | B35: 0.2763
A36: Polar parameter : | B36: 0
A37: Eps/K : | B37: 0
A38: Watson factor : | B38: 14.71
A39: API gravity : | B39: 147.2
A40: Specific gravity 60 F : | B40: 0.5077
A42: Electrolyte Data (at 25C):
A44: Electrolyte state : | B44: 0
A45: Electrolyte type : | B45: 0
A46: Electrolyte charge : | B46: 0
A47: Std heat of formation : | B47: 0 | C47: kJ/gmol
A48: Std Gibbs of formation : | B48: 0 | C48: kJ/gmol
A49: Standard entropy : | B49: 0 | C49: kJ/kg-K
A50: Standard heat capacity : | B50: 0 | C50: kJ/kg-K
A52: Liquid Density (kmol/m3) Equation Number: | B52: 105
A54: Min T(K): | B54: 85.44 | C54: Min value: | D54: 16.4965
A55: Max T(K): | B55: 369.82 | C55: Max value: | D55: 5.023428
A57: Coeffs: | B57: 1.3937 | C57: 0.27744 | D57: 369.82 | E57: 0.287 | F57: 0
A59: Solid Density (kmol/m3) Equation Number: | B59: 100
A61: Min T(K): | B61: 23.15 | C61: Min value: | D61: 18.39031
A62: Max T(K): | B62: 85.44 | C62: Max value: | D62: 17.12383
A64: Coeffs: | B64: 18.861 | C64: -0.020332 | D64: 0 | E64: 0 | F64: 0
A66: Vapor Pressure (Pascals) Equation Number: | B66: 101
A68: Min T(K): | B68: 85.44 | C68: Min value: | D68: 0.0002074448
A69: Max T(K): | B69: 369.82 | C69: Max value: | D69: 4141972
A71: Coeffs: | B71: 54.276 | C71: -3368 | D71: -5.261 | E71: 8.6e-06 | F71: 2
A73: Heat of Vaporization (J/kmol) Equation Number: | B73: 106
A75: Min T(K): | B75: 85.44 | C75: Min value: | D75: 24249530
A76: Max T(K): | B76: 369.82 | C76: Max value: | D76: 70816.82
A78: Coeffs: | B78: 26720000 | C78: 0.3855 | D78: -0.086 | E78: 0.0686 | F78: 0
A80: Ideal Gas Heat Capacity (J/kmol-K) Equation Number: | B80: 107
A82: Min T(K): | B82: 100 | C82: Min value: | D82: 44115.01
A83: Max T(K): | B83: 1500 | C83: Max value: | D83: 204669.5
A85: Coeffs: | B85: 44000 | C85: 193800 | D85: 1369 | E85: 98000 | F85: 583
A87: Liquid Heat Capacity (J/kmol-K) Equation Number: | B87: 100
A89: Min T(K): | B89: 85.44 | C89: Min value: | D89: 85138.45
A90: Max T(K): | B90: 350 | C90: Max value: | D90: 159260.4
A92: Coeffs: | B92: 122200 | C92: -994.3 | D92: 9.081 | E92: -0.033549 | F92: 4.7384e-05
A94: Solid Heat Capacity (J/kmol-K) Equation Number: | B94: 100
A96: Min T(K): | B96: 30 | C96: Min value: | D96: 17300
A97: Max T(K): | B97: 84 | C97: Max value: | D97: 52324.4
A99: Coeffs: | B99: -11230 | C99: 1059 | D99: -3.6 | E99: 0 | F99: 0
A101: Vapor Viscosity (Pascal-sec) Equation Number: | B101: 102
A103: Min T(K): | B103: 193.15 | C103: Min value: | D103: 5.338343e-06
A104: Max T(K): | B104: 750 | C104: Max value: | D104: 1.803427e-05
A106: Coeffs: | B106: 2.209e-06 | C106: 0.3824 | D106: 405 | E106: 0 | F106: 0
A108: Liquid Viscosity (Pascal-sec) Equation Number: | B108: 101
A110: Min T(K): | B110: 85.44 | C110: Min value: | D110: 0.009209538
A111: Max T(K): | B111: 369.82 | C111: Max value: | D111: 3.60646e-05
A113: Coeffs: | B113: -15.765 | C113: 618.23 | D113: 0.8639 | E113: -1.8e-13 | F113: 5
A115: Vapor Thermal Conductivity (W/m-K) Equation Number: | B115: 102
A117: Min T(K): | B117: 232.7 | C117: Min value: | D117: 0.01149146
A118: Max T(K): | B118: 773.15 | C118: Max value: | D118: 0.08937007
A120: Coeffs: | B120: 6.15e-05 | C120: 1.1696 | D120: 497.6 | E120: 0 | F120: 0
A122: Liquid Thermal Conductivity (W/m-K) Equation Number: | B122: 100
A124: Min T(K): | B124: 85.44 | C124: Min value: | D124: 0.2515522
A125: Max T(K): | B125: 369.82 | C125: Max value: | D125: 0.06128375
A127: Coeffs: | B127: 0.3481 | C127: -0.0012365 | D127: 1.2464e-06 | E127: 0 | F127: 0
A129: Liquid Surface Tension (N/m) Equation Number: | B129: 106
A131: Min T(K): | B131: 85.44 | C131: Min value: | D131: 0.03628231
A132: Max T(K): | B132: 369.82 | C132: Max value: | D132: 2.247458e-10
A134: Coeffs: | B134: 0.049624 | C134: 1.192 | D134: 0 | E134: 0 | F134: 0
A136: Antoine Vapor Pressure (mmHg)
A137: Coefficients: | B137: 15.725
B138: 1872.8
B139: -25.101
A141: Polynomial Ideal Gas Heat Capacity (cal/mol-K)
A142: Coefficients: | B142: 8.33116
B143: 0.00554989
B144: 0.000135255
B145: -1.98494e-07
B146: 1.16553e-10
B147: -2.53273e-14
A149: Two-Term Liquid Viscosity (cP)
A150: Coefficients: | B150: 222.67
B151: 133.4
A153: Two-Term Surface Tension (N/m)
A154: Coefficients: | B154: 0
B155: 0
A157: Henrys Constants
A158: Coefficients: | B158: -415260
B159: -1318.8
B160: 1.0466
B161: 8514.1
A163: MSRK Parameters
A164: Coefficients: | B164: 0.6038
B165: 0.1563
A167: UNIFAC/UNIQUAC Sub-Groups: Sub-Group ID Contribution
A168: 1 | B168: 2
A169: 2 | B169: 1
W180: 23
A181: Lennard-Jones Daten Literatur | C181: Poling, Prausnitz Appendix B | F181: McQuarrie Physical Chemistry S. 663 Tabelle 16.7 | I181: Mourits 1976 | L181: Ebert, Ederer | O181: sigma Å | P181: aus | Q181: miltlere Flüssigdichte | S181: Schmelzenthalpie | U181: Verdampfungswärme | W181: S + V
A182: σ | B182: 2.827 | C182: 5.118 | D182: Å | F182: 564 | G182: pm | I182: 511.4 | J182: pm | M182: Å | O182: =10/(Q182*6.02214086E+23)^(1/3)*100000000 -> 5.363884579 | Q182: =(D54+D55)/2 -> 10.759964 | R182: kmol/m³ | S182: =G15 -> 3524 | T182: =H15 -> kJkmol | U182: =B25 -> 18.77401 | V182: =C25 -> kJ/gmol | W182: =S182+U182*1000 -> 22298.01
A183: ε/k | B183: 59.7 | C183: 237.1 | D183: K | F183: 242 | G183: K | I183: 237.2 | J183: K | M183: K
A185: Lennard-Jones Daten berechnet | C185: Gl. 9-4.8 und 9-4.7 in Poling, Prausnitz S. 9.7 aus krit. Daten | F185: Virial | I185: Gasviskosität | L185: Virialkoeffizient cm³/mol | N185: Poling, Prausnitz
A186: σ | B186: =C186 -> 4.737596302 | C186: =0.809*(B13*1000)^(1/3) -> 4.737596302 | D186: Å | F186: 5.811184996 | I186: 2.349657667
A187: ε/k | B187: =C187 -> 293.6710871 | C187: =B11/1.2593 -> 293.6710871 | D187: K | F187: 225.1659577 | I187: 59.7
A192: Virial/SRK Daten aus Tabelle Virial | B192: Temperatur K | C192: B Virial LJ
B193: 373.15 | C193: -241.0396415
B194: 378.15 | C194: -234.1869939
B195: 383.15 | C195: -227.5460198
B196: 388.15 | C196: -221.1072401
B197: 393.15 | C197: -214.8617306
B198: 398.15 | C198: -208.8010826
B199: 403.15 | C199: -202.9173658
B200: 408.15 | C200: -197.2030955
B201: 413.15 | C201: -191.6512012
B202: 418.15 | C202: -186.2549985
B203: 423.15 | C203: -181.0081635
B204: 428.15 | C204: -175.9047084
B205: 433.15 | C205: -170.9389599
B206: 438.15 | C206: -166.1055387
B207: 443.15 | C207: -161.3993406
B208: 448.15 | C208: -156.8155194
B209: 453.15 | C209: -152.3494707
B210: 458.15 | C210: -147.9968173
B211: 463.15 | C211: -143.7533948
B212: 468.15 | C212: -139.6152395
B213: 473.15 | C213: -135.578576
A218: a (SRK) | B218: =pSRKabalpha($B$11,$B$12,$B$13,298,1,1) -> 9.510869204
A219: b (SRK | B219: =pSRKabalpha($B$11,$B$12,$B$13,298,1,2) -> 0.0626902194
A220: alpha | B220: =pSRKabalpha($B$11,$B$12,$B$13,298,1,3) -> 1.168010477
A221: P (SRK) | B221: =pSRKabalpha($B$11,$B$12,$B$13,298,1,0) -> 15.98080384
A230: Brechungsindes und Temperatur | B230: 1.3657
A231: Dichte bei der Temperatur des Brechungsindex | B231: 0.5812
A232: R0 | B232: 15.125 | C232: 16.98217788
A233: α0/4πε0 | B233: 5.995920579e-24
A234: νg | B234: 1.034376856e+15
A240: ϕOrientierung
A241: ϕInduktion
A242: ϕDispersion | B242: 1.848024953e-58
A243: B aus ϕOrientierung+ϕInduktion+ϕDispersion in erg.cm6 | B243: 1.848024953e-58
A245: A aus sigma, eps von Poling, Prausnitz in erg.cm^12 | B245: 4.229394601e-101
A246: B aus sigma, eps von Poling, Prausnitz in erg.cm^6
B247: 1.124184559e-100

Sheet Benzol
A1: CHEMCAD | B1: 6.5.7 | C1: Page | D1: 1
A3: Simulation name: | B3: LJ Parameter | C3: Date: | D3: 2023-02-16 | E3: Time: | F3: 16:15:17
A5: Physical Properties for | B5: Benzene | C5: (ID | D5: 40
A7: Formula: | B7: C6H6
A9: Molecular Weight : | B9: 78.114
A11: Critical Temperature : | B11: 288.9 | C11: C
A12: Critical Pressure : | B12: 48.95 | C12: bar
A13: Critical Volume : | B13: 0.256 | C13: m3/kmol
A15: Melting point : | B15: 5.529996 | C15: C | E15: heat of fusion | G15: 9866 | H15: kJkmol | I15: (Schmelzenthalpie)
A16: Normal boiling point : | B16: 80.08998 | C16: C
A17: IG heat of formation : | B17: 82880 | C17: kJ/kmol
A18: IG Gibbs of formation : | B18: 129600 | C18: kJ/kmol
A19: Acentric factor : | B19: 0.2103
A20: Solubility parameter : | B20: 18700 | C20: (J/m3)**0.5
A21: Dipole moment : | B21: 0 | C21: C.m
A22: Radius of Gyration : | B22: 3.004e-10 | C22: m
A24: Mean avg. boiling point : | B24: 0 | C24: C
A25: Heat of vaporization : | B25: 30761.43 | C25: kJ/kmol
A26: API net heating value : | B26: 0 | C26: kJ/kmol
A27: API gross heating value : | B27: 0 | C27: kJ/kmol
A28: Liquid volume constant : | B28: 12.26 | C28: cc/mol
A29: Molecular diameter : | B29: 0 | C29: angstroms
A30: Modified acentric factor : | B30: 0.213
A31: UNIQUAC area parameter : | B31: 2.4
A32: UNIQUAC volume parameter : | B32: 3.1878
A33: Wilson molar volume : | B33: 89.41
A34: Stiel polar factor : | B34: 0
A35: Rackett constant : | B35: 0.2696
A36: Polar parameter : | B36: 0
A37: Eps/K : | B37: 0
A38: Watson factor : | B38: 9.73
A39: API gravity : | B39: 28.5
A40: Specific gravity 60 F : | B40: 0.8844
A42: Electrolyte Data (at 25C):
A44: Electrolyte state : | B44: 0
A45: Electrolyte type : | B45: 0
A46: Electrolyte charge : | B46: 0
A47: Std heat of formation : | B47: 0 | C47: kJ/kmol
A48: Std Gibbs of formation : | B48: 0 | C48: kJ/kmol
A49: Standard entropy : | B49: 0 | C49: kJ/kg-K
A50: Standard heat capacity : | B50: 0 | C50: kJ/kg-K
A52: Liquid Density (kmol/m3) Equation Number: | B52: 105
A54: Min T(K): | B54: 278.68 | C54: Min value: | D54: 11.42214
A55: Max T(K): | B55: 562.05 | C55: Max value: | D55: 3.886634
A57: Coeffs: | B57: 1.0259 | C57: 0.26666 | D57: 562.05 | E57: 0.28394 | F57: 0
A59: Solid Density (kmol/m3) Equation Number: | B59: 100
A61: Min T(K): | B61: 273.1 | C61: Min value: | D61: 12.96348
A62: Max T(K): | B62: 278.68 | C62: Max value: | D62: 12.96148
A64: Coeffs: | B64: 13.061 | C64: -0.0003571 | D64: 0 | E64: 0 | F64: 0
A66: Vapor Pressure (Pascals) Equation Number: | B66: 101
A68: Min T(K): | B68: 278.68 | C68: Min value: | D68: 4764.21
A69: Max T(K): | B69: 562.05 | C69: Max value: | D69: 4875092
A71: Coeffs: | B71: 83.107 | C71: -6486.2 | D71: -9.2194 | E71: 6.9844e-06 | F71: 2
A73: Heat of Vaporization (J/kmol) Equation Number: | B73: 106
A75: Min T(K): | B75: 278.68 | C75: Min value: | D75: 34704610
A76: Max T(K): | B76: 562.05 | C76: Max value: | D76: 56296.56
A78: Coeffs: | B78: 45346000 | C78: 0.39053 | D78: 0 | E78: 0 | F78: 0
A80: Ideal Gas Heat Capacity (J/kmol-K) Equation Number: | B80: 107
A82: Min T(K): | B82: 200 | C82: Min value: | D82: 53580.97
A83: Max T(K): | B83: 1500 | C83: Max value: | D83: 241568.5
A85: Coeffs: | B85: 44767 | C85: 230850 | D85: 1479.2 | E85: 168360 | F85: 677.66
A87: Liquid Heat Capacity (J/kmol-K) Equation Number: | B87: 100
A89: Min T(K): | B89: 278.68 | C89: Min value: | D89: 132514.3
A90: Max T(K): | B90: 353.24 | C90: Max value: | D90: 150398.6
A92: Coeffs: | B92: 129440 | C92: -169.5 | D92: 0.64781 | E92: 0 | F92: 0
A94: Solid Heat Capacity (J/kmol-K) Equation Number: | B94: 100
A96: Min T(K): | B96: 40 | C96: Min value: | D96: 28564.38
A97: Max T(K): | B97: 278.68 | C97: Max value: | D97: 131177
A99: Coeffs: | B99: 7400 | C99: 624.9 | D99: -2.6874 | E99: 0.007316 | F99: 0
A101: Vapor Viscosity (Pascal-sec) Equation Number: | B101: 102
A103: Min T(K): | B103: 278.68 | C103: Min value: | D103: 7.076903e-06
A104: Max T(K): | B104: 1000 | C104: Max value: | D104: 2.485888e-05
A106: Coeffs: | B106: 3.134e-08 | C106: 0.9676 | D106: 7.9 | E106: 0 | F106: 0
A108: Liquid Viscosity (Pascal-sec) Equation Number: | B108: 101
A110: Min T(K): | B110: 278.68 | C110: Min value: | D110: 0.0007760568
A111: Max T(K): | B111: 545 | C111: Max value: | D111: 7.105918e-05
A113: Coeffs: | B113: 7.5117 | C113: 294.68 | D113: -2.794 | E113: 0 | F113: 0
A115: Vapor Thermal Conductivity (W/m-K) Equation Number: | B115: 102
A117: Min T(K): | B117: 339.15 | C117: Min value: | D117: 0.01407214
A118: Max T(K): | B118: 1000 | C118: Max value: | D118: 0.09541845
A120: Coeffs: | B120: 1.652e-05 | C120: 1.3117 | D120: 491 | E120: 0 | F120: 0
A122: Liquid Thermal Conductivity (W/m-K) Equation Number: | B122: 100
A124: Min T(K): | B124: 278.68 | C124: Min value: | D124: 0.149242
A125: Max T(K): | B125: 413.1 | C125: Max value: | D125: 0.1081471
A127: Coeffs: | B127: 0.23444 | C127: -0.00030572 | D127: 0 | E127: 0 | F127: 0
A129: Liquid Surface Tension (N/m) Equation Number: | B129: 106
A131: Min T(K): | B131: 278.68 | C131: Min value: | D131: 0.03079947
A132: Max T(K): | B132: 562.05 | C132: Max value: | D132: 4.542138e-11
A134: Coeffs: | B134: 0.071815 | C134: 1.2362 | D134: 0 | E134: 0 | F134: 0
A136: Antoine Vapor Pressure (mmHg)
A137: Coefficients: | B137: 16.175
B138: 2948.8
B139: -44.563
A141: Polynomial Ideal Gas Heat Capacity (cal/mol-K)
A142: Coefficients: | B142: 7.9116
B143: -0.01082
B144: 0.0002752
B145: -4.2935e-07
B146: 2.6736e-10
B147: -6.03e-14
A149: Two-Term Liquid Viscosity (cP)
A150: Coefficients: | B150: 545.64
B151: 265.34
A153: Two-Term Surface Tension (N/m)
A154: Coefficients: | B154: 0
B155: 0
A157: Henrys Constants
A158: Coefficients: | B158: 0
B159: 0
B160: 0
B161: 0
A163: MSRK Parameters
A164: Coefficients: | B164: 0.6043
B165: 0.2285
A167: UNIFAC/UNIQUAC Sub-Groups: Sub-Group ID Contribution
A168: 10 | B168: 6
C180: 3 | F180: 6 | I180: 9 | L180: 12 | W180: 23
A181: Lennard-Jones Daten Literatur | C181: Poling, Prausnitz Appendix B | F181: McQuarrie Physical Chemistry S. 663 Tabelle 16.7 | I181: Mourits 1976 | L181: Ebert, Ederer | O181: sigma Å | P181: aus | Q181: miltlere Flüssigdichte | S181: Schmelzenthalpie | U181: Verdampfungswärme | W181: S + V
A182: σ | B182: 2.827 | C182: 5.349 | D182: Å | G182: pm | I182: 545.5 | J182: pm | M182: Å | O182: =10/(Q182*6.02214086E+23)^(1/3)*100000000 -> 6.008686674 | Q182: =(D54+D55)/2 -> 7.654387 | R182: kmol/m³ | S182: =G15 -> 9866 | T182: =H15 -> kJkmol | U182: =B25 -> 30761.43 | V182: =C25 -> kJ/kmol | W182: =S182+U182 -> 40627.43
A183: ε/k | B183: 59.7 | C183: 412.3 | D183: K | G183: K | I183: 401.2 | J183: K | M183: K
A185: Lennard-Jones Daten berechnet | C185: Gl. 9-4.8 und 9-4.7 in Poling, Prausnitz S. 9.7 aus krit. Daten | F185: Virial berechnet | I185: Gasviskosität | L185: Virialkoeffizient cm³/mol | N185: Poling, Prausnitz
A186: σ | B186: =C186 -> 5.136829804 | C186: =0.809*(B13*1000)^(1/3) -> 5.136829804 | D186: Å | E186: Gl. 9-4.8 | F186: 5.153659601 | G186: Å | I186: 2.834574981
A187: ε/k | B187: =C187 -> 229.413166 | C187: =B11/1.2593 -> 229.413166 | D187: K | E187: Gl. 9-4.7 | F187: 171.4073848 | G187: K | I187: 59.7
A192: Virial/SRK Daten aus Tabelle Virial | B192: Temperatur K | C192: B Virial LJ
B193: 373.15 | C193: -85.47552227
B194: 378.15 | C194: -82.16146858
B195: 383.15 | C195: -78.94734494
B196: 388.15 | C196: -75.82881812
B197: 393.15 | C197: -72.80179783
B198: 398.15 | C198: -69.86242315
B199: 403.15 | C199: -67.0070461
B200: 408.15 | C200: -64.23221717
B201: 413.15 | C201: -61.53467204
B202: 418.15 | C202: -58.91131936
B203: 423.15 | C203: -56.35922944
B204: 428.15 | C204: -53.87562387
B205: 433.15 | C205: -51.45786589
B206: 438.15 | C206: -49.1034515
B207: 443.15 | C207: -46.81000123
B208: 448.15 | C208: -44.57525248
B209: 453.15 | C209: -42.39705253
B210: 458.15 | C210: -40.27335186
B211: 463.15 | C211: -38.20219815
B212: 468.15 | C212: -36.18173053
B213: 473.15 | C213: -34.21017434
A218: a (SRK) | B218: =pSRKabalpha($B$11,$B$12,$B$13,298,1,1) -> 5.038796229
A219: b (SRK | B219: =pSRKabalpha($B$11,$B$12,$B$13,298,1,2) -> 0.04251568969
A220: alpha | B220: =pSRKabalpha($B$11,$B$12,$B$13,298,1,3) -> 0.9729499038
A221: P (SRK) | B221: =pSRKabalpha($B$11,$B$12,$B$13,298,1,0) -> 21.17472584
A230: Brechungsindes und Temperatur | B230: 1.5011
A231: Dichte bei der Temperatur des Brechungsindex | B231: 0.88
A232: R0 | B232: 25.11 | C232: 26.1562527
A233: α0/4πε0 | B233: 9.89e-24
A234: νg | B234: 803000000000000
A240: ϕOrientierung
A241: ϕInduktion
A242: ϕDispersion | B242: 3.903241488e-58
A243: B aus ϕOrientierung+ϕInduktion+ϕDispersion in erg.cm6 | B243: 3.903241488e-58
A245: A aus sigma, eps von Poling, Prausnitz in erg.cm^12 | B245: 1.249187942e-100
A246: B aus sigma, eps von Poling, Prausnitz in erg.cm^6
B247: 3.074939463e-101

Sheet H2S
A1: CHEMCAD | B1: 6.5.7 | C1: Page | D1: 1
A3: Simulation name: | B3: LJ Parameter | C3: Date: | D3: 2021-12-27 | E3: Time: | F3: 17:19:14
A5: Physical Properties for | B5: Hydrogen Sulfide | C5: (ID | D5: 50
A7: Formula: | B7: H2S
A9: Molecular Weight : | B9: 34.0758
A11: Critical Temperature : | B11: 373.55 | C11: K
A12: Critical Pressure : | B12: 90.0779 | C12: bar
A13: Critical Volume : | B13: 0.09849 | C13: m3/kmol
A15: Melting point : | B15: 187.68 | C15: K | E15: heat of fusion | G15: 2376.5 | H15: kJkmol | I15: (Schmelzenthalpie)
A16: Normal boiling point : | B16: 212.8 | C16: K
A17: IG heat of formation : | B17: -20.63 | C17: kJ/gmol
A18: IG Gibbs of formation : | B18: -33.44 | C18: kJ/gmol
A19: Acentric factor : | B19: 0.1
A20: Solubility parameter : | B20: 18000 | C20: (J/m3)**0.5
A21: Dipole moment : | B21: 3.2356e-30 | C21: C.m
A22: Radius of Gyration : | B22: 6.384e-11 | C22: m
A24: Mean avg. boiling point : | B24: 0 | C24: K
A25: Heat of vaporization : | B25: 18.66104 | C25: kJ/gmol
A26: API net heating value : | B26: 0 | C26: kJ/gmol
A27: API gross heating value : | B27: 0 | C27: kJ/gmol
A28: Liquid volume constant : | B28: 5.081 | C28: cc/mol
A29: Molecular diameter : | B29: 3.49 | C29: angstroms
A30: Modified acentric factor : | B30: 0
A31: UNIQUAC area parameter : | B31: 0
A32: UNIQUAC volume parameter : | B32: 0
A33: Wilson molar volume : | B33: 0
A34: Stiel polar factor : | B34: 0
A35: Rackett constant : | B35: 0.285
A36: Polar parameter : | B36: 0.21
A37: Eps/K : | B37: 343
A38: Watson factor : | B38: 9.192
A39: API gravity : | B39: 0
A40: Specific gravity 60 F : | B40: 0.7901
A42: Electrolyte Data (at 25C):
A44: Electrolyte state : | B44: 0
A45: Electrolyte type : | B45: 0
A46: Electrolyte charge : | B46: 0
A47: Std heat of formation : | B47: -39.748 | C47: kJ/gmol
A48: Std Gibbs of formation : | B48: -27.86544 | C48: kJ/gmol
A49: Standard entropy : | B49: 3.560767 | C49: kJ/kg-K
A50: Standard heat capacity : | B50: 0 | C50: kJ/kg-K
A52: Liquid Density (kmol/m3) Equation Number: | B52: 105
A54: Min T(K): | B54: 187.68 | C54: Min value: | D54: 28.86127
A55: Max T(K): | B55: 373.53 | C55: Max value: | D55: 10.22017
A57: Coeffs: | B57: 2.878 | C57: 0.2816 | D57: 373.53 | E57: 0.2857 | F57: 0
A59: Solid Density (kmol/m3) Equation Number: | B59: 100
A61: Min T(K): | B61: 0 | C61: Min value: | D61: 0
A62: Max T(K): | B62: 0 | C62: Max value: | D62: 0
A64: Coeffs: | B64: 35.215 | C64: 0 | D64: 0 | E64: 0 | F64: 0
A66: Vapor Pressure (Pascals) Equation Number: | B66: 101
A68: Min T(K): | B68: 187.68 | C68: Min value: | D68: 22757.33
A69: Max T(K): | B69: 373.53 | C69: Max value: | D69: 8961383
A71: Coeffs: | B71: 47.809 | C71: -3096 | D71: -4.1034 | E71: 5.679e-06 | F71: 2
A73: Heat of Vaporization (J/kmol) Equation Number: | B73: 106
A75: Min T(K): | B75: 187.68 | C75: Min value: | D75: 19783030
A76: Max T(K): | B76: 373.55 | C76: Max value: | D76: 98215.8
A78: Coeffs: | B78: 21230000 | C78: -0.234 | D78: 0.764 | E78: -0.193 | F78: 0
A80: Ideal Gas Heat Capacity (J/kmol-K) Equation Number: | B80: 107
A82: Min T(K): | B82: 100 | C82: Min value: | D82: 33288.06
A83: Max T(K): | B83: 1500 | C83: Max value: | D83: 51432.28
A85: Coeffs: | B85: 33288 | C85: 26086 | D85: 913.4 | E85: -17979 | F85: 949.4
A87: Liquid Heat Capacity (J/kmol-K) Equation Number: | B87: 114
A89: Min T(K): | B89: 187.68 | C89: Min value: | D89: 67324.99
A90: Max T(K): | B90: 370 | C90: Max value: | D90: 489353.6
A92: Coeffs: | B92: 64.666 | C92: 49354 | D92: 22.493 | E92: -1623 | F92: 0
A94: Solid Heat Capacity (J/kmol-K) Equation Number: | B94: 100
A96: Min T(K): | B96: 20 | C96: Min value: | D96: 5082.88
A97: Max T(K): | B97: 103.54 | C97: Max value: | D97: 41010.09
A99: Coeffs: | B99: -8194 | C99: 772.7 | D99: -6.058 | E99: 0.03076 | F99: 0
A101: Vapor Viscosity (Pascal-sec) Equation Number: | B101: 102
A103: Min T(K): | B103: 230 | C103: Min value: | D103: 9.567102e-06
A104: Max T(K): | B104: 570 | C104: Max value: | D104: 2.349474e-05
A106: Coeffs: | B106: 4.286e-07 | C106: 0.6715 | D106: 167.1 | E106: 0 | F106: 0
A108: Liquid Viscosity (Pascal-sec) Equation Number: | B108: 101
A110: Min T(K): | B110: 190.12 | C110: Min value: | D110: 0.0005199135
A111: Max T(K): | B111: 223.18 | C111: Max value: | D111: 0.0004034532
A113: Coeffs: | B113: -71.015 | C113: 2332.5 | D113: 9.7538 | E113: 0 | F113: 0
A115: Vapor Thermal Conductivity (W/m-K) Equation Number: | B115: 102
A117: Min T(K): | B117: 200 | C117: Min value: | D117: 0.008337649
A118: Max T(K): | B118: 400 | C118: Max value: | D118: 0.02132696
A120: Coeffs: | B120: 0.00023019 | C120: 0.8473 | D120: 291.74 | E120: 0 | F120: 0
A122: Liquid Thermal Conductivity (W/m-K) Equation Number: | B122: 100
A124: Min T(K): | B124: 193.15 | C124: Min value: | D124: 0.2555104
A125: Max T(K): | B125: 292.42 | C125: Max value: | D125: 0.1379747
A127: Coeffs: | B127: 0.4842 | C127: -0.001184 | D127: 0 | E127: 0 | F127: 0
A129: Liquid Surface Tension (N/m) Equation Number: | B129: 106
A131: Min T(K): | B131: 187.68 | C131: Min value: | D131: 0.02900531
A132: Max T(K): | B132: 373.53 | C132: Max value: | D132: 2.399304e-07
A134: Coeffs: | B134: 0.07092 | C134: 1.2809 | D134: 0 | E134: 0 | F134: 0
A136: Antoine Vapor Pressure (mmHg)
A137: Coefficients: | B137: 16.566
B138: 1964.4
B139: -15.242
A141: Polynomial Ideal Gas Heat Capacity (cal/mol-K)
A142: Coefficients: | B142: 7.948
B143: -0.004852
B144: 2.891e-05
B145: -4.6169e-08
B146: 3.5855e-11
B147: -1.0922e-14
A149: Two-Term Liquid Viscosity (cP)
A150: Coefficients: | B150: 342.79
B151: 165.54
A153: Two-Term Surface Tension (N/m)
A154: Coefficients: | B154: 0
B155: 0
A157: Henrys Constants
A158: Coefficients: | B158: -6517
B159: 0.2111
B160: -0.01014
B161: 25.24
A163: MSRK Parameters
A164: Coefficients: | B164: 0.4594
B165: 0.179
A167: UNIFAC/UNIQUAC Sub-Groups: Sub-Group ID Contribution
W180: 23
A181: Lennard-Jones Daten Literatur | C181: Poling, Prausnitz Appendix B | F181: McQuarrie Physical Chemistry S. 663 Tabelle 16.7 | I181: Mourits 1976 | L181: Ebert, Ederer | O181: sigma Å | P181: aus | Q181: miltlere Flüssigdichte | S181: Schmelzenthalpie | U181: Verdampfungswärme | W181: S + V
A182: σ | B182: 2.827 | C182: 3.623 | D182: Å | G182: pm | I182: 373.3 | J182: pm | M182: Å | O182: =10/(Q182*6.02214086E+23)^(1/3)*100000000 -> 4.396457132 | Q182: =(D54+D55)/2 -> 19.54072 | R182: kmol/m³ | S182: =G15 -> 2376.5 | T182: =H15 -> kJkmol | U182: =B25 -> 18.66104 | V182: =C25 -> kJ/gmol | W182: =S182+U182*1000 -> 21037.54
A183: ε/k | B183: 59.7 | C183: 301.1 | D183: K | G183: K | I183: 302.4 | J183: K | M183: K
A185: Lennard-Jones Daten berechnet | C185: Gl. 9-4.8 und 9-4.7 in Poling, Prausnitz S. 9.7 aus krit. Daten | F185: Virial | I185: Gasviskosität | L185: Virialkoeffizient cm³/mol | N185: Poling, Prausnitz
A186: σ | B186: =C186 -> 3.736049033 | C186: =0.809*(B13*1000)^(1/3) -> 3.736049033 | D186: Å | E186: (Vk) | F186: 4.376098312 | I186: 1.785367938
A187: ε/k | B187: =C187 -> 296.6330501 | C187: =B11/1.2593 -> 296.6330501 | D187: K | E187: (Tk) | F187: 239.8391272 | I187: 59.7
A192: Virial/SRK Daten aus Tabelle Virial | B192: Temperatur K | C192: B Virial LJ
B193: 373.15 | C193: -117.5697197
B194: 378.15 | C194: -114.3761858
B195: 383.15 | C195: -111.2820661
B196: 388.15 | C196: -108.2828681
B197: 393.15 | C197: -105.3743646
B198: 398.15 | C198: -102.5525752
B199: 403.15 | C199: -99.81374762
B200: 408.15 | C200: -97.1543423
B201: 413.15 | C201: -94.57101729
B202: 418.15 | C202: -92.06061475
B203: 423.15 | C203: -89.62014846
B204: 428.15 | C204: -87.24679233
B205: 433.15 | C205: -84.93786984
B206: 438.15 | C206: -82.6908443
B207: 443.15 | C207: -80.50330985
B208: 448.15 | C208: -78.37298315
B209: 453.15 | C209: -76.2976957
B210: 458.15 | C210: -74.27538672
B211: 463.15 | C211: -72.30409655
B212: 468.15 | C212: -70.38196054
B213: 473.15 | C213: -68.50720339
A218: a (SRK) | B218: =pSRKabalpha($B$11,$B$12,$B$13,298,1,1) -> 4.577871909
A219: b (SRK | B219: =pSRKabalpha($B$11,$B$12,$B$13,298,1,2) -> 0.02987341491
A220: alpha | B220: =pSRKabalpha($B$11,$B$12,$B$13,298,1,3) -> 1.139892806
A221: P (SRK) | B221: =pSRKabalpha($B$11,$B$12,$B$13,298,1,0) -> 20.4731505
A230: Brechungsindes und Temperatur
A231: Dichte bei der Temperatur des Brechungsindex
A232: R0 | B232: 9.251
A233: α0/4πε0
A234: νg | B234: 1323000000000000
A240: ϕOrientierung
A241: ϕInduktion
A242: ϕDispersion | B242: 8.720813922e-59
A243: B aus ϕOrientierung+ϕInduktion+ϕDispersion in erg.cm6 | B243: 8.720813922e-59
A245: A aus sigma, eps von Poling, Prausnitz in erg.cm^12 | B245: 8.504994516e-103
A246: B aus sigma, eps von Poling, Prausnitz in erg.cm^6
B247: 8.139202964e-102

Sheet NH3
A1: CHEMCAD | B1: 6.5.7 | C1: Page | D1: 1
A3: Simulation name: | B3: LJ Parameter | C3: Date: | D3: 2021-12-27 | E3: Time: | F3: 17:19:09
A5: Physical Properties for | B5: Ammonia | C5: (ID | D5: 63
A7: Formula: | B7: NH3
A9: Molecular Weight : | B9: 17.031
A11: Critical Temperature : | B11: 405.65 | C11: K
A12: Critical Pressure : | B12: 112.7848 | C12: bar
A13: Critical Volume : | B13: 0.07247 | C13: m3/kmol
A15: Melting point : | B15: 195.41 | C15: K | E15: heat of fusion | G15: 5657 | H15: kJkmol | I15: (Schmelzenthalpie)
A16: Normal boiling point : | B16: 239.72 | C16: K
A17: IG heat of formation : | B17: -45.898 | C17: kJ/gmol
A18: IG Gibbs of formation : | B18: -16.401 | C18: kJ/gmol
A19: Acentric factor : | B19: 0.252
A20: Solubility parameter : | B20: 29217 | C20: (J/m3)**0.5
A21: Dipole moment : | B21: 4.9034e-30 | C21: C.m
A22: Radius of Gyration : | B22: 8.533001e-11 | C22: m
A24: Mean avg. boiling point : | B24: 0 | C24: K
A25: Heat of vaporization : | B25: 23.34722 | C25: kJ/gmol
A26: API net heating value : | B26: 0 | C26: kJ/gmol
A27: API gross heating value : | B27: 0 | C27: kJ/gmol
A28: Liquid volume constant : | B28: 6.908 | C28: cc/mol
A29: Molecular diameter : | B29: 3.15 | C29: angstroms
A30: Modified acentric factor : | B30: 0
A31: UNIQUAC area parameter : | B31: 0
A32: UNIQUAC volume parameter : | B32: 0
A33: Wilson molar volume : | B33: 26.65
A34: Stiel polar factor : | B34: 0.013
A35: Rackett constant : | B35: 0
A36: Polar parameter : | B36: 0.7
A37: Eps/K : | B37: 358
A38: Watson factor : | B38: 0
A39: API gravity : | B39: 0
A40: Specific gravity 60 F : | B40: 0.6189
A42: Electrolyte Data (at 25C):
A44: Electrolyte state : | B44: 0
A45: Electrolyte type : | B45: 0
A46: Electrolyte charge : | B46: 0
A47: Std heat of formation : | B47: -80.29095 | C47: kJ/gmol
A48: Std Gibbs of formation : | B48: -26.5684 | C48: kJ/gmol
A49: Standard entropy : | B49: 6.534813 | C49: kJ/kg-K
A50: Standard heat capacity : | B50: 0 | C50: kJ/kg-K
A52: Liquid Density (kmol/m3) Equation Number: | B52: 105
A54: Min T(K): | B54: 195.41 | C54: Min value: | D54: 43.11475
A55: Max T(K): | B55: 405.65 | C55: Max value: | D55: 13.99878
A57: Coeffs: | B57: 3.543 | C57: 0.25471 | D57: 405.65 | E57: 0.2887 | F57: 0
A59: Solid Density (kmol/m3) Equation Number: | B59: 100
A61: Min T(K): | B61: 194.15 | C61: Min value: | D61: 47.973
A62: Max T(K): | B62: 194.15 | C62: Max value: | D62: 47.973
A64: Coeffs: | B64: 47.973 | C64: 0 | D64: 0 | E64: 0 | F64: 0
A66: Vapor Pressure (Pascals) Equation Number: | B66: 101
A68: Min T(K): | B68: 195.41 | C68: Min value: | D68: 6117.698
A69: Max T(K): | B69: 405.65 | C69: Max value: | D69: 11315240
A71: Coeffs: | B71: 90.451 | C71: -4669 | D71: -11.601 | E71: 0.017183 | F71: 1
A73: Heat of Vaporization (J/kmol) Equation Number: | B73: 106
A75: Min T(K): | B75: 195.41 | C75: Min value: | D75: 25298080
A76: Max T(K): | B76: 405.65 | C76: Max value: | D76: 20931.66
A78: Coeffs: | B78: 31523000 | C78: 0.3914 | D78: -0.2289 | E78: 0.2309 | F78: 0
A80: Ideal Gas Heat Capacity (J/kmol-K) Equation Number: | B80: 107
A82: Min T(K): | B82: 100 | C82: Min value: | D82: 33480.09
A83: Max T(K): | B83: 1500 | C83: Max value: | D83: 66276.1
A85: Coeffs: | B85: 33480 | C85: 48200 | D85: 951.89 | E85: -30100 | F85: 1056
A87: Liquid Heat Capacity (J/kmol-K) Equation Number: | B87: 100
A89: Min T(K): | B89: 195.41 | C89: Min value: | D89: 82003.44
A90: Max T(K): | B90: 385.15 | C90: Max value: | D90: 147227.7
A92: Coeffs: | B92: 3009400 | C92: -43692 | D92: 241.14 | E92: -0.5856 | F92: 0.00052953
A94: Solid Heat Capacity (J/kmol-K) Equation Number: | B94: 100
A96: Min T(K): | B96: 20 | C96: Min value: | D96: 1604
A97: Max T(K): | B97: 190 | C97: Max value: | D97: 48796
A99: Coeffs: | B99: -5240 | C99: 349 | D99: -0.34 | E99: 0 | F99: 0
A101: Vapor Viscosity (Pascal-sec) Equation Number: | B101: 102
A103: Min T(K): | B103: 195.41 | C103: Min value: | D103: 6.378003e-06
A104: Max T(K): | B104: 1000 | C104: Max value: | D104: 3.551182e-05
A106: Coeffs: | B106: 4.1855e-08 | C106: 0.9806 | D106: 30.8 | E106: 0 | F106: 0
A108: Liquid Viscosity (Pascal-sec) Equation Number: | B108: 101
A110: Min T(K): | B110: 195.41 | C110: Min value: | D110: 0.0005240188
A111: Max T(K): | B111: 393.15 | C111: Max value: | D111: 4.857575e-05
A113: Coeffs: | B113: -6.743 | C113: 598.3 | D113: -0.7341 | E113: -3.69e-27 | F113: 10
A115: Vapor Thermal Conductivity (W/m-K) Equation Number: | B115: 102
A117: Min T(K): | B117: 200 | C117: Min value: | D117: 0.01460929
A118: Max T(K): | B118: 700 | C118: Max value: | D118: 0.09409066
A120: Coeffs: | B120: -0.0459 | C120: 0.1652 | D120: -1707.8 | E120: 0 | F120: 0
A122: Liquid Thermal Conductivity (W/m-K) Equation Number: | B122: 100
A124: Min T(K): | B124: 220.05 | C124: Min value: | D124: 0.6580058
A125: Max T(K): | B125: 400.05 | C125: Max value: | D125: 0.2468858
A127: Coeffs: | B127: 1.1606 | C127: -0.002284 | D127: 0 | E127: 0 | F127: 0
A129: Liquid Surface Tension (N/m) Equation Number: | B129: 106
A131: Min T(K): | B131: 195.41 | C131: Min value: | D131: 0.044179
A132: Max T(K): | B132: 405.65 | C132: Max value: | D132: 1.126545e-10
A134: Coeffs: | B134: 0.0912 | C134: 1.1028 | D134: 0 | E134: 0 | F134: 0
A136: Antoine Vapor Pressure (mmHg)
A137: Coefficients: | B137: 17.509
B138: 2363.2
B139: -22.621
A141: Polynomial Ideal Gas Heat Capacity (cal/mol-K)
A142: Coefficients: | B142: 8.0361
B143: -0.004261
B144: 2.798e-05
B145: -2.9314e-08
B146: 1.3406e-11
B147: -2.3176e-15
A149: Two-Term Liquid Viscosity (cP)
A150: Coefficients: | B150: 349.04
B151: 169.63
A153: Two-Term Surface Tension (N/m)
A154: Coefficients: | B154: 0
B155: 0
A157: Henrys Constants
A158: Coefficients: | B158: 439.3
B159: -0.5435
B160: 0.01119
B161: 1.034
A163: MSRK Parameters
A164: Coefficients: | B164: 0.7838
B165: 0.1604
A167: UNIFAC/UNIQUAC Sub-Groups: Sub-Group ID Contribution
W180: 23
A181: Lennard-Jones Daten Literatur | C181: Poling, Prausnitz Appendix B | F181: McQuarrie Physical Chemistry S. 663 Tabelle 16.7 | I181: Mourits 1976 | L181: Ebert, Ederer | O181: sigma Å | P181: aus | Q181: miltlere Flüssigdichte | S181: Schmelzenthalpie | U181: Verdampfungswärme | W181: S + V
A182: σ | B182: 2.827 | C182: 2.9 | D182: Å | G182: pm | I182: 321.5 | J182: pm | M182: Å | O182: =10/(Q182*6.02214086E+23)^(1/3)*100000000 -> 3.874182077 | Q182: =(D54+D55)/2 -> 28.556765 | R182: kmol/m³ | S182: =G15 -> 5657 | T182: =H15 -> kJkmol | U182: =B25 -> 23.34722 | V182: =C25 -> kJ/gmol | W182: =S182+U182*1000 -> 29004.22
A183: ε/k | B183: 59.7 | C183: 558.3 | D183: K | G183: K | I183: 309.9 | J183: K | M183: K
A185: Lennard-Jones Daten berechnet | C185: Gl. 9-4.8 und 9-4.7 in Poling, Prausnitz S. 9.7 aus krit. Daten | F185: Virial | I185: Gasviskosität | L185: Virialkoeffizient cm³/mol | N185: Poling, Prausnitz
A186: σ | B186: =C186 -> 3.372882992 | C186: =0.809*(B13*1000)^(1/3) -> 3.372882992 | D186: Å | F186: 4.684303642 | I186: 1.674466709
A187: ε/k | B187: =C187 -> 322.1234019 | C187: =B11/1.2593 -> 322.1234019 | D187: K | F187: 222.3972213 | I187: 59.7
A192: Virial/SRK Daten aus Tabelle Virial | B192: Temperatur K | C192: B Virial LJ
B193: 373.15 | C193: -122.9109718
B194: 378.15 | C194: -119.3822131
B195: 383.15 | C195: -115.9623007
B196: 388.15 | C196: -112.6463685
B197: 393.15 | C197: -109.4298349
B198: 398.15 | C198: -106.3083822
B199: 403.15 | C199: -103.2779383
B200: 408.15 | C200: -100.3346594
B201: 413.15 | C201: -97.47491397
B202: 418.15 | C202: -94.6952686
B203: 423.15 | C203: -91.99247469
B204: 428.15 | C204: -89.36345608
B205: 433.15 | C205: -86.80529791
B206: 438.15 | C206: -84.31523608
B207: 443.15 | C207: -81.89064777
B208: 448.15 | C208: -79.52904245
B209: 453.15 | C209: -77.2280537
B210: 458.15 | C210: -74.98543162
B211: 463.15 | C211: -72.79903568
B212: 468.15 | C212: -70.66682826
B213: 473.15 | C213: -68.58686848
A218: a (SRK) | B218: =pSRKabalpha($B$11,$B$12,$B$13,298,1,1) -> 4.311583438
A219: b (SRK | B219: =pSRKabalpha($B$11,$B$12,$B$13,298,1,2) -> 0.02590927672
A220: alpha | B220: =pSRKabalpha($B$11,$B$12,$B$13,298,1,3) -> 1.17670241
A221: P (SRK) | B221: =pSRKabalpha($B$11,$B$12,$B$13,298,1,0) -> 20.49080941
A230: Brechungsindes und Temperatur
A231: Dichte bei der Temperatur des Brechungsindex
A232: R0 | B232: 5.448 | C232: 123
A233: α0/4πε0
A234: νg | B234: 1725000000000000
A240: ϕOrientierung
A241: ϕInduktion
A242: ϕDispersion | B242: 3.944218677e-59
A243: B aus ϕOrientierung+ϕInduktion+ϕDispersion in erg.cm6 | B243: 3.944218677e-59
A245: A aus sigma, eps von Poling, Prausnitz in erg.cm^12 | B245: 1.09090486e-103
A246: B aus sigma, eps von Poling, Prausnitz in erg.cm^6
B247: 5.82002115e-102

Sheet Methanol
A1: CHEMCAD | B1: 6.5.7 | C1: Page | D1: 1
A3: Simulation name: | B3: LJ Parameter | C3: Date: | D3: 2021-12-27 | E3: Time: | F3: 17:22:16
A5: Physical Properties for | B5: Methyl Alcohol | C5: (ID | D5: 117
A7: Formula: | B7: CH3OH
A9: Molecular Weight : | B9: 32.042
A11: Critical Temperature : | B11: 512.64 | C11: K
A12: Critical Pressure : | B12: 80.97 | C12: bar
A13: Critical Volume : | B13: 0.118 | C13: m3/kmol
A15: Melting point : | B15: 175.47 | C15: K | E15: heat of fusion | G15: 3215.01 | H15: kJkmol | I15: (Schmelzenthalpie)
A16: Normal boiling point : | B16: 337.85 | C16: K
A17: IG heat of formation : | B17: -200.94 | C17: kJ/gmol
A18: IG Gibbs of formation : | B18: -162.32 | C18: kJ/gmol
A19: Acentric factor : | B19: 0.564
A20: Solubility parameter : | B20: 29590 | C20: (J/m3)**0.5
A21: Dipole moment : | B21: 5.67e-30 | C21: C.m
A22: Radius of Gyration : | B22: 1.552e-10 | C22: m
A24: Mean avg. boiling point : | B24: 0 | C24: K
A25: Heat of vaporization : | B25: 35.25514 | C25: kJ/gmol
A26: API net heating value : | B26: 0 | C26: kJ/gmol
A27: API gross heating value : | B27: 0 | C27: kJ/gmol
A28: Liquid volume constant : | B28: 5.4628 | C28: cc/mol
A29: Molecular diameter : | B29: 3.69 | C29: angstroms
A30: Modified acentric factor : | B30: 0
A31: UNIQUAC area parameter : | B31: 1.432
A32: UNIQUAC volume parameter : | B32: 1.4311
A33: Wilson molar volume : | B33: 40.729
A34: Stiel polar factor : | B34: 0.037
A35: Rackett constant : | B35: 0
A36: Polar parameter : | B36: 0.5
A37: Eps/K : | B37: 417
A38: Watson factor : | B38: 0
A39: API gravity : | B39: 0
A40: Specific gravity 60 F : | B40: 0.8005978
A42: Electrolyte Data (at 25C):
A44: Electrolyte state : | B44: 0
A45: Electrolyte type : | B45: 0
A46: Electrolyte charge : | B46: 0
A47: Std heat of formation : | B47: 0 | C47: kJ/gmol
A48: Std Gibbs of formation : | B48: 0 | C48: kJ/gmol
A49: Standard entropy : | B49: 0 | C49: kJ/kg-K
A50: Standard heat capacity : | B50: 0 | C50: kJ/kg-K
A52: Liquid Density (kmol/m3) Equation Number: | B52: 105
A54: Min T(K): | B54: 175.47 | C54: Min value: | D54: 27.91202
A55: Max T(K): | B55: 512.64 | C55: Max value: | D55: 8.653288
A57: Coeffs: | B57: 2.288 | C57: 0.2685 | D57: 512.64 | E57: 0.2453 | F57: 0
A59: Solid Density (kmol/m3) Equation Number: | B59: 100
A61: Min T(K): | B61: 163.15 | C61: Min value: | D61: 30.585
A62: Max T(K): | B62: 163.15 | C62: Max value: | D62: 30.585
A64: Coeffs: | B64: 30.585 | C64: 0 | D64: 0 | E64: 0 | F64: 0
A66: Vapor Pressure (Pascals) Equation Number: | B66: 101
A68: Min T(K): | B68: 175.47 | C68: Min value: | D68: 0.1114692
A69: Max T(K): | B69: 512.64 | C69: Max value: | D69: 8140235
A71: Coeffs: | B71: 81.768 | C71: -6876 | D71: -8.7078 | E71: 7.1926e-06 | F71: 2
A73: Heat of Vaporization (J/kmol) Equation Number: | B73: 106
A75: Min T(K): | B75: 175.47 | C75: Min value: | D75: 44900320
A76: Max T(K): | B76: 512.64 | C76: Max value: | D76: 65825.46
A78: Coeffs: | B78: 52390000 | C78: 0.3682 | D78: 0 | E78: 0 | F78: 0
A80: Ideal Gas Heat Capacity (J/kmol-K) Equation Number: | B80: 107
A82: Min T(K): | B82: 200 | C82: Min value: | D82: 39802.29
A83: Max T(K): | B83: 1500 | C83: Max value: | D83: 105329.2
A85: Coeffs: | B85: 39252 | C85: 87900 | D85: 1916.5 | E85: 53654 | F85: 896.7
A87: Liquid Heat Capacity (J/kmol-K) Equation Number: | B87: 100
A89: Min T(K): | B89: 175.47 | C89: Min value: | D89: 71117.18
A90: Max T(K): | B90: 400 | C90: Max value: | D90: 110972
A92: Coeffs: | B92: 105800 | C92: -362.23 | D92: 0.9379 | E92: 0 | F92: 0
A94: Solid Heat Capacity (J/kmol-K) Equation Number: | B94: 100
A96: Min T(K): | B96: 25 | C96: Min value: | D96: 8198.251
A97: Max T(K): | B97: 150 | C97: Max value: | D97: 57752
A99: Coeffs: | B99: -12706 | C99: 958.78 | D99: -5.2332 | E99: 0.013152 | F99: 0
A101: Vapor Viscosity (Pascal-sec) Equation Number: | B101: 102
A103: Min T(K): | B103: 240 | C103: Min value: | D103: 7.52319e-06
A104: Max T(K): | B104: 1000 | C104: Max value: | D104: 3.128078e-05
A106: Coeffs: | B106: 3.0663e-07 | C106: 0.69655 | D106: 205 | E106: 0 | F106: 0
A108: Liquid Viscosity (Pascal-sec) Equation Number: | B108: 101
A110: Min T(K): | B110: 175.47 | C110: Min value: | D110: 0.01192768
A111: Max T(K): | B111: 337.85 | C111: Max value: | D111: 0.000344232
A113: Coeffs: | B113: -25.317 | C113: 1789.2 | D113: 2.069 | E113: 0 | F113: 0
A115: Vapor Thermal Conductivity (W/m-K) Equation Number: | B115: 102
A117: Min T(K): | B117: 273 | C117: Min value: | D117: 0.01365155
A118: Max T(K): | B118: 1000 | C118: Max value: | D118: 0.1392687
A120: Coeffs: | B120: -7.763 | C120: 1.0279 | D120: -74360000 | E120: 6770000000 | F120: 0
A122: Liquid Thermal Conductivity (W/m-K) Equation Number: | B122: 100
A124: Min T(K): | B124: 175.47 | C124: Min value: | D124: 0.2343929
A125: Max T(K): | B125: 337.85 | C125: Max value: | D125: 0.1887641
A127: Coeffs: | B127: 0.2837 | C127: -0.000281 | D127: 0 | E127: 0 | F127: 0
A129: Liquid Surface Tension (N/m) Equation Number: | B129: 100
A131: Min T(K): | B131: 273.1 | C131: Min value: | D131: 0.02413801
A132: Max T(K): | B132: 503.15 | C132: Max value: | D132: 0.0008035812
A134: Coeffs: | B134: 0.03513 | C134: -7.04e-06 | D134: -1.216e-07 | E134: 0 | F134: 0
A136: Antoine Vapor Pressure (mmHg)
A137: Coefficients: | B137: 18.51
B138: 3593.4
B139: -35.225
A141: Polynomial Ideal Gas Heat Capacity (cal/mol-K)
A142: Coefficients: | B142: 10.3689
B143: -0.0224742
B144: 0.000114522
B145: -1.4417e-07
B146: 7.98584e-11
B147: -1.67136e-14
A149: Two-Term Liquid Viscosity (cP)
A150: Coefficients: | B150: 555.3
B151: 260.64
A153: Two-Term Surface Tension (N/m)
A154: Coefficients: | B154: 0.0431395
B155: 0.763826
A157: Henrys Constants
A158: Coefficients: | B158: 0
B159: 0
B160: 0
B161: 0
A163: MSRK Parameters
A164: Coefficients: | B164: 1.3013
B165: 0.2005
A167: UNIFAC/UNIQUAC Sub-Groups: Sub-Group ID Contribution
A168: 16 | B168: 1
W180: 23
A181: Lennard-Jones Daten Literatur | C181: Poling, Prausnitz Appendix B | F181: McQuarrie Physical Chemistry S. 663 Tabelle 16.7 | I181: Mourits 1976 | L181: Ebert, Ederer | O181: sigma Å | P181: aus | Q181: miltlere Flüssigdichte | S181: Schmelzenthalpie | U181: Verdampfungswärme | W181: S + V
A182: σ | B182: 2.827 | C182: 3.626 | D182: Å | G182: pm | I182: 365.7 | J182: pm | M182: Å | O182: =10/(Q182*6.02214086E+23)^(1/3)*100000000 -> 4.49507163 | Q182: =(D54+D55)/2 -> 18.282654 | R182: kmol/m³ | S182: =G15 -> 3215.01 | T182: =H15 -> kJkmol | U182: =B25 -> 35.25514 | V182: =C25 -> kJ/gmol | W182: =S182+U182*1000 -> 38470.15
A183: ε/k | B183: 59.7 | C183: 481.8 | D183: K | G183: K | I183: 385.2 | J183: K | M183: K
A185: Lennard-Jones Daten berechnet | C185: Gl. 9-4.8 und 9-4.7 in Poling, Prausnitz S. 9.7 aus krit. Daten | F185: Virial | I185: Gasviskosität | L185: Virialkoeffizient cm³/mol | N185: Poling, Prausnitz
A186: σ | B186: =C186 -> 3.968038318 | C186: =0.809*(B13*1000)^(1/3) -> 3.968038318 | D186: Å | F186: 6.766898921 | I186: 4.248677148
A187: ε/k | B187: =C187 -> 407.0833002 | C187: =B11/1.2593 -> 407.0833002 | D187: K | F187: 228.4457364 | I187: 407.0833002
A192: Virial/SRK Daten aus Tabelle Virial | B192: Temperatur K | C192: B Virial LJ
B193: 373.15 | C193: -392.5776526
B194: 378.15 | C194: -381.5399183
B195: 383.15 | C195: -370.8437123
B196: 388.15 | C196: -360.4737093
B197: 393.15 | C197: -350.4154833
B198: 398.15 | C198: -340.6554432
B199: 403.15 | C199: -331.1807728
B200: 408.15 | C200: -321.9793771
B201: 413.15 | C201: -313.0398319
B202: 418.15 | C202: -304.3513382
B203: 423.15 | C203: -295.9036801
B204: 428.15 | C204: -287.6871861
B205: 433.15 | C205: -279.6926932
B206: 438.15 | C206: -271.9115143
B207: 443.15 | C207: -264.3354074
B208: 448.15 | C208: -256.9565477
B209: 453.15 | C209: -249.7675017
B210: 458.15 | C210: -242.7612029
B211: 463.15 | C211: -235.9309294
B212: 468.15 | C212: -229.2702835
B213: 473.15 | C213: -222.7731722
B214: 463.15 | C214: 15.6674941
B215: 468.15 | C215: 15.71672477
B216: 473.15 | C216: 15.76445955
A218: a (SRK) | B218: =pSRKabalpha($B$11,$B$12,$B$13,298,1,1) -> 9.591471683
A219: b (SRK | B219: =pSRKabalpha($B$11,$B$12,$B$13,298,1,2) -> 0.04560817913
A220: alpha | B220: =pSRKabalpha($B$11,$B$12,$B$13,298,1,3) -> 1.339976482
A221: P (SRK) | B221: =pSRKabalpha($B$11,$B$12,$B$13,298,1,0) -> 13.66939639
A230: Brechungsindes und Temperatur | B230: 1.3288
A231: Dichte bei der Temperatur des Brechungsindex | B231: 0.79
A232: R0 | B232: 8.222 | C232: 8.246745846
A233: α0/4πε0
A234: νg | B234: 1.402935647e+15
A240: ϕOrientierung
A241: ϕInduktion
A242: ϕDispersion | B242: 7.406805913e-59
A243: B aus ϕOrientierung+ϕInduktion+ϕDispersion in erg.cm6 | B243: 7.406805913e-59
A245: A aus sigma, eps von Poling, Prausnitz in erg.cm^12 | B245: 1.37449659e-102
A246: B aus sigma, eps von Poling, Prausnitz in erg.cm^6
B247: 5.602184002e-101

Sheet Ethanol
A1: CHEMCAD | B1: 6.5.7 | C1: Page | D1: 1
A3: Simulation name: | B3: LJ Parameter | C3: Date: | D3: 2021-12-27 | E3: Time: | F3: 17:22:20
A5: Physical Properties for | B5: Ethyl Alcohol | C5: (ID | D5: 134
A7: Formula: | B7: C2H5OH | C7: C2H6O
A9: Molecular Weight : | B9: 46.069 | C9: g/mol
A11: Critical Temperature : | B11: 513.92 | C11: K
A12: Critical Pressure : | B12: 61.48 | C12: bar
A13: Critical Volume : | B13: 0.167 | C13: m3/kmol
A15: Melting point : | B15: 159.05 | C15: K | E15: heat of fusion | G15: 4931.02 | H15: kJkmol | I15: (Schmelzenthalpie)
A16: Normal boiling point : | B16: 351.44 | C16: K
A17: IG heat of formation : | B17: -234.95 | C17: kJ/gmol
A18: IG Gibbs of formation : | B18: -167.85 | C18: kJ/gmol
A19: Acentric factor : | B19: 0.6452
A20: Solubility parameter : | B20: 26130 | C20: (J/m3)**0.5
A21: Dipole moment : | B21: 5.64e-30 | C21: C.m
A22: Radius of Gyration : | B22: 2.259e-10 | C22: m
A24: Mean avg. boiling point : | B24: 0 | C24: K
A25: Heat of vaporization : | B25: 38.74467 | C25: kJ/gmol
A26: API net heating value : | B26: 0 | C26: kJ/gmol
A27: API gross heating value : | B27: 0 | C27: kJ/gmol
A28: Liquid volume constant : | B28: 7.8882 | C28: cc/mol | E28: 0.7893 | F28: g/cm³ | G28: 20°C, Wikipedia
A29: Molecular diameter : | B29: 4.31 | C29: angstroms
A30: Modified acentric factor : | B30: 0
A31: UNIQUAC area parameter : | B31: 1.972
A32: UNIQUAC volume parameter : | B32: 2.1054
A33: Wilson molar volume : | B33: 58.68
A34: Stiel polar factor : | B34: 0
A35: Rackett constant : | B35: 0
A36: Polar parameter : | B36: 0.3
A37: Eps/K : | B37: 431
A38: Watson factor : | B38: 0
A39: API gravity : | B39: 0
A40: Specific gravity 60 F : | B40: 0.7963032
A42: Electrolyte Data (at 25C):
A44: Electrolyte state : | B44: 0
A45: Electrolyte type : | B45: 0
A46: Electrolyte charge : | B46: 0
A47: Std heat of formation : | B47: 0 | C47: kJ/gmol
A48: Std Gibbs of formation : | B48: 0 | C48: kJ/gmol
A49: Standard entropy : | B49: 0 | C49: kJ/kg-K
A50: Standard heat capacity : | B50: 0 | C50: kJ/kg-K
A52: Liquid Density (kmol/m3) Equation Number: | B52: 105
A54: Min T(K): | B54: 159.05 | C54: Min value: | D54: 19.41279
A55: Max T(K): | B55: 513.92 | C55: Max value: | D55: 5.965179
A57: Coeffs: | B57: 1.648 | C57: 0.27627 | D57: 513.92 | E57: 0.2331 | F57: 0
A59: Solid Density (kmol/m3) Equation Number: | B59: 100
A61: Min T(K): | B61: 159.05 | C61: Min value: | D61: 22.9
A62: Max T(K): | B62: 159.05 | C62: Max value: | D62: 22.9
A64: Coeffs: | B64: 22.9 | C64: 0 | D64: 0 | E64: 0 | F64: 0
A66: Vapor Pressure (Pascals) Equation Number: | B66: 101
A68: Min T(K): | B68: 159.05 | C68: Min value: | D68: 0.0004845888
A69: Max T(K): | B69: 513.92 | C69: Max value: | D69: 6117134
A71: Coeffs: | B71: 74.475 | C71: -7164.3 | D71: -7.327 | E71: 3.134e-06 | F71: 2
A73: Heat of Vaporization (J/kmol) Equation Number: | B73: 106
A75: Min T(K): | B75: 159.05 | C75: Min value: | D75: 50244760
A76: Max T(K): | B76: 513.92 | C76: Max value: | D76: 268471.8
A78: Coeffs: | B78: 56900000 | C78: 0.3359 | D78: 0 | E78: 0 | F78: 0
A80: Ideal Gas Heat Capacity (J/kmol-K) Equation Number: | B80: 107
A82: Min T(K): | B82: 200 | C82: Min value: | D82: 52235.83
A83: Max T(K): | B83: 1500 | C83: Max value: | D83: 165758.2
A85: Coeffs: | B85: 49200 | C85: 145770 | D85: 1662.8 | E85: 93900 | F85: 744.7
A87: Liquid Heat Capacity (J/kmol-K) Equation Number: | B87: 100
A89: Min T(K): | B89: 159.05 | C89: Min value: | D89: 87866.56
A90: Max T(K): | B90: 390 | C90: Max value: | D90: 164497.1
A92: Coeffs: | B92: 102640 | C92: -139.63 | D92: -0.030341 | E92: 0.0020386 | F92: 0
A94: Solid Heat Capacity (J/kmol-K) Equation Number: | B94: 100
A96: Min T(K): | B96: 25 | C96: Min value: | D96: 11230.94
A97: Max T(K): | B97: 159 | C97: Max value: | D97: 65335.8
A99: Coeffs: | B99: -13500 | C99: 1175.5 | D99: -8.043 | E99: 0.0237 | F99: 0
A101: Vapor Viscosity (Pascal-sec) Equation Number: | B101: 102
A103: Min T(K): | B103: 200 | C103: Min value: | D103: 6.029394e-06
A104: Max T(K): | B104: 1000 | C104: Max value: | D104: 2.650535e-05
A106: Coeffs: | B106: 1.0613e-07 | C106: 0.8066 | D106: 52.7 | E106: 0 | F106: 0
A108: Liquid Viscosity (Pascal-sec) Equation Number: | B108: 101
A110: Min T(K): | B110: 200 | C110: Min value: | D110: 0.01314752
A111: Max T(K): | B111: 440 | C111: Max value: | D111: 0.0001415972
A113: Coeffs: | B113: 7.875 | C113: 781.98 | D113: -3.0418 | E113: 0 | F113: 0
A115: Vapor Thermal Conductivity (W/m-K) Equation Number: | B115: 102
A117: Min T(K): | B117: 293.15 | C117: Min value: | D117: 0.01474703
A118: Max T(K): | B118: 1000 | C118: Max value: | D118: 0.1341727
A120: Coeffs: | B120: -0.010109 | C120: 0.6475 | D120: -7332 | E120: -268000 | F120: 0
A122: Liquid Thermal Conductivity (W/m-K) Equation Number: | B122: 100
A124: Min T(K): | B124: 159.05 | C124: Min value: | D124: 0.2048108
A125: Max T(K): | B125: 353.15 | C125: Max value: | D125: 0.1535684
A127: Coeffs: | B127: 0.2468 | C127: -0.000264 | D127: 0 | E127: 0 | F127: 0
A129: Liquid Surface Tension (N/m) Equation Number: | B129: 100
A131: Min T(K): | B131: 273.15 | C131: Min value: | D131: 0.02410054
A132: Max T(K): | B132: 503.15 | C132: Max value: | D132: 0.0008381644
A134: Coeffs: | B134: 0.03764 | C134: -2.157e-05 | D134: -1.025e-07 | E134: 0 | F134: 0
A136: Antoine Vapor Pressure (mmHg)
A137: Coefficients: | B137: 18.912
B138: 3804
B139: -41.68
A141: Polynomial Ideal Gas Heat Capacity (cal/mol-K)
A142: Coefficients: | B142: 6.72181
B143: 0.0170661
B144: 7.53981e-05
B145: -1.2437e-07
B146: 7.62077e-11
B147: -1.69187e-14
A149: Two-Term Liquid Viscosity (cP)
A150: Coefficients: | B150: 686.64
B151: 300.84
A153: Two-Term Surface Tension (N/m)
A154: Coefficients: | B154: 0.0440513
B155: 0.807787
A157: Henrys Constants
A158: Coefficients: | B158: 0
B159: 0
B160: 0
B161: 0
A163: MSRK Parameters
A164: Coefficients: | B164: 1.1545
B165: 0.4047
A167: UNIFAC/UNIQUAC Sub-Groups: Sub-Group ID Contribution
A168: 1 | B168: 1
A169: 2 | B169: 1
B170: 1
W180: 23
A181: Lennard-Jones Daten Literatur | C181: Poling, Prausnitz Appendix B | F181: McQuarrie Physical Chemistry S. 663 Tabelle 16.7 | I181: Mourits 1976 | L181: Ebert, Ederer | O181: sigma Å | P181: aus | Q181: miltlere Flüssigdichte | S181: Schmelzenthalpie | U181: Verdampfungswärme | W181: S + V
A182: σ | B182: 2.827 | C182: 4.53 | D182: Å | G182: pm | I182: 431.7 | J182: pm | M182: Å | O182: =10/(Q182*6.02214086E+23)^(1/3)*100000000 -> 5.077002858 | Q182: =(D54+D55)/2 -> 12.6889845 | R182: kmol/m³ | S182: =G15 -> 4931.02 | T182: =H15 -> kJkmol | U182: =B25 -> 38.74467 | V182: =C25 -> kJ/gmol | W182: =S182+U182*1000 -> 43675.69
A183: ε/k | B183: 59.7 | C183: 362.6 | D183: K | G183: K | I183: 450.2 | J183: K | M183: K
A185: Lennard-Jones Daten berechnet | C185: Gl. 9-4.8 und 9-4.7 in Poling, Prausnitz S. 9.7 aus krit. Daten | F185: Virial | I185: Gasviskosität | L185: Virialkoeffizient cm³/mol | N185: Poling, Prausnitz
A186: σ | B186: =C186 -> 4.455064663 | C186: =0.809*(B13*1000)^(1/3) -> 4.455064663 | D186: Å | F186: 7.676952887 | I186: 4.826360998
A187: ε/k | B187: =C187 -> 408.0997379 | C187: =B11/1.2593 -> 408.0997379 | D187: K | F187: 221.5413881 | I187: 408.0997379
A192: Virial/SRK Daten aus Tabelle Virial | B192: Temperatur K | C192: B Virial LJ
B193: 373.15 | C193: -536.5023781
B194: 378.15 | C194: -521.0513194
B195: 383.15 | C195: -506.0766488
B196: 388.15 | C196: -491.5570796
B197: 393.15 | C197: -477.4725692
B198: 398.15 | C198: -463.8042296
B199: 403.15 | C199: -450.5342459
B200: 408.15 | C200: -437.645801
B201: 413.15 | C201: -425.123007
B202: 418.15 | C202: -412.9508422
B203: 423.15 | C203: -401.1150926
B204: 428.15 | C204: -389.6022987
B205: 433.15 | C205: -378.3997063
B206: 438.15 | C206: -367.4952207
B207: 443.15 | C207: -356.8773648
B208: 448.15 | C208: -346.5352404
B209: 453.15 | C209: -336.4584921
B210: 458.15 | C210: -326.6372739
B211: 463.15 | C211: -317.0622188
B212: 468.15 | C212: -307.7244092
B213: 473.15 | C213: -298.6153513
A218: a (SRK) | B218: =pSRKabalpha($B$11,$B$12,$B$13,298,1,1) -> 12.69525965
A219: b (SRK | B219: =pSRKabalpha($B$11,$B$12,$B$13,298,1,2) -> 0.06021657407
A220: alpha | B220: =pSRKabalpha($B$11,$B$12,$B$13,298,1,3) -> 1.383007287
A221: P (SRK) | B221: =pSRKabalpha($B$11,$B$12,$B$13,298,1,0) -> 9.804265328
A230: Brechungsindes und Temperatur | B230: 1.3606
A231: Dichte bei der Temperatur des Brechungsindex | B231: 0.7893
A232: R0 | B232: 12.90075375 | C232: 12.90075375
A233: α0/4πε0
A234: νg | B234: 1.120002375e+15
A240: ϕOrientierung | B240: 1.323700926e-58
A241: ϕInduktion | B241: 3.253597139e-69
A242: ϕDispersion | B242: 1.455751963e-58
A243: B aus ϕOrientierung+ϕInduktion+ϕDispersion in erg.cm6 | B243: 2.779452889e-58
A245: A aus sigma, eps von Poling, Prausnitz in erg.cm^12 | B245: 1.495372873e-101
A246: B aus sigma, eps von Poling, Prausnitz in erg.cm^6 | B246: 1.730454903e-57
B247: 2.144342932e-100

Sheet Wasser
A1: CHEMCAD | B1: 6.5.7 | C1: Page | D1: 1
A3: Simulation name: | B3: LJ Parameter | C3: Date: | D3: 2021-12-27 | E3: Time: | F3: 17:22:27
A5: Physical Properties for | B5: Water | C5: (ID | D5: 62
A7: Formula: | B7: H2O
A9: Molecular Weight : | B9: 18.015
A11: Critical Temperature : | B11: 647.35 | C11: K
A12: Critical Pressure : | B12: 221.1823 | C12: bar
A13: Critical Volume : | B13: 0.063494 | C13: m3/kmol
A15: Melting point : | B15: 273.15 | C15: K | E15: heat of fusion | G15: 6001.76 | H15: kJkmol | I15: (Schmelzenthalpie)
A16: Normal boiling point : | B16: 373.15 | C16: K
A17: IG heat of formation : | B17: -241.82 | C17: kJ/gmol
A18: IG Gibbs of formation : | B18: -228.59 | C18: kJ/gmol
A19: Acentric factor : | B19: 0.348
A20: Solubility parameter : | B20: 47813 | C20: (J/m3)**0.5
A21: Dipole moment : | B21: 6.1709e-30 | C21: C.m
A22: Radius of Gyration : | B22: 6.15e-11 | C22: m
A24: Mean avg. boiling point : | B24: 0 | C24: K
A25: Heat of vaporization : | B25: 40.6568 | C25: kJ/gmol
A26: API net heating value : | B26: 0 | C26: kJ/gmol
A27: API gross heating value : | B27: 0 | C27: kJ/gmol
A28: Liquid volume constant : | B28: 2.552 | C28: cc/mol
A29: Molecular diameter : | B29: 2.52 | C29: angstroms
A30: Modified acentric factor : | B30: 0
A31: UNIQUAC area parameter : | B31: 1.3997
A32: UNIQUAC volume parameter : | B32: 0.92
A33: Wilson molar volume : | B33: 18.069
A34: Stiel polar factor : | B34: 0.023
A35: Rackett constant : | B35: 0
A36: Polar parameter : | B36: 1
A37: Eps/K : | B37: 775
A38: Watson factor : | B38: 0
A39: API gravity : | B39: 0
A40: Specific gravity 60 F : | B40: 1
A42: Electrolyte Data (at 25C):
A44: Electrolyte state : | B44: 0
A45: Electrolyte type : | B45: 0
A46: Electrolyte charge : | B46: 0
A47: Std heat of formation : | B47: -285.8307 | C47: kJ/gmol
A48: Std Gibbs of formation : | B48: -237.1792 | C48: kJ/gmol
A49: Standard entropy : | B49: 3.880914 | C49: kJ/kg-K
A50: Standard heat capacity : | B50: 4.179356 | C50: kJ/kg-K
A52: Liquid Density (kmol/m3) Equation Number: | B52: 105
A54: Min T(K): | B54: 273.16 | C54: Min value: | D54: 55.58261
A55: Max T(K): | B55: 333.15 | C55: Max value: | D55: 54.70285
A57: Coeffs: | B57: 5.459 | C57: 0.30542 | D57: 647.13 | E57: 0.081 | F57: 0
A59: Solid Density (kmol/m3) Equation Number: | B59: 100
A61: Min T(K): | B61: 233.15 | C61: Min value: | D61: 51.20189
A62: Max T(K): | B62: 273.15 | C62: Max value: | D62: 50.88826
A64: Coeffs: | B64: 53.03 | C64: -0.0078409 | D64: 0 | E64: 0 | F64: 0
A66: Vapor Pressure (Pascals) Equation Number: | B66: 101
A68: Min T(K): | B68: 273.16 | C68: Min value: | D68: 615.1066
A69: Max T(K): | B69: 647.13 | C69: Max value: | D69: 21937180
A71: Coeffs: | B71: 72.55 | C71: -7206.7 | D71: -7.1385 | E71: 4.046e-06 | F71: 2
A73: Heat of Vaporization (J/kmol) Equation Number: | B73: 106
A75: Min T(K): | B75: 273.16 | C75: Min value: | D75: 44735670
A76: Max T(K): | B76: 647.35 | C76: Max value: | D76: 142937.4
A78: Coeffs: | B78: 52053000 | C78: 0.3199 | D78: -0.212 | E78: 0.258 | F78: 0
A80: Ideal Gas Heat Capacity (J/kmol-K) Equation Number: | B80: 107
A82: Min T(K): | B82: 100 | C82: Min value: | D82: 33359
A83: Max T(K): | B83: 1500 | C83: Max value: | D83: 47105.12
A85: Coeffs: | B85: 33359 | C85: 26798 | D85: 2609.3 | E85: 8888 | F85: 1167.6
A87: Liquid Heat Capacity (J/kmol-K) Equation Number: | B87: 100
A89: Min T(K): | B89: 273.15 | C89: Min value: | D89: 76150.57
A90: Max T(K): | B90: 533.15 | C90: Max value: | D90: 89393.9
A92: Coeffs: | B92: 276370 | C92: -2090.1 | D92: 8.125 | E92: -0.014116 | F92: 9.3701e-06
A94: Solid Heat Capacity (J/kmol-K) Equation Number: | B94: 100
A96: Min T(K): | B96: 3.15 | C96: Min value: | D96: 180.148
A97: Max T(K): | B97: 273.15 | C97: Max value: | D97: 38120.55
A99: Coeffs: | B99: -262.49 | C99: 140.52 | D99: 0 | E99: 0 | F99: 0
A101: Vapor Viscosity (Pascal-sec) Equation Number: | B101: 102
A103: Min T(K): | B103: 373.15 | C103: Min value: | D103: 1.217872e-05
A104: Max T(K): | B104: 1073.15 | C104: Max value: | D104: 4.04543e-05
A106: Coeffs: | B106: 2.6986e-06 | C106: 0.498 | D106: 1257.7 | E106: -19570 | F106: 0
A108: Liquid Viscosity (Pascal-sec) Equation Number: | B108: 101
A110: Min T(K): | B110: 273.15 | C110: Min value: | D110: 0.001723713
A111: Max T(K): | B111: 643.15 | C111: Max value: | D111: 5.369558e-05
A113: Coeffs: | B113: -51.964 | C113: 3670.6 | D113: 5.7331 | E113: -5.3495e-29 | F113: 10
A115: Vapor Thermal Conductivity (W/m-K) Equation Number: | B115: 102
A117: Min T(K): | B117: 373.15 | C117: Min value: | D117: 0.02476042
A118: Max T(K): | B118: 1073.1 | C118: Max value: | D118: 0.1075006
A120: Coeffs: | B120: 6.977e-05 | C120: 1.1243 | D120: 844.9 | E120: -148850 | F120: 0
A122: Liquid Thermal Conductivity (W/m-K) Equation Number: | B122: 100
A124: Min T(K): | B124: 273.15 | C124: Min value: | D124: 0.5671408
A125: Max T(K): | B125: 633.15 | C125: Max value: | D125: 0.4269633
A127: Coeffs: | B127: -0.4267 | C127: 0.00569 | D127: -8.0065e-06 | E127: 1.815e-09 | F127: 0
A129: Liquid Surface Tension (N/m) Equation Number: | B129: 106
A131: Min T(K): | B131: 273.16 | C131: Min value: | D131: 0.07794684
A132: Max T(K): | B132: 647.35 | C132: Max value: | D132: 6.285561e-10
A134: Coeffs: | B134: 0.1855 | C134: 2.717 | D134: -3.554 | E134: 2.047 | F134: 0
A136: Antoine Vapor Pressure (mmHg)
A137: Coefficients: | B137: 18.304
B138: 3816.4
B139: -46.13
A141: Polynomial Ideal Gas Heat Capacity (cal/mol-K)
A142: Coefficients: | B142: 7.9755
B143: -0.00068835
B144: 2.7806e-06
B145: 1.9183e-09
B146: -3.0396e-12
B147: 9.1595e-16
A149: Two-Term Liquid Viscosity (cP)
A150: Coefficients: | B150: 656.25
B151: 283.16
A153: Two-Term Surface Tension (N/m)
A154: Coefficients: | B154: 0.154542
B155: 1.1161
A157: Henrys Constants
A158: Coefficients: | B158: 0
B159: 0
B160: 0
B161: 0
A163: MSRK Parameters
A164: Coefficients: | B164: 0.9499
B165: 0.1633
A167: UNIFAC/UNIQUAC Sub-Groups: Sub-Group ID Contribution
A168: 17 | B168: 1
B180: ? | C180: 3 | F180: 6 | I180: 9 | L180: 12 | O180: 15 | W180: 23
A181: Lennard-Jones Daten Literatur | C181: Poling, Prausnitz Appendix B | F181: McQuarrie Physical Chemistry S. 663 Tabelle 16.7 | I181: Mourits 1976 | L181: Ebert, Ederer | O181: sigma Å | P181: aus | Q181: miltlere Flüssigdichte | S181: Schmelzenthalpie | U181: Verdampfungswärme | W181: S + V (Sublimation)
A182: σ | C182: 2.641 | D182: Å | G182: pm | I182: 271 | J182: pm | L182: 0 | M182: Å | O182: =10/(Q182*6.02214086E+23)^(1/3)*100000000 -> 3.111145166 | Q182: =(D54+D55)/2 -> 55.14273 | R182: kmol/m³ | S182: =G15 -> 6001.76 | T182: =H15 -> kJkmol | U182: =B25 -> 40.6568 | V182: =C25 -> kJ/gmol | W182: =S182+U182*1000 -> 46658.56
A183: ε/k | C183: 809.1 | D183: K | G183: K | I183: 506 | J183: K | L183: 0 | M183: K
A185: Lennard-Jones Daten berechnet | C185: Gl. 9-4.8 und 9-4.7 in Poling, Prausnitz S. 9.7 aus krit. Daten | F185: Virial berechnet | I185: Gasviskosität | L185: Virialkoeffizient cm³/mol | N185: Poling, Prausnitz
A186: σ | C186: =0.809*(B13*1000)^(1/3) -> 3.227449217 | D186: Å | F186: 4.600555697 | G186: Å | I186: 3.670362244
A187: ε/k | C187: =B11/1.2593 -> 514.0554276 | D187: K | F187: 335.0829323 | G187: K | I187: =C183 -> 809.1
G192: Dichte = Cells(reihe, 17 + V) * Mg 'kgh/m³ : CC kmol/m³ * kg/kmol = in Kg/m³ Werte aus Stoffliste
A193: R0 | C193: cm³/mol | D193: Moelwyh-Hughes | G193: sigma = (Mg / (Dichte * N)) ^ (1 / 3) * 10 '28.1.22 Sigma [pm] Formel aus Dichte [g/cm³] kubisch einfach, könnte man als hexagonal erweitern
A194: alpha'=alpha/(4πε0) | C194: cm³ | D194: Moelwyh-Hughes
A195: vg | C195: s-1 | D195: Moelwyh-Hughes
A218: a (SRK) | B218: =pSRKabalpha($B$11,$B$12,$B$13,298,1,1) -> 5.599024179
A219: b (SRK | B219: =pSRKabalpha($B$11,$B$12,$B$13,298,1,2) -> 0.02108352219
A220: alpha | B220: =pSRKabalpha($B$11,$B$12,$B$13,298,1,3) -> 1.407147951
A221: P (SRK) | B221: =pSRKabalpha($B$11,$B$12,$B$13,298,1,0) -> 17.59476265
A230: Brechungsindes und Temperatur | B230: 1.333
A231: Dichte bei der Temperatur des Brechungsindex | B231: 0.998
A232: R0 | B232: 3.668 | C232: 3.714060691
A233: α0/4πε0
A234: νg | B234: 2102000000000000
A240: ϕOrientierung | B240: 1.897123669e-58
A241: ϕInduktion | B241: 1.09978624e-69
A242: ϕDispersion | B242: 2.17813298e-59
A243: B aus ϕOrientierung+ϕInduktion+ϕDispersion in erg.cm6 | B243: 2.114936967e-58
A245: A aus sigma, eps von Poling, Prausnitz in erg.cm^12 | B245: 5.144773856e-104
A246: B aus sigma, eps von Poling, Prausnitz in erg.cm^6 | B246: 1.516197871e-58
A247: A Stoßberechnung | B247: 5.475909497e-104

Sheet Virial
A1: 41.14564314 | E1: 5 | J1: 10 | O1: 15 | P1: 16 | Q1: 17 | R1: 18 | S1: 19 | T1: 20
A3: 41.14564314 | B3: Virial
A4: Stoff-Nr. | B4: 22
A5: Name | B5: Wasser
T6: (1)
A7: ε/k (Virial) | C7: Lfd. Nr | D7: Stoffname | E7: wählen, dann (1): | P7: Name | Q7: sigma Lit. Poling Å | R7: sigma Virial berechnet Å | S7: eps/K Literatur Poling K | T7: eps/k Virial berechnet K
A8: 41.14564314 | C8: 1 | D8: 1 | E8: H2 | F8: Gleichung Nr. | G8: 102 | O8: 1 | P8: H2 | Q8: 2.827 | R8: 2.957872476 | S8: 59.7 | T8: 41.14564314
A9: 29.46665624 | C9: 2 | D9: 2 | E9: He | F9: MG | G9: 18.015 | H9: g/mol | K9: Molgewicht | O9: 2 | P9: He | Q9: 2.551 | R9: 2.601135209 | S9: 10.22 | T9: 29.46665624
A10: 24.78958068 | C10: 3 | D10: 3 | E10: Ne | F10: Tk | G10: 647.35 | H10: K | I10: =G10+273.15 -> 920.5 | J10: *C | K10: krit. Temperatur | O10: 3 | P10: Ne | Q10: 2.82 | R10: 2.632135218 | S10: 32.8 | T10: 24.78958068
A11: 111.7302917 | C11: 4 | D11: 4 | E11: Ar | F11: pk | G11: 221.1823 | H11: bar | K11: krit. Druck | O11: 4 | P11: Ar | Q11: 3.542 | R11: 3.522966927 | S11: 93.3 | T11: 111.7302917
A12: 153.316529 | C12: 5 | D12: 5 | E12: Kr | F12: Vk | G12: 0.063494 | H12: m3/kmol | I12: =G12*1000 -> 63.494 | J12: cm3/mol | K12: krit. Volumen | O12: 5 | P12: Kr | Q12: 3.655 | R12: 3.908101437 | S12: 178.6 | T12: 153.316529
A13: 216.3719944 | C13: 6 | D13: 6 | E13: Xe | F13: Omega | G13: 0.348 | K13: azentrischer Faktor | O13: 6 | P13: Xe | Q13: 4.047 | R13: 4.208069429 | S13: 231 | T13: 216.3719944
A14: 111.8569423 | C14: 7 | D14: 7 | E14: O2 | F14: Ts | G14: 373.15 | I14: =G14-273.15 -> 100 | J14: °C | K14: Siedetemperatur | O14: 7 | P14: O2 | Q14: 3.467 | R14: 3.616779175 | S14: 106.7 | T14: 111.7434803
A15: 86.7438412 | C15: 8 | D15: 8 | E15: N2 | F15: σ (Virial) | G15: 4.600555697 | H15: Å | K15: Virial | O15: 8 | P15: N2 | Q15: 3.798 | R15: 3.730755398 | S15: 71.4 | T15: 86.7438412
A16: 99.13564951 | C16: 9 | D16: 9 | E16: F2 | F16: ε/k (Virial) | G16: 335.0829323 | H16: K | K16: Virial | O16: 9 | P16: F2 | Q16: 3.357 | R16: 3.544799804 | S16: 112.6 | T16: 100.000879
A17: 282.6337633 | C17: 10 | D17: 10 | E17: Cl2 | O17: 10 | P17: Cl2 | Q17: 4.217 | R17: 4.608801537 | S17: 316 | T17: 282.6337633
A18: 460.6881346 | C18: 11 | D18: 11 | E18: Br2 | F18: V0 | G18: =22.413996*1.01325 -> 22.71098145 | H18: l/mol bei 1,01325 bar | O18: 11 | P18: Br2 | Q18: 4.296 | R18: 4.292083472 | S18: 507.9 | T18: 460.6881346
A19: 86.46769088 | C19: 12 | D19: 12 | E19: CO | F19: σ (Vk) | G19: 3.227449217 | H19: Å | I19: aus Vk | O19: 12 | P19: CO | Q19: 3.69 | R19: 3.812206346 | S19: 91.7 | T19: 86.46769088
A20: 176.2609369 | C20: 13 | D20: 13 | E20: CO2 | F20: ε/k (Tk) | G20: 514.0554276 | H20: K | I20: aus Tk | O20: 13 | P20: CO2 | Q20: 3.941 | R20: 4.795012784 | S20: 195.2 | T20: 171.5241257
A21: 139.3159141 | C21: 14 | D21: 14 | E21: Methan | F21: Ts | G21: 373.15 | H21: K | I21: unterste Temperatur | O21: 14 | P21: Methan | Q21: 3.758 | R21: 3.982326137 | S21: 148.6 | T21: 139.3159141
A22: 196.3890549 | C22: 15 | D22: 15 | E22: Ethan | F22: Temperatur K | G22: B Virial LJ | H22: B SRK | I22: Diff | O22: 15 | P22: Ethan | Q22: 4.443 | R22: 5.011376506 | S22: 215.7 | T22: 196.3890549
A23: 225.1659577 | C23: 16 | D23: 16 | E23: Propan | F23: 373.15 | G23: =Virialf($G$15,$G$16,F23,0.001) -> -257.4607392 | H23: =SRKBVirialF($G$10,$G$11,$G$12,$G$13,F23,$G$18) -> -257.1629063 | I23: =(G23-H23)^2 -> 0.08870441946 | O23: 16 | P23: Propan | Q23: 5.118 | R23: 5.811184996 | S23: 237.1 | T23: 225.1659577
A24: 171.4073848 | C24: 17 | D24: 17 | E24: Benzol | F24: =F23+5 -> 378.15 | G24: -251.4166319 | H24: =SRKBVirialF($G$10,$G$11,$G$12,$G$13,F24,$G$18) -> -251.2327281 | I24: =(G24-H24)^2 -> 0.03382062521 | O24: 17 | P24: Benzol | Q24: 5.349 | R24: 5.153659601 | S24: 412.3 | T24: 171.4073848
A25: 239.8391272 | C25: 18 | D25: 18 | E25: H2S | F25: =F24+5 -> 383.15 | G25: -245.5716635 | H25: -245.4810154 | I25: 0.008217068341 | O25: 18 | P25: H2S | Q25: 3.623 | R25: 4.28130912 | S25: 301.1 | T25: 247.8241488
A26: 222.3972213 | C26: 19 | D26: 19 | E26: NH3 | F26: 388.15 | G26: -239.9162774 | H26: -239.9004152 | I26: 0.0002516102551 | O26: 19 | P26: NH3 | Q26: 2.9 | R26: 4.684303642 | S26: 558.3 | T26: 222.3972213
A27: 228.4457364 | C27: 20 | D27: 20 | E27: Methanol | F27: 393.15 | G27: -234.4415156 | H27: -234.4839628 | I27: 0.001801764863 | O27: 20 | P27: Methanol | Q27: 3.626 | R27: 6.766898921 | S27: 481.8 | T27: 228.4457364
A28: 221.5413881 | C28: 21 | D28: 21 | E28: Ethanol | F28: 398.15 | G28: -229.1389677 | H28: -229.2250573 | I28: 0.007411421796 | O28: 21 | P28: Ethanol | Q28: 4.53 | R28: 7.676952887 | S28: 362.6 | T28: 221.5413881
A29: 335.0829323 | C29: 22 | D29: 22 | E29: Wasser | F29: 403.15 | G29: -224.0007368 | H29: -224.1174378 | I29: 0.01361913178 | O29: 22 | P29: Wasser | Q29: 2.641 | R29: 4.600555697 | S29: 809.1 | T29: 335.0829323
F30: 408.15 | G30: -219.0193995 | H30: -219.1551627 | I30: 0.01843165009
F31: 413.15 | G31: -214.1879708 | H31: -214.3325894 | I31: 0.02091454095
F32: 418.15 | G32: -209.4998723 | H32: -209.6443561 | I32: 0.02087556609 | P32: B speichern
A33: 41.14564314 | F33: 423.15 | G33: -204.9489032 | H33: -205.0853647 | I33: 0.01862174175
F34: 428.15 | G34: -200.5292136 | H34: -200.650765 | I34: 0.01477474559
F35: 433.15 | G35: -196.2352803 | H35: -196.3359401 | I35: 0.010132402
F36: 438.15 | G36: -192.0618843 | H36: -192.1364927 | I36: 0.005566421027
F37: 443.15 | G37: -188.00409 | H37: -188.0482322 | I37: 0.001948531408
F38: 448.15 | G38: -184.0572267 | H38: -184.0671629 | I38: 9.872820764e-05
F39: 453.15 | G39: -180.2168707 | H39: -180.1894732 | I39: 0.0007506254101
F40: 458.15 | G40: -176.4788296 | H40: -176.4115249 | I40: 0.004529924957
F41: 463.15 | G41: -172.8391269 | H41: -172.7298436 | I41: 0.01194283445
F42: 468.15 | G42: -169.293989 | H42: -169.1411102 | I42: 0.02337192528
F43: 473.15 | G43: -165.839832 | H43: -165.6421518 | I43: =(G43-H43)^2 -> 0.0390774525
I44: =SUM(I23:I43) -> 0.3448631314
B46: Ergebnisse
A77: 2023-02-20 | B77: sigma und eps aus tk und pk, aus lit und virial anzeigen. Startwert manuel wählen

Sheet Viskosität
A1: Berechnung der Lennard-Jones Parameter sigma aus der Viskosität nach Poling Prausnitz S.
A3: 1 | E3: 5 | O3: 15 | Z3: 20
Y4: Poling, Prausnitz, O'Connell | AB4: The Properties Gases and Liquids 5. Auflage
I5: T [°C] | J5: 0 | Y5: Seite | Z5: Gleichung | AA5: Formel
I6: T[K] | J6: =J5+273.15 -> 273.15
M7: Nr. | N7: Name | O7: Visc. Chemcad | P7: Visc. Poling Gl. 9-3.9 | Q7: eps/k Poling Anhang B | R7: sigma Poling Anhang B | S7: weitere Berechnungen aus poling | Y7: 9.3 | Z7: 9-3.8 | AC7: ideale Stoffe
C8: 1 | D8: H2 | F8: Vapor Viscosity (Pascal-sec) | M8: 1 | N8: H2 | O8: 8.34470855e-06 | P8: 7.318912654e-06 | Q8: 59.7 | R8: 2.827 | BM8: 59.7
C9: 2 | D9: He | F9: Stoff (Tabellen) Nr. | H9: 2 | M9: 2 | N9: He | O9: 1.871232529e-05 | P9: 2.223711412e-10 | Q9: 10.22 | R9: 2.551
C10: 3 | D10: Ne | F10: Stoff (Tabellen) Name | H10: He | M10: 3 | N10: Ne | O10: 2.978248837e-05 | P10: 3.874020497e-06 | Q10: 32.8 | R10: 2.82 | Y10: 9.4 | AC10: dimensionslose Temperatur, k=Boltzmannkonstante
C11: 4 | D11: Ar | M11: 4 | N11: Ar | O11: 2.109477513e-05 | P11: 3.937390935e-05 | Q11: 93.3 | R11: 3.542
C12: 5 | D12: Kr | F12: Gleichung Nr. | H12: 102 | J12: Chemcad | M12: 5 | N12: Kr | O12: 2.355057775e-05 | P12: 9.240474721e-05 | Q12: 178.6 | R12: 3.655
C13: 6 | D13: Xe | F13: Tmin | H13: 20 | I13: K | J13: Chemcad | M13: 6 | N13: Xe | O13: 2.131974513e-05 | P13: 0.0001036925504 | Q13: 231 | R13: 4.047 | Y13: 9.7 | Z13: 9-4.7 | AC13: Chung, Index k statt c
C14: 7 | D14: O2 | F14: Vismin η | H14: 3.530459e-06 | I14: Ps | J14: Chemcad | M14: 7 | N14: O2 | O14: 1.901833122e-05 | P14: 4.313727105e-05 | Q14: 106.7 | R14: 3.467
C15: 8 | D15: N2 | F15: Tmax | H15: 2000 | I15: K | J15: Chemcad | M15: 8 | N15: N2 | O15: 1.65797068e-05 | P15: 1.888584765e-05 | Q15: 71.4 | R15: 3.798
C16: 9 | D16: F2 | F16: Vismax η | H16: 7.560659e-05 | I16: Pa.s | J16: Chemcad | M16: 9 | N16: F2 | O16: 2.149912846e-05 | P16: 5.302348239e-05 | Q16: 112.6 | R16: 3.357 | Y16: 9.7 | Z16: 9-4.8 | AC16: Chung, Index k statt c
C17: 10 | D17: Cl2 | F17: Viskosität η | H17: 1.871232529e-05 | I17: Pa.s | J17: Chemacd T = 298.15 K | M17: 10 | N17: Cl2 | O17: 1.23031071e-05 | P17: 7.418213725e-05 | Q17: 316 | R17: 4.217
C18: 11 | D18: Br2 | F18: eps/k | H18: 10.22 | I18: K | J18: Poling Anhang B | M18: 11 | N18: Br2 | O18: 1.427703414e-05 | P18: 0.0001077799694 | Q18: 507.9 | R18: 4.296
C19: 12 | D19: CO | F19: sigma | H19: 2.551 | I19: Å | J19: Poling Anhang B | M19: 12 | N19: CO | O19: 1.650667101e-05 | P19: 2.969430465e-05 | Q19: 91.7 | R19: 3.69 | Y19: 9.7 | AC19: 9-4.1 und 9-4.7
C20: 13 | D20: CO2 | F20: Omegav | H20: 609847.0532 | J20: Poling Gl. 9-4.3 | M20: 13 | N20: CO2 | O20: 1.375802036e-05 | P20: 5.98647643e-05 | Q20: 195.2 | R20: 3.941
C21: 14 | D21: Methan | F21: Viskosität η | H21: 2.223711412e-10 | I21: Pa.s | J21: Poling Gl. 9-3.9 | M21: 14 | N21: Methan | O21: 1.033721228e-05 | P21: 3.450073374e-05 | Q21: 148.6 | R21: 3.758
C22: 15 | D22: Ethan | M22: 15 | N22: Ethan | O22: 8.638698079e-06 | P22: 4.034872909e-05 | Q22: 215.7 | R22: 4.443 | Y22: 9.4 | Z22: 9-3.9 | AC22: Chapman-Enskog | AF22: Kollisionsintegral nach Neufeld | AI22: ok
C23: 16 | D23: Propan | F23: 9-4.3 | M23: 16 | N23: Propan | O23: 7.602404536e-06 | P23: 3.783273081e-05 | Q23: 237.1 | R23: 5.118
C24: 17 | D24: Benzol | M24: 17 | N24: Benzol | O24: 6.937107318e-06 | P24: 4.892662803e-05 | Q24: 412.3 | R24: 5.349
C25: 18 | D25: H2S | M25: 18 | N25: H2S | O25: 1.150263704e-05 | P25: 6.93167486e-05 | Q25: 301.1 | R25: 3.623 | Y25: 9.4a | AC25: aus 9-3.9
C26: 19 | D26: NH3 | F26: 9-3.9 | M26: 19 | N26: NH3 | O26: 9.214704758e-06 | P26: 7.675050275e-05 | Q26: 558.3 | R26: 2.9
C27: 20 | D27: Methanol | M27: 20 | N27: Methanol | O27: 8.720210065e-06 | P27: 6.792154709e-05 | Q27: 481.8 | R27: 3.626
C28: 21 | D28: Ethanol | M28: 21 | N28: Ethanol | O28: 8.211506776e-06 | P28: 5.228246012e-05 | Q28: 362.6 | R28: 4.53 | Y28: 9.5 | Z28: 9-4.3 | AF28: Chung | AI28: ok
C29: 22 | D29: Wasser | F29: 9-4.1 | M29: 22 | N29: Wasser | O29: 8.255652328e-06 | P29: 9.197063443e-05 | Q29: 809.1 | R29: 2.641
Y31: 9.6 | Z31: 9-4.5 | AC31: Kim und Ross | AI31: ok
B33: 2024-01-01 | C33: alle funktionen aus poling für eps und sigma darstellen
Y34: 9.7 | AC34: Zusamenfassung aus 9-4.5 und 9-3.9 (Chung), Tr <= 1,4

Sheet TkVk
A1: σ aus Vk und ε aus Tk | E1: 5 | J1: 10
A2: 2023-03-02
A3: ID
A4: Stoff-Nr. | B4: 5
A5: Name | B5: Kr
J6: 298
A7: Lfd. Nr | B7: Stoffname | C7: σ Poling [Å] | D7: ε/k Poling [K] | E7: Tk [K] | F7: pK [bar_abs] | G7: Vk [m³/kmol] | H7: σ (Vk) [Å] | I7: ε/k (Tk) [K]
A8: 1 | B8: H2 | C8: =TblDat(B8,C30,C31) -> 2.827 | D8: =TblDat(B8,D30,D31) -> 59.7 | E8: =TblDat(B8,E30,E31) -> 33.26999 | F8: 12.95947 | G8: 0.065001 | H8: 3.252783819
A9: 2 | B9: He | C9: 2.551 | D9: =TblDat(B9,183,3) -> 10.22 | E9: 5.199987 | F9: 1 | G9: 0.0573 | H9: 3.118890031 | I9: 4.129267847
A10: 3 | B10: Ne | C10: 2.82 | D10: 32.8 | E10: 44.4 | G10: 0.0417 | H10: 2.805394061 | I10: 35.25768284
A11: 4 | B11: Ar | C11: 3.542 | D11: 93.3 | E11: 150.86 | F11: 48.9805 | G11: 0.0746 | H11: 3.405609098 | I11: 119.7967125
A12: 5 | B12: Kr | C12: 3.655 | D12: 178.6 | E12: 209.35 | F12: 102 | G12: 0.0912 | H12: 3.641498492 | I12: 166.243151
A13: 6 | B13: Xe | C13: 4.047 | D13: 231 | E13: 289.74 | F13: 15 | G13: 0.118 | H13: 3.968038318 | I13: 230.0802033
A14: 7 | B14: O2 | C14: 3.467 | D14: 106.7 | E14: 154.58 | F14: 6.844798e-07 | G14: 0.07340001 | H14: 3.387249817 | I14: 122.7507345
A15: 8 | B15: N2 | C15: 3.798 | D15: 71.4 | E15: 126.2 | F15: 1500 | G15: 0.08859999 | H15: 3.606559315 | I15: 100.2144048
A16: 9 | B16: F2 | C16: 3.357 | D16: 112.6 | E16: 144.31 | F16: 2.735943e-05 | G16: 0.0662 | H16: 3.272662234 | I16: 114.5954101
A17: 10 | B17: Cl2 | C17: 4.217 | D17: 316 | E17: 417.15 | F17: 8.861658504e-06 | G17: 0.1237 | H17: 4.030928439 | I17: 331.2554594
A18: 11 | B18: Br2 | C18: 4.296 | D18: 507.9 | E18: 584.15 | F18: 59.7 | G18: 0.135 | H18: 4.150111623 | I18: 463.868816
A19: 12 | B19: CO | C19: 3.69 | D19: 91.7 | E19: 132.95 | F19: 2.827 | G19: 0.0931 | H19: 3.666613068 | I19: 105.5745255
A20: 13 | B20: CO2 | C20: 3.941 | D20: 195.2 | E20: 304.2 | F20: 12.95008192 | G20: 0.092863 | H20: 3.66349912 | I20: 241.562773
A21: 14 | B21: Methan | C21: 3.758 | D21: 148.6 | E21: 190.63 | F21: 6.3205707e-06 | G21: 0.099418 | H21: 3.7477464 | I21: 151.3777495
A22: 15 | B22: Ethan | C22: 4.443 | D22: 215.7 | E22: 305.43 | F22: 48.83864 | G22: 0.1467 | H22: 4.266697888 | I22: 242.5395061
A23: 16 | B23: Propan | C23: 5.118 | D23: 237.1 | E23: 369.82 | F23: 42.4957 | G23: 0.20083 | H23: 4.737596302 | I23: 293.6710871
A24: 17 | B24: Benzol | C24: 5.349 | D24: 412 | E24: 288.9 | F24: 48.95 | G24: 0.256 | H24: 5.136829804 | I24: 229.413166
A25: 18 | B25: H2S | C25: 3.623 | D25: 301.1 | E25: 373.55 | F25: 90.0779 | G25: 0.09849 | H25: 3.736049033 | I25: 296.6330501
A26: 19 | B26: NH3 | C26: 2.9 | D26: 558.3 | E26: 405.65 | F26: 112.7848 | G26: 0.07247 | H26: 3.372882992 | I26: 322.1234019
A27: 20 | B27: Methanol | C27: 3.626 | D27: 481.8 | E27: 512.64 | F27: 80.97 | G27: 0.118 | H27: 3.968038318 | I27: 407.0833002
A28: 21 | B28: Ethanol | C28: 4.53 | D28: 362.6 | E28: 513.92 | F28: 61.48 | G28: 0.167 | H28: 4.455064663 | I28: 408.0997379
A29: 22 | B29: Wasser | C29: 2.641 | D29: 809.1 | E29: 647.35 | F29: 221.1823 | G29: 0.063494 | H29: 3.227449217 | I29: 514.0554276
B30: Tbl Zeile | C30: 182 | D30: 183 | E30: 11 | F30: 12 | G30: 13
B31: Tbl Spalte | C31: 3 | D31: 3 | E31: 2 | F31: 2 | G31: 2

Sheet Enthalpie
A1: eps aus Sublimationsenthalpie

Sheet Info
A1: Diese Tabellen entstehen in Chemcad 6.5 mit der Component List und Klick auf Print
A2: Diese Datei sowohl für das Buch also auch für Kunden
A3: Die Liste ist bei einigen Stoffen nicht vollständig zB Heat of Fusion s. H2
A4: alte Liste ist LJ Par Virial SRK. Xlsm
A5: 2022-12-31 | B5: Formatieren, d.h. allgemeine Texte in alle Tabellen schreiben
A6: 2023-01-13 | B6: in 2023 kopieren
A7: 2023-01-20 | B7: alle Virialdaten fertig | H7: E:\Buch3\Arbeitsordner2023 | N7: weitere Dateien
A8: 2023-01-21 | B8: Viskosität progrm | H8: E:\Buch3\Arbeitsordner2023\LJ ParameterView2023.xlsm | N8: LJPar Mourits2023.xlsx
A9: 2023-01-26 | B9: Visk.
N10: LJ Par Virial SRK 2023.xlsm
A11: 2023-02-16 | B11: Reihenfolge der Components mit LJ Par Virial SRK 2023 gleich setzen, also auch den CC6 Job LJ Parameter.
B12: CC Dauerlizenz anfragen, werde schließlich 80.
A13: 2023-03-04 | B13: Benzol, Methanol, Ethanol, Wasser überarbeitet
A14: 2023-07-07 | B14: Virial= f(T) Daten in Tabelle Virial wird in jede Component Tabelle übertragen
B15: Virial: Component wählen, dann (1) evtl. (2), dann (3)
A169: Lennard-Jones Literatur

Sheet Literatur
A1: LJ Daten aus Poling, Prausnitz: the properties of gases and liquids 2000 | D1: Appendix B | E1: Daten aus Poling: The properties of Gases and Liquids | G1: O-Connell, Poling, Prausnitz: The properties of Gases and Liquids
B2: Formel | C2: Summenformel | D2: Name | E2: CC- Nr | F2: b0 [cm³/mol] | G2: σ [Å] | H2: ε/k [K] | I2: 3-77 | K2: Anm.: b0 ist nicht der Virialkoeffizient
A3: 1 | B3: Ar | D3: Argon | E3: 98 | F3: 56.08 | G3: 3.542 | H3: 93.3
A4: 2 | B4: He | D4: Helium | E4: 212 | F4: 20.95 | G4: 2.551 | H4: 10.22
A5: 3 | B5: Kr | D5: Krypton | E5: 971 | F5: 61.62 | G5: 3.655 | H5: 178.6
A6: 4 | B6: Ne | D6: Neon | E6: 107 | F6: 28.3 | G6: 2.82 | H6: 32.8
A7: 5 | B7: Xe | D7: Xenon | E7: 994 | F7: 83.66 | G7: 4.047 | H7: 231
A8: 6 | B8: Air | D8: Air | E8: 475 | F8: 64.5 | G8: 3.711 | H8: 78.6
A9: 7 | B9: AsH3 | D9: Arsine | E9: 1218 | F9: 89.88 | G9: 4.145 | H9: 259.8
A10: 8 | B10: BCl3 | D10: BoronTrichloride | E10: 629 | F10: 170.1 | G10: 5.127 | H10: 337.7
A11: 9 | B11: BF3 | D11: BoronTrifluoride | E11: 630 | F11: 93.35 | G11: 4.198 | H11: 186.3
A12: 10 | B12: B(OCH3)3 | D12: Methyl borate | E12: 1045 | F12: 210.3 | G12: 5.503 | H12: 396.7
A13: 11 | B13: Br2 | D13: Bromine | E13: 99 | F13: 100.1 | G13: 4.296 | H13: 507.9 | I13: ?
A14: 12 | B14: CCl4 | D14: Carbon Tetra-Cl | E14: 100 | F14: 265.5 | G14: 5.947 | H14: 322.7
A15: 13 | B15: CF4 | D15: Carbon Tetra-F | E15: 218 | F15: 127.9 | G15: 4.662 | H15: 134
A16: 14 | B16: CHCl3 | D16: Chloroform | E16: 112 | F16: 197.5 | G16: 5.389 | H16: 340.2
A17: 15 | B17: CH2Cl2 | D17: Dichloromethane | E17: 222 | F17: 148.3 | G17: 4.898 | H17: 356.3
A18: 16 | B18: CH3Br | D18: Methyl bromid | E18: 224 | F18: 88.14 | G18: 4.118 | H18: 449.2
A19: 17 | B19: CH3Cl | D19: Methyl chlorid | E19: 115 | F19: 92.31 | G19: 4.182 | H19: 350
A20: 18 | B20: CH3OH | C20: CH4O | D20: Methanol | E20: 117 | F20: 60.17 | G20: 3.626 | H20: 481.8
A21: 19 | B21: CH4 | D21: Methane | E21: 2 | F21: 66.98 | G21: 3.758 | H21: 148.6
A22: 20 | B22: CO | D22: Carbon monoxid | E22: 48 | F22: 63.41 | G22: 3.69 | H22: 91.7
A23: 21 | B23: COS | D23: Carbonyl Sulfide | E23: 219 | F23: 88.91 | G23: 4.13 | H23: 336
A24: 22 | B24: CO2 | D24: Carbon dioxide | E24: 49 | F24: 77.25 | G24: 3.941 | H24: 195.2
A25: 23 | B25: CS2 | D25: Carbon disulfide | E25: 102 | F25: 113.7 | G25: 4.483 | H25: 467
A26: 24 | B26: C2H2 | D26: Acetylene | E26: 65 | F26: 82.79 | G26: 4.033 | H26: 231.8
A27: 25 | B27: C2H4 | D27: Ethylene | E27: 22 | F27: 91.06 | G27: 4.163 | H27: 224.7
A28: 26 | B28: C2H6 | D28: Ethane | E28: 3 | F28: 110.7 | G28: 4.443 | H28: 215.7
A29: 27 | B29: C2H5Cl | D29: Ethyl chlorid | E29: 115 | F29: 148.3 | G29: 4.898 | H29: 300
A30: 28 | B30: C2H5OH | C30: C2H6O | D30: Ethanol | E30: 134 | F30: 117.3 | G30: 4.53 | H30: 362.6
A31: 29 | B31: C2N2 | D31: Cyanogen | E31: 237 | F31: 104.7 | G31: 4.361 | H31: 348.6
A32: 30 | B32: CH3OCH3 | C32: C2H6O | D32: Dimethyl Ether | E32: 133 | F32: 100.9 | G32: 4.307 | H32: 395
A33: 31 | B33: CH2CHCH3 | C33: C3H6 | D33: Propylene | E33: 23 | F33: 129.2 | G33: 4.678 | H33: 289.9
A34: 32 | B34: CH3CCH | C34: C3H45 | D34: Propyne | E34: 66 | F34: 136.2 | G34: 4.761 | H34: 251.8
A35: 33 | B35: C3H6 | D35: Cyclopropane | E35: 258 | F35: 140.2 | G35: 4.807 | H35: 248.9
A36: 34 | B36: C3H8 | D36: Propane | E36: 4 | F36: 169.2 | G36: 5.118 | H36: 237.1
A37: 35 | B37: n-C3H7OH | C37: C3H6O | D37: n-Propanol | E37: 146 | F37: 118.8 | G37: 4.549 | H37: 576.6
A38: 36 | B38: CH3COCH3 | C38: C3H6O | D38: Acetone | E38: 140 | F38: 122.8 | G38: 4.6 | H38: 560.2
A39: 37 | B39: CH3COOCH3 | C39: C3H4O2 | D39: Methyl acetate | E39: 142 | F39: 151.8 | G39: 4.936 | H39: 469.8
A40: 38 | B40: n-C4H10 | C40: C4H10 | D40: n-Butane | E40: 6 | F40: 130 | G40: 4.687 | H40: 531.4 | I40: n-Butan | J40: 5.2698 | K40: 297.336 | L40: diese Werte ergeben sich aus einer Regressionsanalyse der hier markierten Alkane
A41: 39 | B41: i-C4H10 | C41: C4H10 | D41: I-butane | E41: 5 | F41: 185.6 | G41: 5.278 | H41: 330.1 | I41: n-Butan | J41: 540.5 | K41: 305 | L41: Werte aus Mourits Zeile 133
A42: 40 | B42: C2H5OC2H5 | C42: C4H10O | D42: Diethyl Ether | E42: 162 | F42: 231 | G42: 5.678 | H42: 313.8
A43: 41 | B43: CH3COOC2H5 | C43: C4H8O2 | D43: Ethyl acetate | E43: 142 | F43: 178 | G43: 5.205 | H43: 521.3
A44: 42 | B44: n-C5H12 | C44: C5H12 | D44: N-Pentane | E44: 7 | F44: 244.2 | G44: 5.784 | H44: 341.1
A45: 43 | B45: C(CH3)4 | C45: C5H12 | D45: Neopentane | E45: 9 | F45: 340.9 | G45: 6.464 | H45: 193.4
A46: 44 | B46: C6H6 | D46: Benzene | E46: 40 | F46: 193.2 | G46: 5.349 | H46: 412.3
A47: 45 | B47: C6H12 | D47: Cyclohexane | E47: 38 | F47: 298.2 | G47: 6.182 | H47: 297.1
A48: 46 | B48: n-C6H14 | C48: C6H14 | D48: N-Hexane | E48: 10 | F48: 265.7 | G48: 5.949 | H48: 399.3
A49: 47 | B49: Cl2 | D49: Chlorine | E49: 105 | F49: 94.65 | G49: 4.217 | H49: 316
A50: 48 | B50: F2 | D50: Fluorine | E50: 208 | F50: 47.75 | G50: 3.357 | H50: 112.6
A51: 49 | B51: HBr | D51: Hydrogen bromide | E51: 209 | F51: 47.58 | G51: 3.353 | H51: 449
A52: 50 | B52: HCN | D52: Hydrogen cyanide | E52: 113 | F52: 60.37 | G52: 3.63 | H52: 569.1
A53: 51 | B53: HCl | D53: Hydrogen chloride | E53: 104 | F53: 46.98 | G53: 3.339 | H53: 344.7
A54: 52 | B54: HF | D54: Hydrogen fluoride | E54: 210 | F54: 39.37 | G54: 3.148 | H54: 330
A55: 53 | B55: HJ | D55: Hydrogen iodide | E55: 106 | F55: 94.24 | G55: 4.211 | H55: 288.7
A56: 54 | B56: H2 | D56: Hydrogen | E56: 1 | F56: 28.51 | G56: 2.827 | H56: 59.7
A57: 55 | B57: H2O | D57: Water | E57: 62 | F57: 23.25 | G57: 2.641 | H57: 809.1
A58: 56 | B58: H2O2 | D58: HydrogenPeroxide | E58: 959 | F58: 93.24 | G58: 4.196 | H58: 289.3
A59: 57 | B59: H2S | D59: Hydrogen Sulfide | E59: 50 | F59: 60.02 | G59: 3.623 | H59: 301.1
A60: 58 | B60: Hg | D60: Mercury | E60: 969 | F60: 33.03 | G60: 2.969 | H60: 750
A61: 59 | B61: HgBr2 | D61: Mercuric bromide | F61: 165.5 | G61: 5.08 | H61: 686.2
A62: 60 | B62: HgCl2 | D62: Mercuric chloride | F62: 118.9 | G62: 4.55 | H62: 750
A63: 61 | B63: HgJ2 | D63: Mercuric jodid | F63: 224.6 | G63: 5.652 | H63: 695.6
A64: 62 | B64: I2 | D64: Iodide | F64: 173.4 | G64: 5.16 | H64: 474.2
A65: 63 | B65: NH3 | D65: Ammonia | E65: 63 | F65: 30.78 | G65: 2.9 | H65: 558.3
A66: 64 | B66: NO | D66: Nitric Oxide | E66: 108 | F66: 53.74 | G66: 3.492 | H66: 116.7
A67: 65 | B67: NOCl | D67: Nitrosyl chloride | E67: 207 | F67: 87.75 | G67: 4.112 | H67: 395.3
A68: 66 | B68: N2 | D68: Nitrogen | E68: 46 | F68: 69.14 | G68: 3.798 | H68: 71.4
A69: 67 | B69: N2O | D69: Nitrous Oxide | E69: 110 | F69: 708 | G69: 3.828 | H69: 232.4
A70: 68 | B70: O2 | D70: O-Xylene | E70: 47 | F70: 52.6 | G70: 3.467 | H70: 106.7
A71: 69 | B71: PH3 | D71: Phosphine | F71: 79.63 | G71: 3.981 | H71: 251.5
A72: 70 | B72: SF6 | D72: Sulfur hexafluoride | E72: 953 | F72: 170.2 | G72: 5.128 | H72: 222.1
A73: 71 | B73: SO2 | D73: Sulfur Dioxide | E73: 51 | F73: 87.75 | G73: 4.112 | H73: 335.4
A74: 72 | B74: SiF4 | D74: Silicon TetraF | E74: 952 | F74: 146.7 | G74: 4.88 | H74: 171.9
A75: 73 | B75: SiH4 | D75: Silicon hydride | F75: 85.97 | G75: 4.084 | H75: 207.6
A76: 74 | B76: SnBr2 | D76: Stannic bromide | F76: 329 | G76: 6.388 | H76: 563.7
A77: 75 | B77: UF6 | D77: Uranium hexafluorid | F77: 268.1 | G77: 5.967 | H77: 236.8
G78: ,
A79: McQuarrie Physical Chemistry S. 663 Tabelle 16.7
B80: Formel | C80: Summenformel | D80: Name | E80: CC- Nr | F80: b [cm³/mol] | G80: σ [pm] | H80: ε/k [K] | I80: 81-96
A81: 1 | B81: He | C81: He | D81: Helium | E81: 212 | F81: 21.2 | G81: 256 | H81: 10.22
A82: 2 | B82: Ne | C82: Ne | D82: Neon | E82: 107 | F82: 26.2 | G82: 275 | H82: 35.6
A83: 3 | B83: Ar | C83: Ar | D83: Argon | E83: 98 | F83: 50 | G83: 341 | H83: 120
A84: 4 | B84: Kr | C84: Kr | D84: Krypton | E84: 971 | F84: 70.9 | G84: 383 | H84: 164
A85: 5 | B85: Xe | C85: Xe | D85: Xenon | E85: 994 | F85: 86.9 | G85: 406 | H85: 229
A86: 6 | B86: H2 | C86: H2 | D86: Wasserstoff | E86: 1 | F86: 31.7 | G86: 293 | H86: 37
A87: 7 | B87: N2 | C87: N2 | D87: Stickstoff | E87: 46 | F87: 63.9 | G87: 370 | H87: 95.1
A88: 8 | B88: O2 | C88: O2 | D88: Sauerstoff | E88: 47 | F88: 57.9 | G88: 358 | H88: 118
A89: 9 | B89: CO | C89: CO | D89: Kohlenmonoxid | E89: 48 | F89: 67 | G89: 376 | H89: 100
A90: 10 | B90: CO2 | C90: CO2 | D90: Kohlendioxid | E90: 49 | F90: 114.2 | G90: 449 | H90: 189
A91: 11 | B91: CF4 | C91: CF4 | D91: Tetrafluiormethan | E91: 218 | F91: 131 | G91: 470 | H91: 152
A92: 12 | B92: CH4 | C92: CH4 | D92: Methan | E92: 2 | F92: 68.1 | G92: 378 | H92: 149
A93: 13 | B93: C2H4 | C93: C2H4 | D93: Ethylen | E93: 22 | F93: 116.5 | G93: 452 | H93: 199
A94: 14 | B94: C2H6 | C94: C2H6 | D94: Ethan | E94: 3 | F94: 77.7 | G94: 395 | H94: 243
A95: 15 | B95: C3H8 | C95: C3H8 | D95: Propan | E95: 4 | F95: 226.3 | G95: 564 | H95: 242
A96: 16 | B96: C(CH3)4 | C96: C5H12 | D96: Neopentan | E96: 9 | F96: 519.4 | G96: 744 | H96: 232
A98: Ebert Ederer Computeranwendungen in der Chemie S.113 | B98: Formel | C98: Summenformel | D98: Name | E98: CC- Nr | G98: σ [Å] | H98: ε/k [K] | I98: 99-108
A99: 1 | B99: He | C99: He | D99: Helium | E99: 212 | G99: 2.556 | H99: 10.22
A100: 2 | B100: H2 | C100: H2 | D100: Wasserstoff | E100: 1 | G100: 2.928 | H100: 37
A101: 3 | B101: Ne | C101: Ne | D101: Neon | E101: 107 | G101: 2.749 | H101: 35.6
A102: 4 | B102: Ar | C102: Ar | D102: Argon | E102: 98 | G102: 3.405 | H102: 119.8
A103: 5 | B103: Kr | C103: Kr | D103: Krypton | E103: 971 | G103: 3.61 | H103: 171
A104: 6 | B104: Xe | C104: Xe | D104: Xenon | E104: 994 | G104: 4.1 | H104: 221
A105: 7 | B105: O2 | C105: O2 | D105: Sauerstoff | E105: 47 | G105: 3.58 | H105: 117.5
A106: 8 | B106: CO | C106: CO | D106: Kohlenmonoxid | E106: 48 | G106: 3.763 | H106: 100.2
A107: 9 | B107: N2 | C107: N2 | D107: Stickstoff | E107: 46 | G107: 3.698 | H107: 95.05
A108: 10 | B108: CH4 | C108: CH4 | D108: Methan | E108: 2 | G108: 3.817 | H108: 148.2
A111: Lennard-Jones Parameter aus Artikel von Frank M. Mourits und Frans A. Rummens 1976 | H111: Mourits Rummens v77-418.pdf | K111: 114-178
A113: Lfd Nr | B113: Formel | E113: CC Nr | G113: σ [pm] | H113: ε/k [K] | I113: 114-188
A114: 1 | B114: Ne | E114: 107 | G114: 282.2 | H114: 32
A115: 2 | B115: Ar | E115: 98 | G115: 346.5 | H115: 113.5
A116: 3 | B116: Kr | E116: 971 | G116: 366.2 | H116: 178
A117: 4 | B117: Xe | E117: 994 | G117: 405 | H117: 230.2
A118: 5 | B118: N2 | E118: 46 | G118: 373.6 | H118: 82
A119: 6 | B119: O2 | E119: 47 | G119: 348 | H119: 102.6
A120: 7 | B120: CO2 | E120: 49 | G120: 394.3 | H120: 200.9
A121: 8 | B121: CS2 | E121: 102 | G121: 457.5 | H121: 414.6
A122: 9 | B122: SF6 | E122: 953 | G122: 519.9 | H122: 212
A123: 10 | B123: (CN)2 | E123: 237 | G123: 457.1 | H123: 275.7
A124: 11 | B124: F2 | E124: 208 | G124: 343.9 | H124: 152.1
A125: 12 | B125: Cl2 | E125: 105 | G125: 424 | H125: 307.2
A126: 13 | B126: Br2 | E126: 99 | G126: 426.6 | H126: 437.3
A127: 14 | B127: I2 | E127: 213 | G127: 463 | H127: 577.4
A128: 15 | B128: CH4 | E128: 2 | G128: 379 | H128: 142.1
A129: 16 | B129: CF4 | E129: 218 | G129: 448.6 | H129: 167.3
A130: 17 | B130: CCl4 | E130: 100 | G130: 561.1 | H130: 515.5
A131: 18 | B131: C2H6 | E131: 3 | G131: 440.7 | H131: 227.9
A132: 19 | B132: C3H8 | E132: 4 | G132: 511.4 | H132: 237.2
A133: 20 | B133: n-C4H10 | E133: 6 | G133: 540.5 | H133: 305 | I133: n-Butan
A134: 21 | B134: i-C4H10 | E134: 5 | G134: 539.2 | H134: 295.8
A135: 22 | B135: n-C5H12 | E135: 8 | G135: 591.6 | H135: 308.3
A136: 23 | B136: neo-C5H12 | E136: 9 | G136: 575.7 | H136: 312.3
A137: 24 | B137: n-C6H14 | E137: 10 | G137: 626.9 | H137: 341.3
A138: 25 | B138: n-C7H16 | E138: 11 | G138: 665 | H138: 351.4
A139: 26 | B139: n-C8H18 | E139: 12 | G139: 702.4 | H139: 377.7
A140: 27 | B140: n-C9H20 | E140: 13 | G140: 735.1 | H140: 360.3
A141: 28 | B141: cyclo-C6H12 | E141: 38 | G141: 577.1 | H141: 394.8
A142: 29 | B142: C2H4 | E142: 22 | G142: 415.5 | H142: 225.6
A143: 30 | B143: C3H6 | E143: 23 | G143: 477.8 | H143: 271.2
A144: 31 | B144: Butene-1 | E144: 24 | G144: 527.4 | H144: 302.4
A145: 32 | B145: i-Butene | E145: 27 | G145: 528.2 | H145: 299.6
A146: 33 | B146: C2H2 | E146: 65 | G146: 407.8 | H146: 221.4
A147: 34 | B147: C3H4 | E147: 57 | G147: 466.7 | H147: 284.7
A148: 35 | B148: C6H6 | E148: 40 | G148: 545.5 | H148: 401.2
A149: 36 | B149: C6H5CH3 | E149: 41 | G149: 592.3 | H149: 407.8
A150: 37 | B150: Mesitylene | E150: 77 | G150: 676 | H150: 400.5
A151: 38 | B151: N2O | E151: 110 | G151: 377.6 | H151: 248.8
A152: 39 | B152: CO | E152: 48 | G152: 369.8 | H152: 104.5
A153: 40 | B153: COS | E153: 219 | G153: 442.4 | H153: 286.4
A154: 41 | B154: NO | E154: 108 | G154: 348.9 | H154: 117.2
A155: 42 | B155: HJ | E155: 106 | G155: 408 | H155: 333.6
A156: 43 | B156: HBr | E156: 209 | G156: 385.2 | H156: 281.1
A157: 44 | B157: HCl | E157: 104 | G157: 316.8 | H157: 322.6
A158: 45 | B158: HF | E158: 210 | G158: 314.8 | H158: 330
A159: 46 | B159: H2S | E159: 50 | G159: 373.3 | H159: 302.4
A160: 47 | B160: SO2 | E160: 51 | G160: 410.2 | H160: 328.5
A161: 48 | B161: HCN | E161: 113 | G161: 363 | H161: 569.1
A162: 49 | B162: NH3 | E162: 63 | G162: 321.5 | H162: 309.9
A163: 50 | B163: H2O | E163: 62 | G163: 271 | H163: 506
A164: 51 | B164: CHCl3 | E164: 112 | G164: 517.9 | H164: 381.7
A165: 52 | B165: CH2Cl2 | E165: 222 | G165: 475.2 | H165: 403.5
A166: 53 | B166: CH3Br | E166: 224 | G166: 430.6 | H166: 416.2
A167: 54 | B167: CH3Cl | E167: 115 | G167: 429.6 | H167: 328.1
A168: 55 | B168: C2H5Cl | E168: 132 | G168: 449 | H168: 402.9
A169: 56 | B169: n-C3H7OH | E169: 146 | G169: 486.7 | H169: 480.2
A170: 57 | B170: i-C3H7OH | E170: 145 | G170: 473.9 | H170: 456
A171: 58 | B171: C2H5OH | E171: 134 | G171: 431.7 | H171: 450.2 | I171: Ethanol
A172: 59 | B172: CH3OH | E172: 117 | G172: 365.7 | H172: 385.2 | I172: Methanol
A173: 60 | B173: (C2H5)2O | E173: 160 | G173: 555.3 | H173: 348 | I173: Diethylether
A174: 61 | B174: (CH3)2O | E174: 133 | G174: 423 | H174: 352.3 | I174: Dimethylether
A175: 62 | B175: CH3CO2C2H5 | E175: 155 | G175: 565 | H175: 372
A176: 63 | B176: CH3CO2CH3 | E176: 142 | G176: 514.1 | H176: 389.4
A177: 64 | B177: (CH3)2CO | E177: 140 | G177: 459.9 | H177: 458 | I177: Aceton
A178: 65 | B178: CH3CHO | E178: 128 | G178: 433.2 | H178: 413.5
A179: 66 | B179: Si(CH3)4 | G179: 616.7 | H179: 315.1
A180: 67 | B180: c-C5H10 | G180: 542.3 | H180: 368.1
A181: 68 | B181: CH3J | G181: 465.6 | H181: 405.5
A182: 69 | B182: CH2J2 | G182: 532.7 | H182: 550.5
A183: 70 | B183: (CH3)2SO | G183: 494 | H183: 602.5
A184: 71 | B184: CH3NO2 | G184: 437.4 | H184: 527.4
A185: 72 | B185: CH3CN | G185: 437.4 | H185: 491.6
A186: 73 | B186: p-Xylene | G186: 637.1 | H186: 408.8
A187: 74 | B187: C6H5Cl | G187: 585.6 | H187: 440.2
A188: 75 | B188: C6H5NO2 | G188: 595 | H188: 534

Sheet Datensammlung
A1: Datensammlung | E1: 5 | J1: 10 | O1: 15 | Y1: 25 | AD1: 30 | AI1: 35 | AL1: 38
A2: Nr. | B2: Name | C2: σ Lit. Poling, Prausnitz: the properties of gases and liquids 2000 | D2: ε/k Lit. Poling, Prausnitz: the properties of gases and liquids 2000 | E2: σ Lit. McQuarrie Physical Chemistry S. 663 Tabelle 16.7 | F2: ε/k Lit. McQuarrie Physical Chemistry S. 663 Tabelle 16.7 | G2: σ Lit. Frank M. Mourits und Frans A. Rummens 1976 | H2: ε/k Lit. Frank M. Mourits und Frans A. Rummens 1976 | I2: σ Lit. Ebert Ederer Computeranwendungen in der Chemie S.113 | J2: ε/k Lit. Ebert Ederer Computeranwendungen in der Chemie S.113 | K2: Tk | L2: pK | M2: Vk | N2: σ ber. (Vk) Gl. 9-4.8 | O2: ε/k ber. (Tk) | P2: σ ber. (Virial) | Q2: ε/k ber. (Virial) | R2: σ ber. Gas Visc ? | S2: σ ber. (mittl. Dichte kubisch aus Chemcad) | U2: a (SRK) | V2: b (SRK) | W2: alph (SRK) | X2: p (SRK) | Y2: Brechungsindex n | Z2: Dipolmoment µ | AA2: Ro [Moelwyn-Hughes S. 206] | AB2: α' [Moelwyn-Hughes S. 206] | AC2: νg [Moelwyn-Hughes S. 206] | AD2: MG | AE2: ρ(fl) 20°C | AF2: R0 berechnet aus Brechungsindex flüssig Moelwyn-Hughes S. 205 Gl. 30 | AG2: ϕorient (r=1) | AH2: ϕind (r=1) | AI2: ϕdisp (r=1) | AJ2: B Lennard-Jones | AK2: A Moelwyn-Hughes aus σ und ε S. Lit. Poling, Prausnitz: the properties of gases and liquids 2000 | AL2: B aus σ und ε Lit. Poling, Prausnitz: the properties of gases and liquids 2000 | AM2: A Stoßberechnung Moelwyn-Hughes S. 173
C3: [Å] | D3: [K] | E3: [pm] | F3: [K] | G3: [pm] | H3: [K] | I3: [Å] | J3: [K] | K3: [K] | L3: [bar_abs] | M3: [m³/kmol] | N3: [Å] | O3: [K] | P3: [Å] | Q3: [K] | R3: [Å] | S3: [Å] | U3: [bar·l²] | V3: [l] | W3: bar.l² | X3: bar | Y3: n | Z3: Asm | AA3: cm³/mol | AB3: cm³ | AC3: s-1 | AD3: g/mol | AE3: g/cm³ | AF3: cm³/mol | AG3: erg.cm6 | AH3: erg.cm6 | AI3: erg.cm6 | AJ3: erg.cm6 | AK3: erg.cm12 | AL3: erg.cm6 | AM3: erg.cm12
A4: 1 | B4: H2 | C4: =TblDat(B4,$C$26,$C$27) -> 2.827 | D4: =TblDat(B4,$D$26,$D$27) -> 59.7 | E4: =TblDat(B4,$E$26,$E$27) -> 293 | F4: =TblDat(B4,$F$26,$F$27) -> 37 | G4: =TblDat(B4,$G$26,$G$27) -> 0 | H4: =TblDat(B4,$H$26,$H$27) -> 0 | I4: =TblDat(B4,$I$26,$I$27) -> 2.928 | J4: =TblDat(B4,$J$26,$J$27) -> 37 | K4: =TblDat(B4,$K$26,$K$27) -> 33.26999 | L4: =TblDat(B4,$L$26,$L$27) -> 12.95947 | M4: =TblDat(B4,$M$26,$M$27) -> 0.065001 | N4: =TblDat(B4,$N$26,$N$27) -> 3.252783819 | O4: =TblDat(B4,$O$26,$O$27) -> 26.41943143 | P4: =TblDat(B4,$P$26,$P$27) -> 2.957872476 | Q4: =TblDat(B4,$Q$26,$Q$27) -> 41.14564314 | R4: =TblDat(B4,$R$26,$R$27) -> 3.252783819 | S4: =TblDat(B4,$S$26,$S$27) -> 3.943685108 | U4: =TblDat($B4,$U$26,$U$27) -> 0.2524076469 | V4: =TblDat($B4,219,2) -> 0.01849352985 | W4: =TblDat($B4,220,2) -> 0.02526988754 | X4: =TblDat($B4,221,2) -> 25.23768582 | Y4: =TblDat($B4,$Y$26,$Y$27) -> 1.0001372 | Z4: 0 | AA4: =TblDat(B4,$AA$26,$AA$27) -> 2.037 | AB4: =TblDat($B4,AB$26,AB$27) -> 8.1e-25 | AC4: =TblDat($B4,AC$26,AC$27) -> 2820000000000000 | AD4: =TblDat($B4,AD$26,AD$27) -> 2.0158 | AE4: =TblDat($B4,AE$26,AE$27) -> 0.08270339873 | AF4: =TblDat($B4,AF$26,AF$27) -> 2.037 | AI4: =Dispersion(AC4,AC4,AB4,AB4) -> 9.194676183e-60 | AJ4: =SUM(AG4:AI4) -> 9.194676183e-60 | AK4: =Asigmaeps(C4,D4) -> 8.590675352e-105 | AL4: =Bsigmaeps(C4,D4) -> 1.682954816e-59 | AM4: =AStoss(V4,K5) -> 1.532400987e-104
A5: 2 | B5: He | C5: =TblDat(B5,$C$26,$C$27) -> 2.551 | D5: =TblDat(B5,$D$26,$D$27) -> 10.22 | E5: =TblDat(B5,$E$26,$E$27) -> 256 | F5: =TblDat(B5,$F$26,$F$27) -> 10.22 | G5: =TblDat(B5,$G$26,$G$27) -> 0 | H5: =TblDat(B5,$H$26,$H$27) -> 0 | I5: =TblDat(B5,$I$26,$I$27) -> 2.556 | J5: =TblDat(B5,$J$26,$J$27) -> 10.22 | K5: =TblDat(B5,$K$26,$K$27) -> 5.199987 | L5: =TblDat(B5,$L$26,$L$27) -> 2.275 | M5: =TblDat(B5,$M$26,$M$27) -> 0.0573 | N5: =TblDat(B5,$N$26,$N$27) -> 3.118890031 | O5: =TblDat(B5,$O$26,$O$27) -> 4.129267847 | P5: =TblDat(B5,$P$26,$P$27) -> 2.601135209 | Q5: =TblDat(B5,$Q$26,$Q$27) -> 29.46665624 | R5: =TblDat(B5,$R$26,$R$27) -> 4.594140193 | S5: =TblDat(B5,$S$26,$S$27) -> 3.913682994 | U5: =TblDat($B5,$U$26,$U$27) -> 0.03512428747 | V5: =TblDat($B5,219,2) -> 0.016465512 | W5: =TblDat($B5,220,2) -> 7.52110618 | X5: =TblDat($B5,221,2) -> 24.93200186 | Y5: =TblDat($B5,$Y$26,$Y$27) -> 1.000036 | Z5: 0 | AA5: =TblDat(B5,$AA$26,$AA$27) -> 0.51716 | AB5: =TblDat($B5,AB$26,AB$27) -> 0,20364*1E--24 | AC5: =TblDat($B5,AC$26,AC$27) -> 5598000000000000 | AD5: 4.0026 | AE5: 0.1642169976 | AF5: 0.51716 | AI5: =Dispersion(AC5,AC5,AB5,AB5) ->  | AJ5: =SUM(AG5:AI5) ->  | AK5: =Asigmaeps(C5,D5) -> 4.286666264e-106 | AL5: =Bsigmaeps(C5,D5) -> 1.555453102e-60 | AM5: =AStoss(V5,K6) -> 8.221950244e-104
A6: 3 | B6: Ne | C6: 2.82 | D6: 32.8 | E6: 275 | F6: 35.6 | G6: 282.2 | H6: 32 | I6: 2.749 | J6: 35.6 | K6: 44.4 | L6: 26.53 | M6: 0.0417 | N6: 2.805394061 | O6: 35.25768284 | P6: 2.632135218 | Q6: 24.78958068 | R6: 0.9886846462 | S6: 3.378683006 | T6: =TblDat(B6,$T$26,$T$27) -> 2169.099 | U6: 0.2195902729 | V6: 0.01205591294 | W6: 0.01756831316 | X6: 25.07564244 | Y6: 1.00000725 | Z6: 0 | AA6: 0.99698 | AB6: 3.9256e-25 | AC6: 4032000000000000 | AD6: 20.18 | AE6: 0.8279365941 | AF6: 0.99698 | AI6: =Dispersion(AC6,AC6,AB6,AB6) -> 3.087805285e-60 | AJ6: 3.087805285e-60 | AK6: 4.581486567e-105 | AL6: 9.10986136e-60 | AM6: 8.029073442e-104
A7: 4 | B7: Ar | C7: 3.542 | D7: 93.3 | E7: 341 | F7: 120 | G7: 346.5 | H7: 113.5 | I7: 3.405 | J7: 119.8 | K7: 150.86 | L7: 48.9805 | M7: 0.0746 | N7: 3.405609098 | O7: 119.7967125 | P7: 3.522966927 | Q7: 111.7302917 | R7: 2.054022292 | S7: 4.081960008 | T7: 7709.18 | U7: 1.37312287 | V7: 0.02218734172 | W7: 0.5748097088 | X7: 24.56715819 | Y7: 1.233 | Z7: 0 | AA7: 4.143 | AB7: 1.6264e-24 | AC7: 1981000000000000 | AD7: =TblDat($B7,AD$26,AD$27) -> 39.948 | AE7: 1.638969825 | AF7: 4.143 | AI7: 2.604093057e-59 | AJ7: 2.604093057e-59 | AK7: 2.009127971e-103 | AL7: 1.017457456e-58 | AM7: 1.278159254e-102
A8: 5 | B8: Kr | C8: 3.655 | D8: 178.6 | E8: 383 | F8: 164 | G8: 366.2 | H8: 178 | I8: 3.61 | J8: 171 | K8: 209.35 | L8: 55.02 | M8: 0.0912 | N8: 3.641498492 | O8: 166.243151 | P8: 3.908101437 | Q8: 153.316529 | R8: 1.572814105 | S8: 4.352133451 | T8: 1640.14 | U8: 2.354017854 | V8: 0.02740985651 | W8: 0.7741963467 | X8: 23.70152395 | Y8: 0 | Z8: 0 | AA8: 6.256 | AB8: 2.4559e-24 | AC8: 1612000000000000 | AD8: 83.8 | AE8: 3.438111327 | AF8: 6.256 | AI8: 4.831741469e-59 | AJ8: 4.831741469e-59 | AK8: 5.606260891e-103 | AL8: 2.351521838e-58 | AM8: 4.120277048e-102
A9: 6 | B9: Xe | C9: 4.047 | D9: 231 | E9: 406 | F9: 229 | G9: 405 | H9: 230.2 | I9: 4.1 | J9: 221 | K9: 289.74 | L9: 58.404 | M9: 0.118 | N9: 3.968038318 | O9: 230.0802033 | P9: 4.208069429 | Q9: 216.3719944 | R9: 1.84293111 | S9: 4.743676256 | T9: 2294.96 | U9: 4.247747837 | V9: 0.03573717727 | W9: 0.9813119785 | X9: 21.67083878 | Y9: 1.0007055 | Z9: 0 | AA9: 10.1553 | AB9: 3.9989e-24 | AC9: 1263000000000000 | AD9: 131.29 | AE9: 0 | AF9: 10.1553 | AI9: 1.003694932e-58 | AJ9: 1.003694932e-58 | AK9: 2.462372241e-102 | AL9: 5.604727217e-58 | AM9: 6.352215212e-102
A10: 7 | B10: O2 | C10: 3.467 | D10: 106.7 | E10: 358 | F10: 118 | G10: 348 | H10: 102.6 | I10: 3.58 | J10: 117.5 | K10: 154.58 | L10: 50.7638 | M10: 0.07340001 | N10: 3.387249817 | O10: 122.7507345 | P10: 3.543239243 | Q10: 111.8569423 | R10: 1.381165225 | S10: 3.935081361 | T10: 7264.066 | U10: 1.391031259 | V10: 0.02193580423 | W10: 0.5914097977 | X10: 24.52778285 | Y10: 1.0002706 | Z10: 0 | AA10: 3.965 | AB10: 1.561e-24 | AC10: 2022000000000000 | AD10: 31.999 | AE10: 1.31284158 | AF10: 3.965 | AI10: 2.448523351e-59 | AJ10: 2.448523351e-59 | AK10: 1.777271568e-103 | AL10: 1.023365433e-58 | AM10: 7.361469477e-103
A11: 8 | B11: N2 | C11: 3.798 | D11: 71.4 | E11: 370 | F11: 95.1 | G11: 373.6 | H11: 82 | I11: 3.698 | J11: 95.05 | K11: 126.2 | L11: 33.9388 | M11: 0.08859999 | N11: 3.606559315 | O11: 100.2144048 | P11: 3.730755398 | Q11: 86.7438412 | R11: 1.432280262 | S11: 4.283880008 | T11: 6297.391 | U11: 1.386777017 | V11: 0.0267865792 | W11: 0.44662826 | X11: 24.855844 | Y11: 1.000297 | Z11: 0 | AA11: 4.402 | AB11: 0 | AC11: 1919000000000000 | AD11: 28.014 | AE11: 1.149346667 | AF11: 4.402 | AI11: 0 | AJ11: 0 | AK11: 3.552229451e-103 | AL11: 1.183508137e-58 | AM11: 1.871786724e-102
A12: 9 | B12: F2 | C12: 3.357 | D12: 112.6 | E12: 0 | F12: 0 | G12: 343.9 | H12: 152.1 | I12: 0 | J12: 0 | K12: 144.31 | L12: 52.152 | M12: 0.0662 | N12: 3.272662234 | O12: 114.5954101 | P12: 3.447705591 | Q12: 99.13564951 | R12: 1.353738728 | S12: 3.810399088 | T12: 7037.546 | U12: 1.180065989 | V12: 0.01993332931 | W12: 0.5550787971 | X12: 24.6388059 | Y12: 1.000206 | Z12: 0 | AA12: 0 | AB12: 0 | AD12: 37.997 | AE12: 1.558925013 | AF12: 0 | AK12: 1.273789778e-103 | AL12: 8.899993962e-59 | AM12: 1.65921448e-102
A13: 10 | B13: Cl2 | C13: 4.217 | D13: 316 | E13: 0 | F13: 0 | G13: 424 | H13: 307.2 | I13: 0 | J13: 0 | K13: 417.15 | L13: 77.11034 | M13: 0.1237 | N13: 4.030928439 | O13: 331.2554594 | P13: 4.608801537 | Q13: 282.6337633 | R13: 2.077219543 | S13: 4.68571922 | T13: 26824.4 | U13: 6.66893195 | V13: 0.03897032366 | W13: 1.218868907 | X13: 17.95816154 | Y13: 1.000773 | Z13: 0 | AA13: 11.43 | AB13: 4.5e-24 | AC13: 1191000000000000 | AD13: 70.906 | AE13: 2.909101692 | AF13: 11.43 | AI13: 1.198544275e-58 | AJ13: =SUM(AG13:AI13) -> 1.198544275e-58 | AK13: 5.519167427e-102 | AL13: 9.814133532e-58 | AM13: 3.394308776e-101
A14: 11 | B14: Br2 | C14: 4.296 | D14: 507.9 | E14: 0 | F14: 0 | G14: 426.6 | H14: 437.3 | I14: 0 | J14: 0 | K14: 584.15 | L14: 103.351 | M14: 0.135 | N14: 4.150111623 | O14: 463.868816 | P14: 4.292083472 | Q14: 460.6881346 | R14: 2.373889959 | S14: 4.939542217 | T14: 40737.28 | U14: 9.757049023 | V14: 0.04071590392 | W14: 1.432730786 | X14: 12.39642341 | Y14: 1.001132 | Z14: 0 | AA14: 16.33 | AB14: 6.43e-24 | AC14: 996000000000000 | AD14: 159.81 | AE14: 6.556617795 | AF14: 16.33 | AI14: 2.046437932e-58 | AJ14: 2.046437932e-58 | AK14: 1.108390409e-101 | AL14: 1.763222516e-57 | AM14: 9.205249833e-102
A15: 12 | B15: CO | C15: 3.69 | D15: 91.7 | E15: 376 | F15: 100 | G15: 369.8 | H15: 104.5 | I15: 3.763 | J15: 100.2 | K15: 132.95 | L15: 34.98752 | M15: 0.0931 | N15: 3.666613068 | O15: 105.5745255 | P15: 3.812206346 | Q15: 86.46769088 | R15: 1.435213654 | S15: 4.331836335 | T15: 6882.812 | U15: 1.492959174 | V15: 0.02737345176 | W15: 0.4751031349 | X15: 24.78401079 | Y15: 1.000332 | Z15: =TblDat(B15,$Z$26,$Z$27) -> 3.7359e-31 | AA15: 4.89 | AB15: 1.926e-24 | AC15: 1820000000000000 | AD15: 28.01 | AE15: 1.149182557 | AF15: 4.89 | AG15: =Orient(Z15,Z15) -> 2.54832273e-63 | AH15: =Induktion(Z15,Z15,AB15,AB15) -> 5.376216682e-72 | AI15: 3.355067379e-59 | AJ15: 3.355322211e-59 | AK15: 3.227223205e-103 | AL15: 1.278411906e-58 | AM15: 4.302970652e-102
A16: 13 | B16: CO2 | C16: 3.941 | D16: 195.2 | E16: 449 | F16: 189 | G16: 394.3 | H16: 200.9 | I16: 0 | J16: 0 | K16: 304.2 | L16: 73.81525 | M16: 0.092863 | N16: 3.66349912 | O16: 241.562773 | P16: 4.669488935 | Q16: 176.2609369 | R16: 1.746165263 | S16: 4.459398231 | T16: 26173.81 | U16: 3.704731454 | V16: 0.02968708102 | W16: 1.012837647 | X16: 21.89105452 | Y16: 1.000558 | Z16: 0 | AA16: 6.595 | AB16: 2.594e-24 | AC16: 1567000000000000 | AD16: 44.01 | AE16: 1.805623861 | AF16: 6.595 | AI16: 5.239939019e-59 | AJ16: 5.239939019e-59 | AK16: 1.513213843e-102 | AL16: 4.038886943e-58 | AM16: 3.730372092e-102
A17: 14 | B17: Methan | C17: 3.758 | D17: 148.6 | E17: 378 | F17: 149 | G17: 379 | H17: 142.1 | I17: 3.817 | J17: 148.2 | K17: 190.63 | L17: 46.00154 | M17: 0.099418 | N17: 3.7477464 | O17: 151.3777495 | P17: 3.982326137 | Q17: 139.3159141 | R17: 1.572840681 | S17: 4.429900223 | T17: 9121.295 | U17: 2.334503519 | V17: 0.02985198811 | W17: 0.7074940173 | X17: 23.93573205 | Y17: 1.000454 | Z17: 0 | AA17: 6.855 | AB17: 2.699e-24 | AC17: 1538000000000000 | AD17: 16.043 | AE17: 0.6582054895 | AF17: 6.855 | AI17: 5.56774578e-59 | AJ17: 5.56774578e-59 | AK17: 6.510935493e-103 | AL17: 2.311547052e-58 | AM17: 6.110765904e-102
A18: 15 | B18: Ethan | C18: 4.443 | D18: 215.7 | E18: 395 | F18: 243 | G18: 440.7 | H18: 227.9 | I18: 0 | J18: 0 | K18: 305.43 | L18: 48.83864 | M18: 0.1467 | N18: 4.266697888 | O18: 242.5395061 | P18: 5.011376506 | Q18: 196.3890549 | R18: 4.121741319 | S18: 4.89098334 | T18: 17566.07 | U18: 5.644743741 | V18: 0.04505080061 | W18: 1.017382402 | X18: 20.45069056 | Y18: 1.0007629 | Z18: 0 | AA18: 10.99 | AB18: 4.326e-24 | AC18: 1215000000000000 | AD18: 30.07 | AE18: 1.233699375 | AF18: 10.99 | AI18: 1.129969187e-58 | AJ18: 1.129969187e-58 | AK18: 7.048702452e-102 | AL18: 9.163287198e-58 | AM18: 3.837879745e-101
A19: 16 | B19: Propan | C19: 5.118 | D19: 237.1 | E19: 564 | F19: 242 | G19: 511.4 | H19: 237.2 | I19: 0 | J19: 0 | K19: 369.82 | L19: 42.4957 | M19: 0.20083 | N19: 4.737596302 | O19: 293.6710871 | P19: 5.811184996 | Q19: 225.1659577 | R19: 2.349657667 | S19: 5.363884579 | T19: 22298.01 | U19: 9.510869204 | V19: 0.0626902194 | W19: 1.168010477 | X19: 15.98080384 | Y19: 1.3657 | Z19: 0 | AA19: 15.125 | AB19: 5.995920579e-24 | AC19: =vgR0(AA19) -> 1.034376856e+15 | AD19: 44.096 | AE19: 0.5812 | AF19: =TblDat($B19,AF$26,AF$27) -> 15.125 | AI19: 1.848024953e-58 | AJ19: 1.848024953e-58 | AK19: 4.229394601e-101 | AL19: 2.353295787e-57 | AM19: 1.124184559e-100
A20: 17 | B20: Benzol | C20: 5.349 | D20: 412.3 | E20: 0 | F20: 0 | G20: 545.5 | H20: 401.2 | I20: 0 | J20: 0 | K20: 288.9 | L20: 48.95 | M20: 0.256 | N20: 5.136829804 | O20: 229.413166 | P20: 5.153659601 | Q20: 171.4073848 | R20: 2.834574981 | S20: 6.008686674 | T20: 40627.43 | U20: 5.038796229 | V20: 0.04251568969 | W20: 0.9729499038 | X20: 21.17472584 | Y20: 1.5011 | Z20: 0 | AA20: 25.11 | AB20: 9.89e-24 | AC20: 803000000000000 | AD20: 78.114 | AE20: 0.88 | AF20: 25.11 | AI20: 3.903241488e-58 | AJ20: 3.903241488e-58 | AK20: 1.249187942e-100 | AL20: 5.333253121e-57 | AM20: 3.074939463e-101
A21: 18 | B21: H2S | C21: 3.623 | D21: 301.1 | E21: 0 | F21: 0 | G21: 373.3 | H21: 302.4 | I21: 0 | J21: 0 | K21: 373.55 | L21: 90.0779 | M21: 0.09849 | N21: 3.736049033 | O21: 296.6330501 | P21: 4.376098312 | Q21: 239.8391272 | R21: 1.785367938 | S21: 4.396457132 | T21: 21037.54 | U21: 4.577871909 | V21: 0.02987341491 | W21: 1.139892806 | X21: 20.4731505 | Y21: 0 | Z21: 3.2356e-30 | AA21: 9.251 | AB21: 0 | AC21: 1323000000000000 | AD21: =TblDat($B21,AD$26,AD$27) -> 34.0758 | AE21: 0 | AF21: 9.251 | AI21: 0 | AJ21: =SUM(AG21:AI21) -> 0 | AK21: 8.504994516e-103 | AL21: 3.760659679e-58 | AM21: 8.139202964e-102
A22: 19 | B22: NH3 | C22: 2.9 | D22: 558.3 | E22: 0 | F22: 0 | G22: 321.5 | H22: 309.9 | I22: 0 | J22: 0 | K22: 405.65 | L22: 112.7848 | M22: 0.07247 | N22: 3.372882992 | O22: 322.1234019 | P22: 4.684303642 | Q22: 222.3972213 | R22: 1.674466709 | S22: 3.874182077 | T22: 29004.22 | U22: 4.311583438 | V22: 0.02590927672 | W22: 1.17670241 | X22: 20.49080941 | Y22: 0 | Z22: 4.9034e-30 | AA22: 5.448 | AB22: 0 | AC22: 1725000000000000 | AD22: 17.031 | AE22: 0 | AF22: 5.448 | AI22: 0 | AJ22: 0 | AK22: 1.09090486e-103 | AL22: 1.833998133e-58 | AM22: 5.82002115e-102
A23: 20 | B23: Methanol | C23: 3.626 | D23: 481.8 | E23: 0 | F23: 0 | G23: 365.7 | H23: 385.2 | I23: 0 | J23: 0 | K23: 512.64 | L23: 80.97 | M23: 0.118 | N23: 3.968038318 | O23: 407.0833002 | P23: 6.766898921 | Q23: 228.4457364 | R23: 4.248677148 | S23: 4.49507163 | T23: 38470.15 | U23: 9.591471683 | V23: 0.04560817913 | W23: 1.339976482 | X23: 13.66939639 | Y23: 1.3288 | Z23: 5.5e-30 | AA23: 8.222 | AB23: 0 | AC23: =vgR0(AA23) -> 1.402935647e+15 | AD23: 32.042 | AE23: 0.79 | AF23: 8.222 | AI23: 0 | AJ23: 0 | AK23: 1.37449659e-102 | AL23: 6.047513802e-58 | AM23: 5.602184002e-101
A24: 21 | B24: Ethanol | C24: 4.53 | D24: 362.6 | E24: 0 | F24: 0 | G24: 431.7 | H24: 450.2 | I24: 0 | J24: 0 | K24: 513.92 | L24: 61.48 | M24: 0.167 | N24: 4.455064663 | O24: 408.0997379 | P24: 7.676952887 | Q24: 221.5413881 | R24: 4.826360998 | S24: 5.077002858 | T24: 43675.69 | U24: 12.69525965 | V24: 0.06021657407 | W24: 1.383007287 | X24: 9.804265328 | Y24: 1.3606 | Z24: 5.64e-30 | AA24: 12.90075375 | AB24: 0 | AC24: =vgR0(AA24) -> 1.120002375e+15 | AD24: 46.069 | AE24: 0.7893 | AF24: 12.90075375 | AG24: =Orient(Z24,Z24) -> 1.323700926e-58 | AH24: =Induktion(Z24,Z24,AB24,AB24) -> 0 | AI24: 0 | AJ24: 1.323700926e-58 | AK24: 1.495372873e-101 | AL24: 1.730454903e-57 | AM24: 2.144342932e-100
A25: 22 | B25: Wasser | C25: 2.641 | D25: 809.1 | E25: 0 | F25: 0 | G25: 271 | H25: 506 | I25: 0 | K25: 647.35 | L25: 221.1823 | M25: 0.063494 | N25: 3.227449217 | O25: 514.0554276 | P25: 4.600555697 | Q25: 335.0829323 | R25: 3.670362244 | S25: 3.111145166 | T25: 46658.56 | U25: 5.599024179 | V25: 0.02108352219 | W25: 1.407147951 | X25: 17.59476265 | Y25: 1.333 | Z25: 6.171e-30 | AA25: 3.668 | AB25: 0 | AC25: 2102000000000000 | AD25: 18.015 | AE25: 0.998 | AF25: 3.668 | AG25: =Orient(Z25,Z25) -> 1.897123669e-58 | AH25: =Induktion(Z25,Z25,AB25,AB25) -> 0 | AI25: 0 | AJ25: 1.897123669e-58 | AK25: 5.144773856e-104 | AL25: 1.516197871e-58 | AM25: 5.475909497e-104
B26: Tbl Zeile | C26: 182 | D26: 183 | E26: 182 | F26: 183 | G26: 182 | H26: 183 | I26: 182 | J26: 183 | K26: 11 | L26: 12 | M26: 13 | N26: 186 | O26: 187 | P26: 186 | Q26: 187 | R26: 186 | S26: 182 | T26: 182 | U26: 218 | V26: 219 | W26: 220 | X26: 222 | Y26: 230 | Z26: 21 | AA26: 232 | AB26: 233 | AC26: 234 | AD26: 9 | AE26: 231 | AF26: 232 | AG26: 240 | AH26: 241 | AI26: 242 | AJ26: 243 | AK26: 245 | AL26: 246 | AM26: 247
B27: Tbl Spalte | C27: 3 | D27: 3 | E27: 6 | F27: 6 | G27: 9 | H27: 9 | I27: 12 | J27: 12 | K27: 2 | L27: 2 | M27: 2 | N27: 3 | O27: 3 | P27: 6 | Q27: 6 | R27: 9 | S27: 15 | T27: 23 | U27: 2 | V27: 2 | W27: 2 | X27: 2 | Y27: 2 | Z27: 2 | AA27: 2 | AB27: 2 | AC27: 2 | AD27: 2 | AE27: 2 | AF27: 2 | AG27: 2 | AH27: 2 | AI27: 2 | AJ27: 2 | AK27: 2 | AL27: 2 | AM27: 2
B29: 2023-03-03 | C29: alle Daten werden direkt aus den Tabellen gelesen. Mit der Funktion tbldat ist das universell und einfach möglich. Schreiben mit Klick auf Datenfeld und dann "Tabelleschreiben" | O29: Klicken auf Datenfeld in der Tabelle
B30: 2023-03-04 | C30: Polings eps Werte ab Benzol sind im Vergleich zu hoch. s. Mourits
A32: σ Datenvergleich | C32: 1. Name = y 2. Name = x (Bezug) | F32: y = poling = Referenz
A49: σ Poling Vk Vergleich | G49: c-e | H49: ok
A67: σ Dichte Vergleich
AH84: c-p | AI84: ok
A85: σ Virial
A102: ε Datenvergleich
A121: ε Vergleich
A138: ε/k Virial
A155: ε/k Poling - H-Sublimation
